Payment Date,Transaction Number,Net Amount,Supplier (Beneficiary) Name,Local Supplier Internal Reference,Directorate / Service Where Expenditure Incurred,Service Category Label,Service Category URI,SeRCOP Expenditure Category,SeRCOP Expenditure Code,Purpose of Spend,SeRCOP Detailed Expenditure Code,Capital/Revenue,Procurement Classification
02-SEP-2022,321,0.01,NEWITTS & CO LTD,372124,"Sport, Leisure & Community",Cultural & Related Services,104,Income,509,Customer and Client Receipts,5064,Revenue,SPORTS & PLAYGROUND EQUIPMENT.SPORTS EQUIPMENT
02-SEP-2022,7014120,67.5,HMCTS,360503,"Health, Education, Care and Safeguarding",Adult Social Care,101,Supplies and Services,504,Miscellaneous Expenses,5034,Revenue,NON INFLUENCIBLE.PUBLIC SECTOR
02-SEP-2022,7014121,35,JOHN MCKENNA GOLF,403505,"Sport, Leisure & Community",Cultural & Related Services,104,Supplies and Services,504,Equipment,5023,Revenue,NON INFLUENCIBLE.INDIVIDUAL
02-SEP-2022,7014122,29.17,WILDY,403504,Law & Governance,Central Services,102,Supplies and Services,504,Equipment,5023,Revenue,NON INFLUENCIBLE.INDIVIDUAL
02-SEP-2022,7014123,1.5,FIND A WILL,403503,"Health, Education, Care and Safeguarding",Adult Social Care,101,Third Party Payments,505,Government Departments,5039,Revenue,NON INFLUENCIBLE.INDIVIDUAL
02-SEP-2022,7014123,1.5,FIND A WILL,403503,"Health, Education, Care and Safeguarding",Adult Social Care,101,Third Party Payments,505,Government Departments,5039,Revenue,NON INFLUENCIBLE.INDIVIDUAL
02-SEP-2022,7014124,150,HOMECHARM BLINDS,403502,"Health, Education, Care and Safeguarding",Children's & Education Services,103,Third Party Payments,505,Other Establishments,5041,Revenue,NON INFLUENCIBLE.INDIVIDUAL
02-SEP-2022,7014125,12.58,HAZY DAZY,403501,Regeneration & Economic Development,Cultural & Related Services,104,Supplies and Services,504,Miscellaneous Expenses,5034,Revenue,NON INFLUENCIBLE.INDIVIDUAL
02-SEP-2022,7014126,0.01,CLOUD,403500,Resources,Central Services,102,Supplies and Services,504,"Printing, Stationery and General Office Expenses",5026,Revenue,NON INFLUENCIBLE.INDIVIDUAL
02-SEP-2022,7014126,315.39,CLOUD,403500,Resources,Central Services,102,Supplies and Services,504,"Printing, Stationery and General Office Expenses",5026,Revenue,NON INFLUENCIBLE.INDIVIDUAL
02-SEP-2022,7014126,332.17,CLOUD,403500,Resources,Central Services,102,Supplies and Services,504,"Printing, Stationery and General Office Expenses",5026,Revenue,NON INFLUENCIBLE.INDIVIDUAL
02-SEP-2022,7014127,360,O BRIEN ARCHITECTURAL,403499,Housing Property and Construction,Housing Services,108,Supplies and Services,504,Miscellaneous Expenses,5034,Revenue,NON INFLUENCIBLE.INDIVIDUAL
02-SEP-2022,7014128,31.67,EDEN CAMP,403498,"Health, Education, Care and Safeguarding",Children's & Education Services,103,Supplies and Services,504,Miscellaneous Expenses,5034,Revenue,NON INFLUENCIBLE.INDIVIDUAL
02-SEP-2022,7014129,699.54,MIRO,403497,"Health, Education, Care and Safeguarding",Adult Social Care,101,Supplies and Services,504,"Printing, Stationery and General Office Expenses",5026,Revenue,NON INFLUENCIBLE.INDIVIDUAL
02-SEP-2022,7014130,116.35,GLEBE COTTAGE LTD,342627,Regeneration & Economic Development,Cultural & Related Services,104,Supplies and Services,504,Equipment,5023,Revenue,ADVERTISING & MARKETING.EVENTS & PROMOTIONS
02-SEP-2022,7014131,4,THE WOODEN DELI,304933,"Health, Education, Care and Safeguarding",Children's & Education Services,103,Third Party Payments,505,Other Establishments,5041,Revenue,CATERING.FOOD & BEVERAGES
02-SEP-2022,7014132,8.33,NCS TRUST,403040,"Health, Education, Care and Safeguarding",Children's & Education Services,103,Supplies and Services,504,Miscellaneous Expenses,5034,Revenue,NON INFLUENCIBLE.NON INFLUENCIBLE
02-SEP-2022,7014132,8.33,NCS TRUST,403040,"Health, Education, Care and Safeguarding",Children's & Education Services,103,Supplies and Services,504,Miscellaneous Expenses,5034,Revenue,NON INFLUENCIBLE.NON INFLUENCIBLE
02-SEP-2022,7014133,-16.56,EB PURCHASE CARD,403478,Regeneration & Economic Development,Planning Services ,110,Supplies and Services,504,"Printing, Stationery and General Office Expenses",5026,Revenue,ADVERTISING & MARKETING.EVENTS & PROMOTIONS
02-SEP-2022,7014133,13.8,EB PURCHASE CARD,403478,Regeneration & Economic Development,Planning Services ,110,Supplies and Services,504,"Printing, Stationery and General Office Expenses",5026,Revenue,ADVERTISING & MARKETING.EVENTS & PROMOTIONS
02-SEP-2022,7014133,25,EB PURCHASE CARD,403478,Regeneration & Economic Development,Planning Services ,110,Supplies and Services,504,"Printing, Stationery and General Office Expenses",5026,Revenue,ADVERTISING & MARKETING.EVENTS & PROMOTIONS
02-SEP-2022,7014133,27.63,EB PURCHASE CARD,403478,"Health, Education, Care and Safeguarding",Children's & Education Services,103,Supplies and Services,504,Miscellaneous Expenses,5034,Revenue,ADVERTISING & MARKETING.EVENTS & PROMOTIONS
02-SEP-2022,7014134,345,KILLGERM CHEMICALS LTD,251235,Local Environmental Services,Environmental & Regulatory Services,105,Supplies and Services,504,"Clothing, Uniforms and Laundry",5025,Revenue,ENVIRONMENTAL SERVICES.ANIMAL SERVICES
02-SEP-2022,7014135,166.67,THE POINT OF CARE FOUNDATION,403278,"Health, Education, Care and Safeguarding",Children's & Education Services,103,Employees,501,Indirect Employee Expenses,5002,Revenue,HUMAN RESOURCES.TRAINING & CONFERENCES
02-SEP-2022,7014136,133.33,GRAND HOTEL GOSFORTH PARK,399046,"Health, Education, Care and Safeguarding",Adult Social Care,101,Supplies and Services,504,Expenses,5030,Revenue,HUMAN RESOURCES.TRAVEL & SUBSISTENCE
02-SEP-2022,7014136,226.67,GRAND HOTEL GOSFORTH PARK,399046,"Health, Education, Care and Safeguarding",Adult Social Care,101,Supplies and Services,504,Expenses,5030,Revenue,HUMAN RESOURCES.TRAVEL & SUBSISTENCE
02-SEP-2022,7014136,264.17,GRAND HOTEL GOSFORTH PARK,399046,"Health, Education, Care and Safeguarding",Adult Social Care,101,Supplies and Services,504,Expenses,5030,Revenue,HUMAN RESOURCES.TRAVEL & SUBSISTENCE
02-SEP-2022,7014137,24.17,TAKEAWAY,403381,Corporate Strategy,Children's & Education Services,103,Supplies and Services,504,Catering,5024,Revenue,NON INFLUENCIBLE.NON INFLUENCIBLE
02-SEP-2022,7014137,10.67,TAKEAWAY,403381,Corporate Strategy,Children's & Education Services,103,Supplies and Services,504,Catering,5024,Revenue,NON INFLUENCIBLE.NON INFLUENCIBLE
02-SEP-2022,7014138,15.78,FAT BUTCHER,403376,"Health, Education, Care and Safeguarding",Children's & Education Services,103,Supplies and Services,504,Equipment,5023,Revenue,NON INFLUENCIBLE.NON INFLUENCIBLE
02-SEP-2022,7014138,23.03,FAT BUTCHER,403376,"Health, Education, Care and Safeguarding",Children's & Education Services,103,Supplies and Services,504,Equipment,5023,Revenue,NON INFLUENCIBLE.NON INFLUENCIBLE
02-SEP-2022,7014138,36.08,FAT BUTCHER,403376,"Health, Education, Care and Safeguarding",Children's & Education Services,103,Supplies and Services,504,Equipment,5023,Revenue,NON INFLUENCIBLE.NON INFLUENCIBLE
02-SEP-2022,7014139,240,SP (PURCHASE CARD),403374,Corporate Strategy,Children's & Education Services,103,Supplies and Services,504,Expenses,5030,Revenue,NON INFLUENCIBLE.NON INFLUENCIBLE
02-SEP-2022,7014139,41.58,SP (PURCHASE CARD),403374,Local Environmental Services,Cultural & Related Services,104,Supplies and Services,504,Equipment,5023,Revenue,NON INFLUENCIBLE.NON INFLUENCIBLE
02-SEP-2022,7014139,50.89,SP (PURCHASE CARD),403374,"Sport, Leisure & Community",Cultural & Related Services,104,Supplies and Services,504,Equipment,5023,Revenue,NON INFLUENCIBLE.NON INFLUENCIBLE
02-SEP-2022,7014140,283.68,SHOWER DOC,403372,"Health, Education, Care and Safeguarding",Children's & Education Services,103,Premises-Related Expenditure,502,"Repairs, alterations and maintenance of buildings",5005,Revenue,NON INFLUENCIBLE.NON INFLUENCIBLE
02-SEP-2022,7014141,1250,IZ,403357,Corporate Strategy,Children's & Education Services,103,Supplies and Services,504,Catering,5024,Revenue,NON INFLUENCIBLE.NON INFLUENCIBLE
02-SEP-2022,7014142,128.33,NEW KENT HOTEL,312970,General Fund Housing,Housing Services,108,Third Party Payments,505,Private Contractors,5042,Revenue,
02-SEP-2022,7014142,132.5,NEW KENT HOTEL,312970,General Fund Housing,Housing Services,108,Third Party Payments,505,Private Contractors,5042,Revenue,
02-SEP-2022,7014142,137.5,NEW KENT HOTEL,312970,General Fund Housing,Housing Services,108,Third Party Payments,505,Private Contractors,5042,Revenue,
02-SEP-2022,7014142,530.83,NEW KENT HOTEL,312970,General Fund Housing,Housing Services,108,Third Party Payments,505,Private Contractors,5042,Revenue,
02-SEP-2022,7014143,0.01,FOR THE LOVE OF THE NORTH,401221,Regeneration & Economic Development,Cultural & Related Services,104,Supplies and Services,504,Equipment,5023,Revenue,NON INFLUENCIBLE.GRANTS
02-SEP-2022,7014143,259.37,FOR THE LOVE OF THE NORTH,401221,Regeneration & Economic Development,Cultural & Related Services,104,Supplies and Services,504,Equipment,5023,Revenue,NON INFLUENCIBLE.GRANTS
02-SEP-2022,7014144,150,NOOK,402963,"Health, Education, Care and Safeguarding",Children's & Education Services,103,Third Party Payments,505,Private Contractors,5042,Revenue,HUMAN RESOURCES.ACCOMMODATION
02-SEP-2022,7014145,-125,LUKE STAYS,402835,"Health, Education, Care and Safeguarding",Children's & Education Services,103,Transfer Payments,506,School Children and Students,5046,Revenue,NON INFLUENCIBLE.NON INFLUENCIBLE
02-SEP-2022,7014145,1125,LUKE STAYS,402835,"Health, Education, Care and Safeguarding",Children's & Education Services,103,Third Party Payments,505,Private Contractors,5042,Revenue,NON INFLUENCIBLE.NON INFLUENCIBLE
02-SEP-2022,7014146,19,UK PLANNING MAPS,402830,Corporate Strategy,Central Services,102,Supplies and Services,504,"Printing, Stationery and General Office Expenses",5026,Revenue,NON INFLUENCIBLE.NON INFLUENCIBLE
02-SEP-2022,7014147,230.58,TUDOR ENVIRONMENTAL,388512,Local Environmental Services,Cultural & Related Services,104,Supplies and Services,504,Equipment,5023,Revenue,HORTICULTURAL.TOOLS & EQUIPMENT
02-SEP-2022,7014147,253.27,TUDOR ENVIRONMENTAL,388512,Local Environmental Services,Cultural & Related Services,104,Supplies and Services,504,Equipment,5023,Revenue,HORTICULTURAL.TOOLS & EQUIPMENT
02-SEP-2022,7014148,7.5,GIFTS VOUCHERS,402468,Corporate Strategy,Children's & Education Services,103,Supplies and Services,504,Catering,5024,Revenue,NON INFLUENCIBLE.NON INFLUENCIBLE
02-SEP-2022,7014148,30,GIFTS VOUCHERS,402468,Corporate Strategy,Children's & Education Services,103,Supplies and Services,504,Catering,5024,Revenue,NON INFLUENCIBLE.NON INFLUENCIBLE
02-SEP-2022,7014148,500,GIFTS VOUCHERS,402468,Corporate Strategy,Children's & Education Services,103,Supplies and Services,504,Catering,5024,Revenue,NON INFLUENCIBLE.NON INFLUENCIBLE
02-SEP-2022,7014148,2000,GIFTS VOUCHERS,402468,Corporate Strategy,Children's & Education Services,103,Supplies and Services,504,Catering,5024,Revenue,NON INFLUENCIBLE.NON INFLUENCIBLE
02-SEP-2022,7014148,3.75,GIFTS VOUCHERS,402468,Corporate Strategy,Children's & Education Services,103,Supplies and Services,504,Expenses,5030,Revenue,NON INFLUENCIBLE.NON INFLUENCIBLE
02-SEP-2022,7014148,250,GIFTS VOUCHERS,402468,Corporate Strategy,Children's & Education Services,103,Supplies and Services,504,Expenses,5030,Revenue,NON INFLUENCIBLE.NON INFLUENCIBLE
02-SEP-2022,7014149,1179,PRO CATERING EQUIPMENT,402231,Commissioning & Asset Management,Children's & Education Services,103,Supplies and Services,504,Equipment,5023,Revenue,CATERING.BANQUET & CATERING
02-SEP-2022,7014150,-0.01,DRI,401967,"Health, Education, Care and Safeguarding",Children's & Education Services,103,Supplies and Services,504,Miscellaneous Expenses,5034,Revenue,ICT.SOFTWARE
02-SEP-2022,7014150,25.93,DRI,401967,"Health, Education, Care and Safeguarding",Children's & Education Services,103,Supplies and Services,504,Miscellaneous Expenses,5034,Revenue,ICT.SOFTWARE
02-SEP-2022,7014150,149.99,DRI,401967,"Health, Education, Care and Safeguarding",Children's & Education Services,103,Supplies and Services,504,Miscellaneous Expenses,5034,Revenue,ICT.SOFTWARE
02-SEP-2022,7014151,0.01,VUE CINEMAS,401845,"Health, Education, Care and Safeguarding",Children's & Education Services,103,Supplies and Services,504,Miscellaneous Expenses,5034,Revenue,NON INFLUENCIBLE.NON INFLUENCIBLE
02-SEP-2022,7014151,17.47,VUE CINEMAS,401845,"Health, Education, Care and Safeguarding",Children's & Education Services,103,Supplies and Services,504,Miscellaneous Expenses,5034,Revenue,NON INFLUENCIBLE.NON INFLUENCIBLE
02-SEP-2022,7014151,24.95,VUE CINEMAS,401845,"Health, Education, Care and Safeguarding",Children's & Education Services,103,Supplies and Services,504,Miscellaneous Expenses,5034,Revenue,NON INFLUENCIBLE.NON INFLUENCIBLE
02-SEP-2022,7014152,-8.33,ETSY,401830,"Health, Education, Care and Safeguarding",Children's & Education Services,103,Supplies and Services,504,Equipment,5023,Revenue,NON INFLUENCIBLE.NON INFLUENCIBLE
02-SEP-2022,7014152,42.92,ETSY,401830,"Health, Education, Care and Safeguarding",Children's & Education Services,103,Supplies and Services,504,Miscellaneous Expenses,5034,Revenue,NON INFLUENCIBLE.NON INFLUENCIBLE
02-SEP-2022,7014153,265.83,CYBERMARKET LIMITED,367457,Regeneration & Economic Development,Cultural & Related Services,104,Supplies and Services,504,Miscellaneous Expenses,5034,Revenue,
02-SEP-2022,7014154,16.67,AIRBOX BOUNCE,401703,"Health, Education, Care and Safeguarding",Children's & Education Services,103,Supplies and Services,504,Miscellaneous Expenses,5034,Revenue,NON INFLUENCIBLE.NON INFLUENCIBLE
02-SEP-2022,7014154,16.67,AIRBOX BOUNCE,401703,"Health, Education, Care and Safeguarding",Children's & Education Services,103,Supplies and Services,504,Miscellaneous Expenses,5034,Revenue,NON INFLUENCIBLE.NON INFLUENCIBLE
02-SEP-2022,7014155,214.15,MAILCHIMP,401698,Corporate Strategy,Central Services,102,Supplies and Services,504,"Printing, Stationery and General Office Expenses",5026,Revenue,NON INFLUENCIBLE.NON INFLUENCIBLE
02-SEP-2022,7014155,217.41,MAILCHIMP,401698,Corporate Strategy,Central Services,102,Supplies and Services,504,"Printing, Stationery and General Office Expenses",5026,Revenue,NON INFLUENCIBLE.NON INFLUENCIBLE
02-SEP-2022,7014156,7.99,UNLIMITED,401692,"Health, Education, Care and Safeguarding",Children's & Education Services,103,Supplies and Services,504,Miscellaneous Expenses,5034,Revenue,NON INFLUENCIBLE.NON INFLUENCIBLE
02-SEP-2022,7014157,261.57,POLAR KRUSH,401685,Local Environmental Services,Adult Social Care,101,Supplies and Services,504,Equipment,5023,Revenue,NON INFLUENCIBLE.NON INFLUENCIBLE
02-SEP-2022,7014157,261.57,POLAR KRUSH,401685,Local Environmental Services,Cultural & Related Services,104,Supplies and Services,504,Equipment,5023,Revenue,NON INFLUENCIBLE.NON INFLUENCIBLE
02-SEP-2022,7014158,221.67,GRAVEL MASTER,401451,Local Environmental Services,Cultural & Related Services,104,Supplies and Services,504,Equipment,5023,Revenue,NON INFLUENCIBLE.NON INFLUENCIBLE
02-SEP-2022,7014159,0.01,SAINSBURYS,391677,"Health, Education, Care and Safeguarding",Children's & Education Services,103,Supplies and Services,504,Equipment,5023,Revenue,CATERING.FOOD & BEVERAGES
02-SEP-2022,7014159,12.57,SAINSBURYS,391677,"Health, Education, Care and Safeguarding",Children's & Education Services,103,Supplies and Services,504,Equipment,5023,Revenue,CATERING.FOOD & BEVERAGES
02-SEP-2022,7014159,2.92,SAINSBURYS,391677,Regeneration & Economic Development,Cultural & Related Services,104,Supplies and Services,504,Miscellaneous Expenses,5034,Revenue,CATERING.FOOD & BEVERAGES
02-SEP-2022,7014160,179.88,TSO HOST,401173,Regeneration & Economic Development,Planning Services ,110,Supplies and Services,504,"Printing, Stationery and General Office Expenses",5026,Revenue,SUBSCRIPTIONS & PUBLICATIONS.MEMBERSHIPS
02-SEP-2022,7014161,2,NORTH TYNESIDE GENERAL HOSPITAL,274589,"Health, Education, Care and Safeguarding",Children's & Education Services,103,Supplies and Services,504,Expenses,5030,Revenue,NON INFLUENCIBLE.DOCTORS/MEDICAL FEES
02-SEP-2022,7014162,18.99,ROYAL MAIL - PARCEL FORCE,202105,Regeneration & Economic Development,Cultural & Related Services,104,Supplies and Services,504,Miscellaneous Expenses,5034,Revenue,MAIL SERVICES.POSTAGE
02-SEP-2022,7014163,87.8,PRINTER INKS,400598,"Health, Education, Care and Safeguarding",Children's & Education Services,103,Supplies and Services,504,Equipment,5023,Revenue,PRINTING SERVICES.PRINTING
02-SEP-2022,7014164,166.67,THEMEL ROSEGUES,400318,General Fund Housing,Housing Services,108,Third Party Payments,505,Private Contractors,5042,Revenue,HUMAN RESOURCES.ACCOMMODATION
02-SEP-2022,7014164,204.17,THEMEL ROSEGUES,400318,General Fund Housing,Housing Services,108,Third Party Payments,505,Private Contractors,5042,Revenue,HUMAN RESOURCES.ACCOMMODATION
02-SEP-2022,7014164,204.17,THEMEL ROSEGUES,400318,General Fund Housing,Housing Services,108,Third Party Payments,505,Private Contractors,5042,Revenue,HUMAN RESOURCES.ACCOMMODATION
02-SEP-2022,7014164,233.33,THEMEL ROSEGUES,400318,General Fund Housing,Housing Services,108,Third Party Payments,505,Private Contractors,5042,Revenue,HUMAN RESOURCES.ACCOMMODATION
02-SEP-2022,7014164,233.33,THEMEL ROSEGUES,400318,General Fund Housing,Housing Services,108,Third Party Payments,505,Private Contractors,5042,Revenue,HUMAN RESOURCES.ACCOMMODATION
02-SEP-2022,7014164,250,THEMEL ROSEGUES,400318,General Fund Housing,Housing Services,108,Third Party Payments,505,Private Contractors,5042,Revenue,HUMAN RESOURCES.ACCOMMODATION
02-SEP-2022,7014164,395.83,THEMEL ROSEGUES,400318,General Fund Housing,Housing Services,108,Third Party Payments,505,Private Contractors,5042,Revenue,HUMAN RESOURCES.ACCOMMODATION
02-SEP-2022,7014164,425,THEMEL ROSEGUES,400318,General Fund Housing,Housing Services,108,Third Party Payments,505,Private Contractors,5042,Revenue,HUMAN RESOURCES.ACCOMMODATION
02-SEP-2022,7014164,437.5,THEMEL ROSEGUES,400318,General Fund Housing,Housing Services,108,Third Party Payments,505,Private Contractors,5042,Revenue,HUMAN RESOURCES.ACCOMMODATION
02-SEP-2022,7014164,437.5,THEMEL ROSEGUES,400318,General Fund Housing,Housing Services,108,Third Party Payments,505,Private Contractors,5042,Revenue,HUMAN RESOURCES.ACCOMMODATION
02-SEP-2022,7014165,-1.74,EBAY,400312,"Health, Education, Care and Safeguarding",Children's & Education Services,103,Supplies and Services,504,Equipment,5023,Revenue,ICT.ONLINE SERVICES
02-SEP-2022,7014165,1.74,EBAY,400312,"Health, Education, Care and Safeguarding",Children's & Education Services,103,Supplies and Services,504,Equipment,5023,Revenue,ICT.ONLINE SERVICES
02-SEP-2022,7014166,41.67,SUM UP,400305,"Health, Education, Care and Safeguarding",Children's & Education Services,103,Third Party Payments,505,Other Establishments,5041,Revenue,ICT.HARDWARE
02-SEP-2022,7014166,49,SUM UP,400305,"Health, Education, Care and Safeguarding",Children's & Education Services,103,Third Party Payments,505,Other Establishments,5041,Revenue,ICT.HARDWARE
02-SEP-2022,7014167,50,HILL HEAD FARM,400123,Corporate Strategy,Children's & Education Services,103,Supplies and Services,504,Catering,5024,Revenue,HORTICULTURAL.TOOLS & EQUIPMENT
02-SEP-2022,7014168,-0.01,RAMANDA ENCORE,399987,General Fund Housing,Housing Services,108,Third Party Payments,505,Private Contractors,5042,Revenue,HUMAN RESOURCES.ACCOMMODATION
02-SEP-2022,7014168,0.01,RAMANDA ENCORE,399987,General Fund Housing,Housing Services,108,Third Party Payments,505,Private Contractors,5042,Revenue,HUMAN RESOURCES.ACCOMMODATION
02-SEP-2022,7014168,0.01,RAMANDA ENCORE,399987,General Fund Housing,Housing Services,108,Third Party Payments,505,Private Contractors,5042,Revenue,HUMAN RESOURCES.ACCOMMODATION
02-SEP-2022,7014168,164.28,RAMANDA ENCORE,399987,General Fund Housing,Housing Services,108,Third Party Payments,505,Private Contractors,5042,Revenue,HUMAN RESOURCES.ACCOMMODATION
02-SEP-2022,7014168,189.58,RAMANDA ENCORE,399987,General Fund Housing,Housing Services,108,Third Party Payments,505,Private Contractors,5042,Revenue,HUMAN RESOURCES.ACCOMMODATION
02-SEP-2022,7014168,335.51,RAMANDA ENCORE,399987,General Fund Housing,Housing Services,108,Third Party Payments,505,Private Contractors,5042,Revenue,HUMAN RESOURCES.ACCOMMODATION
02-SEP-2022,7014168,421.05,RAMANDA ENCORE,399987,General Fund Housing,Housing Services,108,Third Party Payments,505,Private Contractors,5042,Revenue,HUMAN RESOURCES.ACCOMMODATION
02-SEP-2022,7014168,497,RAMANDA ENCORE,399987,General Fund Housing,Housing Services,108,Third Party Payments,505,Private Contractors,5042,Revenue,HUMAN RESOURCES.ACCOMMODATION
02-SEP-2022,7014168,516.7,RAMANDA ENCORE,399987,General Fund Housing,Housing Services,108,Third Party Payments,505,Private Contractors,5042,Revenue,HUMAN RESOURCES.ACCOMMODATION
02-SEP-2022,7014168,520.04,RAMANDA ENCORE,399987,General Fund Housing,Housing Services,108,Third Party Payments,505,Private Contractors,5042,Revenue,HUMAN RESOURCES.ACCOMMODATION
02-SEP-2022,7014168,524.99,RAMANDA ENCORE,399987,General Fund Housing,Housing Services,108,Third Party Payments,505,Private Contractors,5042,Revenue,HUMAN RESOURCES.ACCOMMODATION
02-SEP-2022,7014168,535.38,RAMANDA ENCORE,399987,General Fund Housing,Housing Services,108,Third Party Payments,505,Private Contractors,5042,Revenue,HUMAN RESOURCES.ACCOMMODATION
02-SEP-2022,7014168,535.39,RAMANDA ENCORE,399987,General Fund Housing,Housing Services,108,Third Party Payments,505,Private Contractors,5042,Revenue,HUMAN RESOURCES.ACCOMMODATION
02-SEP-2022,7014168,565.42,RAMANDA ENCORE,399987,General Fund Housing,Housing Services,108,Third Party Payments,505,Private Contractors,5042,Revenue,HUMAN RESOURCES.ACCOMMODATION
02-SEP-2022,7014168,565.52,RAMANDA ENCORE,399987,General Fund Housing,Housing Services,108,Third Party Payments,505,Private Contractors,5042,Revenue,HUMAN RESOURCES.ACCOMMODATION
02-SEP-2022,7014168,573.67,RAMANDA ENCORE,399987,General Fund Housing,Housing Services,108,Third Party Payments,505,Private Contractors,5042,Revenue,HUMAN RESOURCES.ACCOMMODATION
02-SEP-2022,7014168,577.79,RAMANDA ENCORE,399987,General Fund Housing,Housing Services,108,Third Party Payments,505,Private Contractors,5042,Revenue,HUMAN RESOURCES.ACCOMMODATION
02-SEP-2022,7014168,662.77,RAMANDA ENCORE,399987,General Fund Housing,Housing Services,108,Third Party Payments,505,Private Contractors,5042,Revenue,HUMAN RESOURCES.ACCOMMODATION
02-SEP-2022,7014169,81.67,GRAINGER HOTEL,399985,General Fund Housing,Housing Services,108,Third Party Payments,505,Private Contractors,5042,Revenue,HUMAN RESOURCES.ACCOMMODATION
02-SEP-2022,7014169,95,GRAINGER HOTEL,399985,General Fund Housing,Housing Services,108,Third Party Payments,505,Private Contractors,5042,Revenue,HUMAN RESOURCES.ACCOMMODATION
02-SEP-2022,7014169,325,GRAINGER HOTEL,399985,General Fund Housing,Housing Services,108,Third Party Payments,505,Private Contractors,5042,Revenue,HUMAN RESOURCES.ACCOMMODATION
02-SEP-2022,7014169,325,GRAINGER HOTEL,399985,General Fund Housing,Housing Services,108,Third Party Payments,505,Private Contractors,5042,Revenue,HUMAN RESOURCES.ACCOMMODATION
02-SEP-2022,7014169,345.83,GRAINGER HOTEL,399985,General Fund Housing,Housing Services,108,Third Party Payments,505,Private Contractors,5042,Revenue,HUMAN RESOURCES.ACCOMMODATION
02-SEP-2022,7014169,466.67,GRAINGER HOTEL,399985,General Fund Housing,Housing Services,108,Third Party Payments,505,Private Contractors,5042,Revenue,HUMAN RESOURCES.ACCOMMODATION
02-SEP-2022,7014169,466.67,GRAINGER HOTEL,399985,General Fund Housing,Housing Services,108,Third Party Payments,505,Private Contractors,5042,Revenue,HUMAN RESOURCES.ACCOMMODATION
02-SEP-2022,7014170,12.54,COOPLANDS BAKERY,399635,"Health, Education, Care and Safeguarding",Children's & Education Services,103,Supplies and Services,504,Equipment,5023,Revenue,CATERING.BANQUET & CATERING
02-SEP-2022,7014171,179,MAGIX SOFTWARE,399533,Corporate Strategy,Central Services,102,Supplies and Services,504,"Printing, Stationery and General Office Expenses",5026,Revenue,ICT.SOFTWARE
02-SEP-2022,7014172,166.66,SHARK NINJA,399491,"Health, Education, Care and Safeguarding",Children's & Education Services,103,Supplies and Services,504,Equipment,5023,Revenue,CATERING.EQUIPMENT & UTENSILS
02-SEP-2022,7014173,45.96,SHIKARA,399368,"Health, Education, Care and Safeguarding",Children's & Education Services,103,Supplies and Services,504,Equipment,5023,Revenue,CATERING.FOOD & BEVERAGES
02-SEP-2022,7014174,220,UTTER CLUTTER,399205,"Health, Education, Care and Safeguarding",Children's & Education Services,103,Supplies and Services,504,Equipment,5023,Revenue,FURNITURE.COMMERCIAL
02-SEP-2022,7014175,5.83,ONE BELOW,399117,Corporate Strategy,Children's & Education Services,103,Supplies and Services,504,Expenses,5030,Revenue,CATERING.FOOD & BEVERAGES
02-SEP-2022,7014175,16.83,ONE BELOW,399117,"Sport, Leisure & Community",Cultural & Related Services,104,Supplies and Services,504,Equipment,5023,Revenue,CATERING.FOOD & BEVERAGES
02-SEP-2022,7014176,37.58,NEXT RETAIL,378237,"Health, Education, Care and Safeguarding",Children's & Education Services,103,Supplies and Services,504,Equipment,5023,Revenue,NON INFLUENCIBLE.NON INFLUENCIBLE
02-SEP-2022,7014177,40,ARCHERY GB MEMBERSHIP,398947,"Sport, Leisure & Community",Cultural & Related Services,104,Supplies and Services,504,Equipment,5023,Revenue,HUMAN RESOURCES.TRAINING & CONFERENCES
02-SEP-2022,7014178,107,ROCKSHOPWHOLESALE.CO.UK,398881,"Health, Education, Care and Safeguarding",Children's & Education Services,103,Supplies and Services,504,Equipment,5023,Revenue,EDUCATIONAL SUPPLIES.ARTS & CRAFTS
02-SEP-2022,7014179,13.92,THE NORD BOTTLE SHOP,398716,Regeneration & Economic Development,Cultural & Related Services,104,Supplies and Services,504,Miscellaneous Expenses,5034,Revenue,CATERING.FOOD & BEVERAGES
02-SEP-2022,7014180,75.93,MANOMANO.CO.UK,398715,"Health, Education, Care and Safeguarding",Children's & Education Services,103,Supplies and Services,504,Equipment,5023,Revenue,BUILDING MATERIALS.GENERAL MATERIALS
02-SEP-2022,7014181,37.5,MAJESTIC WINE WAREHOUSE LTD,338613,Regeneration & Economic Development,Cultural & Related Services,104,Supplies and Services,504,Miscellaneous Expenses,5034,Revenue,
02-SEP-2022,7014182,66.03,ATLASSIAN,395058,Resources,Central Services,102,Supplies and Services,504,"Printing, Stationery and General Office Expenses",5026,Revenue,ICT.SOFTWARE
02-SEP-2022,7014183,464,AIRBNB,397725,"Health, Education, Care and Safeguarding",Children's & Education Services,103,Third Party Payments,505,Private Contractors,5042,Revenue,HUMAN RESOURCES.ACCOMMODATION
02-SEP-2022,7014184,6.24,CHIRTON MAIN SERVICE,397459,Local Environmental Services,Cultural & Related Services,104,Transport,503,Direct Transport Costs,5016,Revenue,BUILDING MATERIALS.GENERAL MATERIALS
02-SEP-2022,7014184,16.67,CHIRTON MAIN SERVICE,397459,Local Environmental Services,Cultural & Related Services,104,Transport,503,Direct Transport Costs,5016,Revenue,BUILDING MATERIALS.GENERAL MATERIALS
02-SEP-2022,7014184,56.51,CHIRTON MAIN SERVICE,397459,Local Environmental Services,Cultural & Related Services,104,Transport,503,Direct Transport Costs,5016,Revenue,BUILDING MATERIALS.GENERAL MATERIALS
02-SEP-2022,7014184,57.24,CHIRTON MAIN SERVICE,397459,Local Environmental Services,Cultural & Related Services,104,Transport,503,Direct Transport Costs,5016,Revenue,BUILDING MATERIALS.GENERAL MATERIALS
02-SEP-2022,7014184,66.55,CHIRTON MAIN SERVICE,397459,Local Environmental Services,Cultural & Related Services,104,Transport,503,Direct Transport Costs,5016,Revenue,BUILDING MATERIALS.GENERAL MATERIALS
02-SEP-2022,7014185,0.01,AWS EMEA,397215,Resources,Central Services,102,Supplies and Services,504,"Printing, Stationery and General Office Expenses",5026,Revenue,ADVERTISING & MARKETING.EVENTS & PROMOTIONS
02-SEP-2022,7014185,47.67,AWS EMEA,397215,Resources,Central Services,102,Supplies and Services,504,"Printing, Stationery and General Office Expenses",5026,Revenue,ADVERTISING & MARKETING.EVENTS & PROMOTIONS
02-SEP-2022,7014186,249.81,1PASSWORD,397081,Resources,Central Services,102,Supplies and Services,504,"Printing, Stationery and General Office Expenses",5026,Revenue,ICT.SOFTWARE
02-SEP-2022,7014187,2.12,BUNZL UK LTD T/A BUNZL CLEANING & HYGIENE SUPPLIES,027747,Commissioning & Asset Management,Children's & Education Services,103,Supplies and Services,504,Equipment,5023,Revenue,CLEANING & JANITORIAL.CLEANING MATERIALS
02-SEP-2022,7014187,2.4,BUNZL UK LTD T/A BUNZL CLEANING & HYGIENE SUPPLIES,027747,Commissioning & Asset Management,Children's & Education Services,103,Supplies and Services,504,Equipment,5023,Revenue,CLEANING & JANITORIAL.CLEANING MATERIALS
02-SEP-2022,7014187,3.97,BUNZL UK LTD T/A BUNZL CLEANING & HYGIENE SUPPLIES,027747,Commissioning & Asset Management,Children's & Education Services,103,Supplies and Services,504,Equipment,5023,Revenue,CLEANING & JANITORIAL.CLEANING MATERIALS
02-SEP-2022,7014187,5.76,BUNZL UK LTD T/A BUNZL CLEANING & HYGIENE SUPPLIES,027747,Commissioning & Asset Management,Children's & Education Services,103,Supplies and Services,504,Equipment,5023,Revenue,CLEANING & JANITORIAL.CLEANING MATERIALS
02-SEP-2022,7014187,12.2,BUNZL UK LTD T/A BUNZL CLEANING & HYGIENE SUPPLIES,027747,Commissioning & Asset Management,Children's & Education Services,103,Supplies and Services,504,Equipment,5023,Revenue,CLEANING & JANITORIAL.CLEANING MATERIALS
02-SEP-2022,7014187,12.86,BUNZL UK LTD T/A BUNZL CLEANING & HYGIENE SUPPLIES,027747,Commissioning & Asset Management,Children's & Education Services,103,Supplies and Services,504,Equipment,5023,Revenue,CLEANING & JANITORIAL.CLEANING MATERIALS
02-SEP-2022,7014187,13.95,BUNZL UK LTD T/A BUNZL CLEANING & HYGIENE SUPPLIES,027747,Commissioning & Asset Management,Children's & Education Services,103,Supplies and Services,504,Equipment,5023,Revenue,CLEANING & JANITORIAL.CLEANING MATERIALS
02-SEP-2022,7014187,23.17,BUNZL UK LTD T/A BUNZL CLEANING & HYGIENE SUPPLIES,027747,Commissioning & Asset Management,Children's & Education Services,103,Supplies and Services,504,Equipment,5023,Revenue,CLEANING & JANITORIAL.CLEANING MATERIALS
02-SEP-2022,7014187,2.88,BUNZL UK LTD T/A BUNZL CLEANING & HYGIENE SUPPLIES,027747,Commissioning & Asset Management,Children's & Education Services,103,Supplies and Services,504,Equipment,5023,Revenue,CLEANING & JANITORIAL.CLEANING MATERIALS
02-SEP-2022,7014187,9.3,BUNZL UK LTD T/A BUNZL CLEANING & HYGIENE SUPPLIES,027747,Commissioning & Asset Management,Children's & Education Services,103,Supplies and Services,504,Equipment,5023,Revenue,CLEANING & JANITORIAL.CLEANING MATERIALS
02-SEP-2022,7014187,9.74,BUNZL UK LTD T/A BUNZL CLEANING & HYGIENE SUPPLIES,027747,Commissioning & Asset Management,Children's & Education Services,103,Supplies and Services,504,Equipment,5023,Revenue,CLEANING & JANITORIAL.CLEANING MATERIALS
02-SEP-2022,7014187,9.74,BUNZL UK LTD T/A BUNZL CLEANING & HYGIENE SUPPLIES,027747,Commissioning & Asset Management,Children's & Education Services,103,Supplies and Services,504,Equipment,5023,Revenue,CLEANING & JANITORIAL.CLEANING MATERIALS
02-SEP-2022,7014187,9.74,BUNZL UK LTD T/A BUNZL CLEANING & HYGIENE SUPPLIES,027747,Commissioning & Asset Management,Children's & Education Services,103,Supplies and Services,504,Equipment,5023,Revenue,CLEANING & JANITORIAL.CLEANING MATERIALS
02-SEP-2022,7014187,10.1,BUNZL UK LTD T/A BUNZL CLEANING & HYGIENE SUPPLIES,027747,Commissioning & Asset Management,Children's & Education Services,103,Supplies and Services,504,Equipment,5023,Revenue,CLEANING & JANITORIAL.CLEANING MATERIALS
02-SEP-2022,7014187,11.45,BUNZL UK LTD T/A BUNZL CLEANING & HYGIENE SUPPLIES,027747,Commissioning & Asset Management,Children's & Education Services,103,Supplies and Services,504,Equipment,5023,Revenue,CLEANING & JANITORIAL.CLEANING MATERIALS
02-SEP-2022,7014187,39.1,BUNZL UK LTD T/A BUNZL CLEANING & HYGIENE SUPPLIES,027747,Commissioning & Asset Management,Children's & Education Services,103,Supplies and Services,504,Equipment,5023,Revenue,CLEANING & JANITORIAL.CLEANING MATERIALS
02-SEP-2022,7014187,1.38,BUNZL UK LTD T/A BUNZL CLEANING & HYGIENE SUPPLIES,027747,Commissioning & Asset Management,Children's & Education Services,103,Supplies and Services,504,Equipment,5023,Revenue,CLEANING & JANITORIAL.CLEANING MATERIALS
02-SEP-2022,7014187,2.14,BUNZL UK LTD T/A BUNZL CLEANING & HYGIENE SUPPLIES,027747,Commissioning & Asset Management,Children's & Education Services,103,Supplies and Services,504,Equipment,5023,Revenue,CLEANING & JANITORIAL.CLEANING MATERIALS
02-SEP-2022,7014187,2.88,BUNZL UK LTD T/A BUNZL CLEANING & HYGIENE SUPPLIES,027747,Commissioning & Asset Management,Children's & Education Services,103,Supplies and Services,504,Equipment,5023,Revenue,CLEANING & JANITORIAL.CLEANING MATERIALS
02-SEP-2022,7014187,4.87,BUNZL UK LTD T/A BUNZL CLEANING & HYGIENE SUPPLIES,027747,Commissioning & Asset Management,Children's & Education Services,103,Supplies and Services,504,Equipment,5023,Revenue,CLEANING & JANITORIAL.CLEANING MATERIALS
02-SEP-2022,7014187,6.35,BUNZL UK LTD T/A BUNZL CLEANING & HYGIENE SUPPLIES,027747,Commissioning & Asset Management,Children's & Education Services,103,Supplies and Services,504,Equipment,5023,Revenue,CLEANING & JANITORIAL.CLEANING MATERIALS
02-SEP-2022,7014187,9.24,BUNZL UK LTD T/A BUNZL CLEANING & HYGIENE SUPPLIES,027747,Commissioning & Asset Management,Children's & Education Services,103,Supplies and Services,504,Equipment,5023,Revenue,CLEANING & JANITORIAL.CLEANING MATERIALS
02-SEP-2022,7014187,9.74,BUNZL UK LTD T/A BUNZL CLEANING & HYGIENE SUPPLIES,027747,Commissioning & Asset Management,Children's & Education Services,103,Supplies and Services,504,Equipment,5023,Revenue,CLEANING & JANITORIAL.CLEANING MATERIALS
02-SEP-2022,7014187,10.1,BUNZL UK LTD T/A BUNZL CLEANING & HYGIENE SUPPLIES,027747,Commissioning & Asset Management,Children's & Education Services,103,Supplies and Services,504,Equipment,5023,Revenue,CLEANING & JANITORIAL.CLEANING MATERIALS
02-SEP-2022,7014187,14.61,BUNZL UK LTD T/A BUNZL CLEANING & HYGIENE SUPPLIES,027747,Commissioning & Asset Management,Children's & Education Services,103,Supplies and Services,504,Equipment,5023,Revenue,CLEANING & JANITORIAL.CLEANING MATERIALS
02-SEP-2022,7014187,14.61,BUNZL UK LTD T/A BUNZL CLEANING & HYGIENE SUPPLIES,027747,Commissioning & Asset Management,Children's & Education Services,103,Supplies and Services,504,Equipment,5023,Revenue,CLEANING & JANITORIAL.CLEANING MATERIALS
02-SEP-2022,7014187,25.72,BUNZL UK LTD T/A BUNZL CLEANING & HYGIENE SUPPLIES,027747,Commissioning & Asset Management,Children's & Education Services,103,Supplies and Services,504,Equipment,5023,Revenue,CLEANING & JANITORIAL.CLEANING MATERIALS
02-SEP-2022,7014187,34.35,BUNZL UK LTD T/A BUNZL CLEANING & HYGIENE SUPPLIES,027747,Commissioning & Asset Management,Children's & Education Services,103,Supplies and Services,504,Equipment,5023,Revenue,CLEANING & JANITORIAL.CLEANING MATERIALS
02-SEP-2022,7014187,2.72,BUNZL UK LTD T/A BUNZL CLEANING & HYGIENE SUPPLIES,027747,Commissioning & Asset Management,Children's & Education Services,103,Supplies and Services,504,Equipment,5023,Revenue,CLEANING & JANITORIAL.CLEANING MATERIALS
02-SEP-2022,7014187,4.28,BUNZL UK LTD T/A BUNZL CLEANING & HYGIENE SUPPLIES,027747,Commissioning & Asset Management,Children's & Education Services,103,Supplies and Services,504,Equipment,5023,Revenue,CLEANING & JANITORIAL.CLEANING MATERIALS
02-SEP-2022,7014187,4.62,BUNZL UK LTD T/A BUNZL CLEANING & HYGIENE SUPPLIES,027747,Commissioning & Asset Management,Children's & Education Services,103,Supplies and Services,504,Equipment,5023,Revenue,CLEANING & JANITORIAL.CLEANING MATERIALS
02-SEP-2022,7014187,5.92,BUNZL UK LTD T/A BUNZL CLEANING & HYGIENE SUPPLIES,027747,Commissioning & Asset Management,Children's & Education Services,103,Supplies and Services,504,Equipment,5023,Revenue,CLEANING & JANITORIAL.CLEANING MATERIALS
02-SEP-2022,7014187,6.56,BUNZL UK LTD T/A BUNZL CLEANING & HYGIENE SUPPLIES,027747,Commissioning & Asset Management,Children's & Education Services,103,Supplies and Services,504,Equipment,5023,Revenue,CLEANING & JANITORIAL.CLEANING MATERIALS
02-SEP-2022,7014187,11.45,BUNZL UK LTD T/A BUNZL CLEANING & HYGIENE SUPPLIES,027747,Commissioning & Asset Management,Children's & Education Services,103,Supplies and Services,504,Equipment,5023,Revenue,CLEANING & JANITORIAL.CLEANING MATERIALS
02-SEP-2022,7014187,16.88,BUNZL UK LTD T/A BUNZL CLEANING & HYGIENE SUPPLIES,027747,Commissioning & Asset Management,Children's & Education Services,103,Supplies and Services,504,Equipment,5023,Revenue,CLEANING & JANITORIAL.CLEANING MATERIALS
02-SEP-2022,7014187,16.88,BUNZL UK LTD T/A BUNZL CLEANING & HYGIENE SUPPLIES,027747,Commissioning & Asset Management,Children's & Education Services,103,Supplies and Services,504,Equipment,5023,Revenue,CLEANING & JANITORIAL.CLEANING MATERIALS
02-SEP-2022,7014187,16.88,BUNZL UK LTD T/A BUNZL CLEANING & HYGIENE SUPPLIES,027747,Commissioning & Asset Management,Children's & Education Services,103,Supplies and Services,504,Equipment,5023,Revenue,CLEANING & JANITORIAL.CLEANING MATERIALS
02-SEP-2022,7014187,17.82,BUNZL UK LTD T/A BUNZL CLEANING & HYGIENE SUPPLIES,027747,Commissioning & Asset Management,Children's & Education Services,103,Supplies and Services,504,Equipment,5023,Revenue,CLEANING & JANITORIAL.CLEANING MATERIALS
02-SEP-2022,7014187,23.17,BUNZL UK LTD T/A BUNZL CLEANING & HYGIENE SUPPLIES,027747,Commissioning & Asset Management,Children's & Education Services,103,Supplies and Services,504,Equipment,5023,Revenue,CLEANING & JANITORIAL.CLEANING MATERIALS
02-SEP-2022,7014187,1.44,BUNZL UK LTD T/A BUNZL CLEANING & HYGIENE SUPPLIES,027747,Commissioning & Asset Management,Children's & Education Services,103,Supplies and Services,504,Equipment,5023,Revenue,CLEANING & JANITORIAL.CLEANING MATERIALS
02-SEP-2022,7014187,1.58,BUNZL UK LTD T/A BUNZL CLEANING & HYGIENE SUPPLIES,027747,Commissioning & Asset Management,Children's & Education Services,103,Supplies and Services,504,Equipment,5023,Revenue,CLEANING & JANITORIAL.CLEANING MATERIALS
02-SEP-2022,7014187,6.99,BUNZL UK LTD T/A BUNZL CLEANING & HYGIENE SUPPLIES,027747,Commissioning & Asset Management,Children's & Education Services,103,Supplies and Services,504,Equipment,5023,Revenue,CLEANING & JANITORIAL.CLEANING MATERIALS
02-SEP-2022,7014187,11.84,BUNZL UK LTD T/A BUNZL CLEANING & HYGIENE SUPPLIES,027747,Commissioning & Asset Management,Children's & Education Services,103,Supplies and Services,504,Equipment,5023,Revenue,CLEANING & JANITORIAL.CLEANING MATERIALS
02-SEP-2022,7014187,15.54,BUNZL UK LTD T/A BUNZL CLEANING & HYGIENE SUPPLIES,027747,Commissioning & Asset Management,Children's & Education Services,103,Supplies and Services,504,Equipment,5023,Revenue,CLEANING & JANITORIAL.CLEANING MATERIALS
02-SEP-2022,7014187,5.58,BUNZL UK LTD T/A BUNZL CLEANING & HYGIENE SUPPLIES,027747,Commissioning & Asset Management,Children's & Education Services,103,Supplies and Services,504,Equipment,5023,Revenue,CLEANING & JANITORIAL.CLEANING MATERIALS
02-SEP-2022,7014187,9.24,BUNZL UK LTD T/A BUNZL CLEANING & HYGIENE SUPPLIES,027747,Commissioning & Asset Management,Children's & Education Services,103,Supplies and Services,504,Equipment,5023,Revenue,CLEANING & JANITORIAL.CLEANING MATERIALS
02-SEP-2022,7014187,9.74,BUNZL UK LTD T/A BUNZL CLEANING & HYGIENE SUPPLIES,027747,Commissioning & Asset Management,Children's & Education Services,103,Supplies and Services,504,Equipment,5023,Revenue,CLEANING & JANITORIAL.CLEANING MATERIALS
02-SEP-2022,7014187,14.61,BUNZL UK LTD T/A BUNZL CLEANING & HYGIENE SUPPLIES,027747,Commissioning & Asset Management,Children's & Education Services,103,Supplies and Services,504,Equipment,5023,Revenue,CLEANING & JANITORIAL.CLEANING MATERIALS
02-SEP-2022,7014187,14.61,BUNZL UK LTD T/A BUNZL CLEANING & HYGIENE SUPPLIES,027747,Commissioning & Asset Management,Children's & Education Services,103,Supplies and Services,504,Equipment,5023,Revenue,CLEANING & JANITORIAL.CLEANING MATERIALS
02-SEP-2022,7014187,17.78,BUNZL UK LTD T/A BUNZL CLEANING & HYGIENE SUPPLIES,027747,Commissioning & Asset Management,Children's & Education Services,103,Supplies and Services,504,Equipment,5023,Revenue,CLEANING & JANITORIAL.CLEANING MATERIALS
02-SEP-2022,7014187,20.2,BUNZL UK LTD T/A BUNZL CLEANING & HYGIENE SUPPLIES,027747,Commissioning & Asset Management,Children's & Education Services,103,Supplies and Services,504,Equipment,5023,Revenue,CLEANING & JANITORIAL.CLEANING MATERIALS
02-SEP-2022,7014187,20.72,BUNZL UK LTD T/A BUNZL CLEANING & HYGIENE SUPPLIES,027747,Commissioning & Asset Management,Children's & Education Services,103,Supplies and Services,504,Equipment,5023,Revenue,CLEANING & JANITORIAL.CLEANING MATERIALS
02-SEP-2022,7014187,29.22,BUNZL UK LTD T/A BUNZL CLEANING & HYGIENE SUPPLIES,027747,Commissioning & Asset Management,Children's & Education Services,103,Supplies and Services,504,Equipment,5023,Revenue,CLEANING & JANITORIAL.CLEANING MATERIALS
02-SEP-2022,7014187,59.05,BUNZL UK LTD T/A BUNZL CLEANING & HYGIENE SUPPLIES,027747,Commissioning & Asset Management,Children's & Education Services,103,Supplies and Services,504,Equipment,5023,Revenue,CLEANING & JANITORIAL.CLEANING MATERIALS
02-SEP-2022,7014187,2.96,BUNZL UK LTD T/A BUNZL CLEANING & HYGIENE SUPPLIES,027747,Commissioning & Asset Management,Children's & Education Services,103,Supplies and Services,504,Equipment,5023,Revenue,CLEANING & JANITORIAL.CLEANING MATERIALS
02-SEP-2022,7014187,4.04,BUNZL UK LTD T/A BUNZL CLEANING & HYGIENE SUPPLIES,027747,Commissioning & Asset Management,Children's & Education Services,103,Supplies and Services,504,Equipment,5023,Revenue,CLEANING & JANITORIAL.CLEANING MATERIALS
02-SEP-2022,7014187,18,BUNZL UK LTD T/A BUNZL CLEANING & HYGIENE SUPPLIES,027747,Commissioning & Asset Management,Children's & Education Services,103,Supplies and Services,504,Equipment,5023,Revenue,CLEANING & JANITORIAL.CLEANING MATERIALS
02-SEP-2022,7014187,22.9,BUNZL UK LTD T/A BUNZL CLEANING & HYGIENE SUPPLIES,027747,Commissioning & Asset Management,Children's & Education Services,103,Supplies and Services,504,Equipment,5023,Revenue,CLEANING & JANITORIAL.CLEANING MATERIALS
02-SEP-2022,7014187,2.88,BUNZL UK LTD T/A BUNZL CLEANING & HYGIENE SUPPLIES,027747,Commissioning & Asset Management,Children's & Education Services,103,Supplies and Services,504,Equipment,5023,Revenue,CLEANING & JANITORIAL.CLEANING MATERIALS
02-SEP-2022,7014187,4.62,BUNZL UK LTD T/A BUNZL CLEANING & HYGIENE SUPPLIES,027747,Commissioning & Asset Management,Children's & Education Services,103,Supplies and Services,504,Equipment,5023,Revenue,CLEANING & JANITORIAL.CLEANING MATERIALS
02-SEP-2022,7014187,8.08,BUNZL UK LTD T/A BUNZL CLEANING & HYGIENE SUPPLIES,027747,Commissioning & Asset Management,Children's & Education Services,103,Supplies and Services,504,Equipment,5023,Revenue,CLEANING & JANITORIAL.CLEANING MATERIALS
02-SEP-2022,7014187,9.74,BUNZL UK LTD T/A BUNZL CLEANING & HYGIENE SUPPLIES,027747,Commissioning & Asset Management,Children's & Education Services,103,Supplies and Services,504,Equipment,5023,Revenue,CLEANING & JANITORIAL.CLEANING MATERIALS
02-SEP-2022,7014187,9.74,BUNZL UK LTD T/A BUNZL CLEANING & HYGIENE SUPPLIES,027747,Commissioning & Asset Management,Children's & Education Services,103,Supplies and Services,504,Equipment,5023,Revenue,CLEANING & JANITORIAL.CLEANING MATERIALS
02-SEP-2022,7014187,10.1,BUNZL UK LTD T/A BUNZL CLEANING & HYGIENE SUPPLIES,027747,Commissioning & Asset Management,Children's & Education Services,103,Supplies and Services,504,Equipment,5023,Revenue,CLEANING & JANITORIAL.CLEANING MATERIALS
02-SEP-2022,7014187,11.91,BUNZL UK LTD T/A BUNZL CLEANING & HYGIENE SUPPLIES,027747,Commissioning & Asset Management,Children's & Education Services,103,Supplies and Services,504,Equipment,5023,Revenue,CLEANING & JANITORIAL.CLEANING MATERIALS
02-SEP-2022,7014187,15.24,BUNZL UK LTD T/A BUNZL CLEANING & HYGIENE SUPPLIES,027747,Commissioning & Asset Management,Children's & Education Services,103,Supplies and Services,504,Equipment,5023,Revenue,CLEANING & JANITORIAL.CLEANING MATERIALS
02-SEP-2022,7014187,18,BUNZL UK LTD T/A BUNZL CLEANING & HYGIENE SUPPLIES,027747,Commissioning & Asset Management,Children's & Education Services,103,Supplies and Services,504,Equipment,5023,Revenue,CLEANING & JANITORIAL.CLEANING MATERIALS
02-SEP-2022,7014187,38.58,BUNZL UK LTD T/A BUNZL CLEANING & HYGIENE SUPPLIES,027747,Commissioning & Asset Management,Children's & Education Services,103,Supplies and Services,504,Equipment,5023,Revenue,CLEANING & JANITORIAL.CLEANING MATERIALS
02-SEP-2022,7014187,45.8,BUNZL UK LTD T/A BUNZL CLEANING & HYGIENE SUPPLIES,027747,Commissioning & Asset Management,Children's & Education Services,103,Supplies and Services,504,Equipment,5023,Revenue,CLEANING & JANITORIAL.CLEANING MATERIALS
02-SEP-2022,7014187,1.44,BUNZL UK LTD T/A BUNZL CLEANING & HYGIENE SUPPLIES,027747,Commissioning & Asset Management,Children's & Education Services,103,Supplies and Services,504,Equipment,5023,Revenue,CLEANING & JANITORIAL.CLEANING MATERIALS
02-SEP-2022,7014187,4.87,BUNZL UK LTD T/A BUNZL CLEANING & HYGIENE SUPPLIES,027747,Commissioning & Asset Management,Children's & Education Services,103,Supplies and Services,504,Equipment,5023,Revenue,CLEANING & JANITORIAL.CLEANING MATERIALS
02-SEP-2022,7014187,4.87,BUNZL UK LTD T/A BUNZL CLEANING & HYGIENE SUPPLIES,027747,Commissioning & Asset Management,Children's & Education Services,103,Supplies and Services,504,Equipment,5023,Revenue,CLEANING & JANITORIAL.CLEANING MATERIALS
02-SEP-2022,7014187,4.87,BUNZL UK LTD T/A BUNZL CLEANING & HYGIENE SUPPLIES,027747,Commissioning & Asset Management,Children's & Education Services,103,Supplies and Services,504,Equipment,5023,Revenue,CLEANING & JANITORIAL.CLEANING MATERIALS
02-SEP-2022,7014187,6.81,BUNZL UK LTD T/A BUNZL CLEANING & HYGIENE SUPPLIES,027747,Commissioning & Asset Management,Children's & Education Services,103,Supplies and Services,504,Equipment,5023,Revenue,CLEANING & JANITORIAL.CLEANING MATERIALS
02-SEP-2022,7014187,22.9,BUNZL UK LTD T/A BUNZL CLEANING & HYGIENE SUPPLIES,027747,Commissioning & Asset Management,Children's & Education Services,103,Supplies and Services,504,Equipment,5023,Revenue,CLEANING & JANITORIAL.CLEANING MATERIALS
02-SEP-2022,7014187,25.72,BUNZL UK LTD T/A BUNZL CLEANING & HYGIENE SUPPLIES,027747,Commissioning & Asset Management,Children's & Education Services,103,Supplies and Services,504,Equipment,5023,Revenue,CLEANING & JANITORIAL.CLEANING MATERIALS
02-SEP-2022,7014187,5.76,BUNZL UK LTD T/A BUNZL CLEANING & HYGIENE SUPPLIES,027747,Commissioning & Asset Management,Children's & Education Services,103,Supplies and Services,504,Equipment,5023,Revenue,CLEANING & JANITORIAL.CLEANING MATERIALS
02-SEP-2022,7014187,9.3,BUNZL UK LTD T/A BUNZL CLEANING & HYGIENE SUPPLIES,027747,Commissioning & Asset Management,Children's & Education Services,103,Supplies and Services,504,Equipment,5023,Revenue,CLEANING & JANITORIAL.CLEANING MATERIALS
02-SEP-2022,7014187,10.1,BUNZL UK LTD T/A BUNZL CLEANING & HYGIENE SUPPLIES,027747,Commissioning & Asset Management,Children's & Education Services,103,Supplies and Services,504,Equipment,5023,Revenue,CLEANING & JANITORIAL.CLEANING MATERIALS
02-SEP-2022,7014187,11.84,BUNZL UK LTD T/A BUNZL CLEANING & HYGIENE SUPPLIES,027747,Commissioning & Asset Management,Children's & Education Services,103,Supplies and Services,504,Equipment,5023,Revenue,CLEANING & JANITORIAL.CLEANING MATERIALS
02-SEP-2022,7014187,19.48,BUNZL UK LTD T/A BUNZL CLEANING & HYGIENE SUPPLIES,027747,Commissioning & Asset Management,Children's & Education Services,103,Supplies and Services,504,Equipment,5023,Revenue,CLEANING & JANITORIAL.CLEANING MATERIALS
02-SEP-2022,7014187,22.19,BUNZL UK LTD T/A BUNZL CLEANING & HYGIENE SUPPLIES,027747,Commissioning & Asset Management,Children's & Education Services,103,Supplies and Services,504,Equipment,5023,Revenue,CLEANING & JANITORIAL.CLEANING MATERIALS
02-SEP-2022,7014187,23.17,BUNZL UK LTD T/A BUNZL CLEANING & HYGIENE SUPPLIES,027747,Commissioning & Asset Management,Children's & Education Services,103,Supplies and Services,504,Equipment,5023,Revenue,CLEANING & JANITORIAL.CLEANING MATERIALS
02-SEP-2022,7014187,68.7,BUNZL UK LTD T/A BUNZL CLEANING & HYGIENE SUPPLIES,027747,Commissioning & Asset Management,Children's & Education Services,103,Supplies and Services,504,Equipment,5023,Revenue,CLEANING & JANITORIAL.CLEANING MATERIALS
02-SEP-2022,7014187,4.87,BUNZL UK LTD T/A BUNZL CLEANING & HYGIENE SUPPLIES,027747,Commissioning & Asset Management,Children's & Education Services,103,Supplies and Services,504,Equipment,5023,Revenue,CLEANING & JANITORIAL.CLEANING MATERIALS
02-SEP-2022,7014187,4.87,BUNZL UK LTD T/A BUNZL CLEANING & HYGIENE SUPPLIES,027747,Commissioning & Asset Management,Children's & Education Services,103,Supplies and Services,504,Equipment,5023,Revenue,CLEANING & JANITORIAL.CLEANING MATERIALS
02-SEP-2022,7014187,4.87,BUNZL UK LTD T/A BUNZL CLEANING & HYGIENE SUPPLIES,027747,Commissioning & Asset Management,Children's & Education Services,103,Supplies and Services,504,Equipment,5023,Revenue,CLEANING & JANITORIAL.CLEANING MATERIALS
02-SEP-2022,7014187,4.88,BUNZL UK LTD T/A BUNZL CLEANING & HYGIENE SUPPLIES,027747,Commissioning & Asset Management,Children's & Education Services,103,Supplies and Services,504,Equipment,5023,Revenue,CLEANING & JANITORIAL.CLEANING MATERIALS
02-SEP-2022,7014187,9.24,BUNZL UK LTD T/A BUNZL CLEANING & HYGIENE SUPPLIES,027747,Commissioning & Asset Management,Children's & Education Services,103,Supplies and Services,504,Equipment,5023,Revenue,CLEANING & JANITORIAL.CLEANING MATERIALS
02-SEP-2022,7014187,10.1,BUNZL UK LTD T/A BUNZL CLEANING & HYGIENE SUPPLIES,027747,Commissioning & Asset Management,Children's & Education Services,103,Supplies and Services,504,Equipment,5023,Revenue,CLEANING & JANITORIAL.CLEANING MATERIALS
02-SEP-2022,7014187,12.2,BUNZL UK LTD T/A BUNZL CLEANING & HYGIENE SUPPLIES,027747,Commissioning & Asset Management,Children's & Education Services,103,Supplies and Services,504,Equipment,5023,Revenue,CLEANING & JANITORIAL.CLEANING MATERIALS
02-SEP-2022,7014187,0.92,BUNZL UK LTD T/A BUNZL CLEANING & HYGIENE SUPPLIES,027747,Commissioning & Asset Management,Children's & Education Services,103,Supplies and Services,504,Equipment,5023,Revenue,CLEANING & JANITORIAL.CLEANING MATERIALS
02-SEP-2022,7014187,1.36,BUNZL UK LTD T/A BUNZL CLEANING & HYGIENE SUPPLIES,027747,Commissioning & Asset Management,Children's & Education Services,103,Supplies and Services,504,Equipment,5023,Revenue,CLEANING & JANITORIAL.CLEANING MATERIALS
02-SEP-2022,7014187,3.5,BUNZL UK LTD T/A BUNZL CLEANING & HYGIENE SUPPLIES,027747,Commissioning & Asset Management,Children's & Education Services,103,Supplies and Services,504,Equipment,5023,Revenue,CLEANING & JANITORIAL.CLEANING MATERIALS
02-SEP-2022,7014187,8.08,BUNZL UK LTD T/A BUNZL CLEANING & HYGIENE SUPPLIES,027747,Commissioning & Asset Management,Children's & Education Services,103,Supplies and Services,504,Equipment,5023,Revenue,CLEANING & JANITORIAL.CLEANING MATERIALS
02-SEP-2022,7014187,8.44,BUNZL UK LTD T/A BUNZL CLEANING & HYGIENE SUPPLIES,027747,Commissioning & Asset Management,Children's & Education Services,103,Supplies and Services,504,Equipment,5023,Revenue,CLEANING & JANITORIAL.CLEANING MATERIALS
02-SEP-2022,7014187,4.3,BUNZL UK LTD T/A BUNZL CLEANING & HYGIENE SUPPLIES,027747,Commissioning & Asset Management,Children's & Education Services,103,Supplies and Services,504,Equipment,5023,Revenue,CLEANING & JANITORIAL.CLEANING MATERIALS
02-SEP-2022,7014187,4.62,BUNZL UK LTD T/A BUNZL CLEANING & HYGIENE SUPPLIES,027747,Commissioning & Asset Management,Children's & Education Services,103,Supplies and Services,504,Equipment,5023,Revenue,CLEANING & JANITORIAL.CLEANING MATERIALS
02-SEP-2022,7014187,5.92,BUNZL UK LTD T/A BUNZL CLEANING & HYGIENE SUPPLIES,027747,Commissioning & Asset Management,Children's & Education Services,103,Supplies and Services,504,Equipment,5023,Revenue,CLEANING & JANITORIAL.CLEANING MATERIALS
02-SEP-2022,7014187,8.08,BUNZL UK LTD T/A BUNZL CLEANING & HYGIENE SUPPLIES,027747,Commissioning & Asset Management,Children's & Education Services,103,Supplies and Services,504,Equipment,5023,Revenue,CLEANING & JANITORIAL.CLEANING MATERIALS
02-SEP-2022,7014187,11.45,BUNZL UK LTD T/A BUNZL CLEANING & HYGIENE SUPPLIES,027747,Commissioning & Asset Management,Children's & Education Services,103,Supplies and Services,504,Equipment,5023,Revenue,CLEANING & JANITORIAL.CLEANING MATERIALS
02-SEP-2022,7014187,12.16,BUNZL UK LTD T/A BUNZL CLEANING & HYGIENE SUPPLIES,027747,Commissioning & Asset Management,Children's & Education Services,103,Supplies and Services,504,Equipment,5023,Revenue,CLEANING & JANITORIAL.CLEANING MATERIALS
02-SEP-2022,7014187,13.5,BUNZL UK LTD T/A BUNZL CLEANING & HYGIENE SUPPLIES,027747,Commissioning & Asset Management,Children's & Education Services,103,Supplies and Services,504,Equipment,5023,Revenue,CLEANING & JANITORIAL.CLEANING MATERIALS
02-SEP-2022,7014187,24.7,BUNZL UK LTD T/A BUNZL CLEANING & HYGIENE SUPPLIES,027747,Commissioning & Asset Management,Children's & Education Services,103,Supplies and Services,504,Equipment,5023,Revenue,CLEANING & JANITORIAL.CLEANING MATERIALS
02-SEP-2022,7014187,4.65,BUNZL UK LTD T/A BUNZL CLEANING & HYGIENE SUPPLIES,027747,Commissioning & Asset Management,Children's & Education Services,103,Supplies and Services,504,Equipment,5023,Revenue,CLEANING & JANITORIAL.CLEANING MATERIALS
02-SEP-2022,7014187,4.87,BUNZL UK LTD T/A BUNZL CLEANING & HYGIENE SUPPLIES,027747,Commissioning & Asset Management,Children's & Education Services,103,Supplies and Services,504,Equipment,5023,Revenue,CLEANING & JANITORIAL.CLEANING MATERIALS
02-SEP-2022,7014187,4.87,BUNZL UK LTD T/A BUNZL CLEANING & HYGIENE SUPPLIES,027747,Commissioning & Asset Management,Children's & Education Services,103,Supplies and Services,504,Equipment,5023,Revenue,CLEANING & JANITORIAL.CLEANING MATERIALS
02-SEP-2022,7014187,5.18,BUNZL UK LTD T/A BUNZL CLEANING & HYGIENE SUPPLIES,027747,Commissioning & Asset Management,Children's & Education Services,103,Supplies and Services,504,Equipment,5023,Revenue,CLEANING & JANITORIAL.CLEANING MATERIALS
02-SEP-2022,7014187,6.35,BUNZL UK LTD T/A BUNZL CLEANING & HYGIENE SUPPLIES,027747,Commissioning & Asset Management,Children's & Education Services,103,Supplies and Services,504,Equipment,5023,Revenue,CLEANING & JANITORIAL.CLEANING MATERIALS
02-SEP-2022,7014187,6.56,BUNZL UK LTD T/A BUNZL CLEANING & HYGIENE SUPPLIES,027747,Commissioning & Asset Management,Children's & Education Services,103,Supplies and Services,504,Equipment,5023,Revenue,CLEANING & JANITORIAL.CLEANING MATERIALS
02-SEP-2022,7014187,8.95,BUNZL UK LTD T/A BUNZL CLEANING & HYGIENE SUPPLIES,027747,Commissioning & Asset Management,Children's & Education Services,103,Supplies and Services,504,Equipment,5023,Revenue,CLEANING & JANITORIAL.CLEANING MATERIALS
02-SEP-2022,7014187,11.45,BUNZL UK LTD T/A BUNZL CLEANING & HYGIENE SUPPLIES,027747,Commissioning & Asset Management,Children's & Education Services,103,Supplies and Services,504,Equipment,5023,Revenue,CLEANING & JANITORIAL.CLEANING MATERIALS
02-SEP-2022,7014187,14.61,BUNZL UK LTD T/A BUNZL CLEANING & HYGIENE SUPPLIES,027747,Commissioning & Asset Management,Children's & Education Services,103,Supplies and Services,504,Equipment,5023,Revenue,CLEANING & JANITORIAL.CLEANING MATERIALS
02-SEP-2022,7014187,14.61,BUNZL UK LTD T/A BUNZL CLEANING & HYGIENE SUPPLIES,027747,Commissioning & Asset Management,Children's & Education Services,103,Supplies and Services,504,Equipment,5023,Revenue,CLEANING & JANITORIAL.CLEANING MATERIALS
02-SEP-2022,7014187,9.24,BUNZL UK LTD T/A BUNZL CLEANING & HYGIENE SUPPLIES,027747,Commissioning & Asset Management,Children's & Education Services,103,Supplies and Services,504,Equipment,5023,Revenue,CLEANING & JANITORIAL.CLEANING MATERIALS
02-SEP-2022,7014187,11.45,BUNZL UK LTD T/A BUNZL CLEANING & HYGIENE SUPPLIES,027747,Commissioning & Asset Management,Children's & Education Services,103,Supplies and Services,504,Equipment,5023,Revenue,CLEANING & JANITORIAL.CLEANING MATERIALS
02-SEP-2022,7014187,4.65,BUNZL UK LTD T/A BUNZL CLEANING & HYGIENE SUPPLIES,027747,Commissioning & Asset Management,Children's & Education Services,103,Supplies and Services,504,Equipment,5023,Revenue,CLEANING & JANITORIAL.CLEANING MATERIALS
02-SEP-2022,7014187,5.58,BUNZL UK LTD T/A BUNZL CLEANING & HYGIENE SUPPLIES,027747,Commissioning & Asset Management,Children's & Education Services,103,Supplies and Services,504,Equipment,5023,Revenue,CLEANING & JANITORIAL.CLEANING MATERIALS
02-SEP-2022,7014187,6.56,BUNZL UK LTD T/A BUNZL CLEANING & HYGIENE SUPPLIES,027747,Commissioning & Asset Management,Children's & Education Services,103,Supplies and Services,504,Equipment,5023,Revenue,CLEANING & JANITORIAL.CLEANING MATERIALS
02-SEP-2022,7014187,10.36,BUNZL UK LTD T/A BUNZL CLEANING & HYGIENE SUPPLIES,027747,Commissioning & Asset Management,Children's & Education Services,103,Supplies and Services,504,Equipment,5023,Revenue,CLEANING & JANITORIAL.CLEANING MATERIALS
02-SEP-2022,7014187,14.64,BUNZL UK LTD T/A BUNZL CLEANING & HYGIENE SUPPLIES,027747,Commissioning & Asset Management,Children's & Education Services,103,Supplies and Services,504,Equipment,5023,Revenue,CLEANING & JANITORIAL.CLEANING MATERIALS
02-SEP-2022,7014187,19.48,BUNZL UK LTD T/A BUNZL CLEANING & HYGIENE SUPPLIES,027747,Commissioning & Asset Management,Children's & Education Services,103,Supplies and Services,504,Equipment,5023,Revenue,CLEANING & JANITORIAL.CLEANING MATERIALS
02-SEP-2022,7014187,19.48,BUNZL UK LTD T/A BUNZL CLEANING & HYGIENE SUPPLIES,027747,Commissioning & Asset Management,Children's & Education Services,103,Supplies and Services,504,Equipment,5023,Revenue,CLEANING & JANITORIAL.CLEANING MATERIALS
02-SEP-2022,7014187,1.44,BUNZL UK LTD T/A BUNZL CLEANING & HYGIENE SUPPLIES,027747,Commissioning & Asset Management,Children's & Education Services,103,Supplies and Services,504,Equipment,5023,Revenue,CLEANING & JANITORIAL.CLEANING MATERIALS
02-SEP-2022,7014187,2.83,BUNZL UK LTD T/A BUNZL CLEANING & HYGIENE SUPPLIES,027747,Commissioning & Asset Management,Children's & Education Services,103,Supplies and Services,504,Equipment,5023,Revenue,CLEANING & JANITORIAL.CLEANING MATERIALS
02-SEP-2022,7014187,4.65,BUNZL UK LTD T/A BUNZL CLEANING & HYGIENE SUPPLIES,027747,Commissioning & Asset Management,Children's & Education Services,103,Supplies and Services,504,Equipment,5023,Revenue,CLEANING & JANITORIAL.CLEANING MATERIALS
02-SEP-2022,7014187,4.88,BUNZL UK LTD T/A BUNZL CLEANING & HYGIENE SUPPLIES,027747,Commissioning & Asset Management,Children's & Education Services,103,Supplies and Services,504,Equipment,5023,Revenue,CLEANING & JANITORIAL.CLEANING MATERIALS
02-SEP-2022,7014187,9.74,BUNZL UK LTD T/A BUNZL CLEANING & HYGIENE SUPPLIES,027747,Commissioning & Asset Management,Children's & Education Services,103,Supplies and Services,504,Equipment,5023,Revenue,CLEANING & JANITORIAL.CLEANING MATERIALS
02-SEP-2022,7014187,10.36,BUNZL UK LTD T/A BUNZL CLEANING & HYGIENE SUPPLIES,027747,Commissioning & Asset Management,Children's & Education Services,103,Supplies and Services,504,Equipment,5023,Revenue,CLEANING & JANITORIAL.CLEANING MATERIALS
02-SEP-2022,7014187,22.9,BUNZL UK LTD T/A BUNZL CLEANING & HYGIENE SUPPLIES,027747,Commissioning & Asset Management,Children's & Education Services,103,Supplies and Services,504,Equipment,5023,Revenue,CLEANING & JANITORIAL.CLEANING MATERIALS
02-SEP-2022,7014187,4.65,BUNZL UK LTD T/A BUNZL CLEANING & HYGIENE SUPPLIES,027747,Commissioning & Asset Management,Children's & Education Services,103,Supplies and Services,504,Equipment,5023,Revenue,CLEANING & JANITORIAL.CLEANING MATERIALS
02-SEP-2022,7014187,9.24,BUNZL UK LTD T/A BUNZL CLEANING & HYGIENE SUPPLIES,027747,Commissioning & Asset Management,Children's & Education Services,103,Supplies and Services,504,Equipment,5023,Revenue,CLEANING & JANITORIAL.CLEANING MATERIALS
02-SEP-2022,7014187,108.86,BUNZL UK LTD T/A BUNZL CLEANING & HYGIENE SUPPLIES,027747,Commissioning & Asset Management,Children's & Education Services,103,Supplies and Services,504,Equipment,5023,Revenue,CLEANING & JANITORIAL.CLEANING MATERIALS
02-SEP-2022,7014187,1.38,BUNZL UK LTD T/A BUNZL CLEANING & HYGIENE SUPPLIES,027747,Commissioning & Asset Management,Children's & Education Services,103,Supplies and Services,504,Equipment,5023,Revenue,CLEANING & JANITORIAL.CLEANING MATERIALS
02-SEP-2022,7014187,1.38,BUNZL UK LTD T/A BUNZL CLEANING & HYGIENE SUPPLIES,027747,Commissioning & Asset Management,Children's & Education Services,103,Supplies and Services,504,Equipment,5023,Revenue,CLEANING & JANITORIAL.CLEANING MATERIALS
02-SEP-2022,7014187,1.38,BUNZL UK LTD T/A BUNZL CLEANING & HYGIENE SUPPLIES,027747,Commissioning & Asset Management,Children's & Education Services,103,Supplies and Services,504,Equipment,5023,Revenue,CLEANING & JANITORIAL.CLEANING MATERIALS
02-SEP-2022,7014187,4.62,BUNZL UK LTD T/A BUNZL CLEANING & HYGIENE SUPPLIES,027747,Commissioning & Asset Management,Children's & Education Services,103,Supplies and Services,504,Equipment,5023,Revenue,CLEANING & JANITORIAL.CLEANING MATERIALS
02-SEP-2022,7014187,5.44,BUNZL UK LTD T/A BUNZL CLEANING & HYGIENE SUPPLIES,027747,Commissioning & Asset Management,Children's & Education Services,103,Supplies and Services,504,Equipment,5023,Revenue,CLEANING & JANITORIAL.CLEANING MATERIALS
02-SEP-2022,7014187,5.92,BUNZL UK LTD T/A BUNZL CLEANING & HYGIENE SUPPLIES,027747,Commissioning & Asset Management,Children's & Education Services,103,Supplies and Services,504,Equipment,5023,Revenue,CLEANING & JANITORIAL.CLEANING MATERIALS
02-SEP-2022,7014187,9.3,BUNZL UK LTD T/A BUNZL CLEANING & HYGIENE SUPPLIES,027747,Commissioning & Asset Management,Children's & Education Services,103,Supplies and Services,504,Equipment,5023,Revenue,CLEANING & JANITORIAL.CLEANING MATERIALS
02-SEP-2022,7014187,10.1,BUNZL UK LTD T/A BUNZL CLEANING & HYGIENE SUPPLIES,027747,Commissioning & Asset Management,Children's & Education Services,103,Supplies and Services,504,Equipment,5023,Revenue,CLEANING & JANITORIAL.CLEANING MATERIALS
02-SEP-2022,7014187,10.1,BUNZL UK LTD T/A BUNZL CLEANING & HYGIENE SUPPLIES,027747,Commissioning & Asset Management,Children's & Education Services,103,Supplies and Services,504,Equipment,5023,Revenue,CLEANING & JANITORIAL.CLEANING MATERIALS
02-SEP-2022,7014187,24.35,BUNZL UK LTD T/A BUNZL CLEANING & HYGIENE SUPPLIES,027747,Commissioning & Asset Management,Children's & Education Services,103,Supplies and Services,504,Equipment,5023,Revenue,CLEANING & JANITORIAL.CLEANING MATERIALS
02-SEP-2022,7014187,24.35,BUNZL UK LTD T/A BUNZL CLEANING & HYGIENE SUPPLIES,027747,Commissioning & Asset Management,Children's & Education Services,103,Supplies and Services,504,Equipment,5023,Revenue,CLEANING & JANITORIAL.CLEANING MATERIALS
02-SEP-2022,7014187,29.22,BUNZL UK LTD T/A BUNZL CLEANING & HYGIENE SUPPLIES,027747,Commissioning & Asset Management,Children's & Education Services,103,Supplies and Services,504,Equipment,5023,Revenue,CLEANING & JANITORIAL.CLEANING MATERIALS
02-SEP-2022,7014187,4.62,BUNZL UK LTD T/A BUNZL CLEANING & HYGIENE SUPPLIES,027747,Commissioning & Asset Management,Children's & Education Services,103,Supplies and Services,504,Equipment,5023,Revenue,CLEANING & JANITORIAL.CLEANING MATERIALS
02-SEP-2022,7014187,8.08,BUNZL UK LTD T/A BUNZL CLEANING & HYGIENE SUPPLIES,027747,Commissioning & Asset Management,Children's & Education Services,103,Supplies and Services,504,Equipment,5023,Revenue,CLEANING & JANITORIAL.CLEANING MATERIALS
02-SEP-2022,7014187,18.6,BUNZL UK LTD T/A BUNZL CLEANING & HYGIENE SUPPLIES,027747,Commissioning & Asset Management,Children's & Education Services,103,Supplies and Services,504,Equipment,5023,Revenue,CLEANING & JANITORIAL.CLEANING MATERIALS
02-SEP-2022,7014187,20.72,BUNZL UK LTD T/A BUNZL CLEANING & HYGIENE SUPPLIES,027747,Commissioning & Asset Management,Children's & Education Services,103,Supplies and Services,504,Equipment,5023,Revenue,CLEANING & JANITORIAL.CLEANING MATERIALS
02-SEP-2022,7014187,22.9,BUNZL UK LTD T/A BUNZL CLEANING & HYGIENE SUPPLIES,027747,Commissioning & Asset Management,Children's & Education Services,103,Supplies and Services,504,Equipment,5023,Revenue,CLEANING & JANITORIAL.CLEANING MATERIALS
02-SEP-2022,7014187,24.7,BUNZL UK LTD T/A BUNZL CLEANING & HYGIENE SUPPLIES,027747,Commissioning & Asset Management,Children's & Education Services,103,Supplies and Services,504,Equipment,5023,Revenue,CLEANING & JANITORIAL.CLEANING MATERIALS
02-SEP-2022,7014187,48.7,BUNZL UK LTD T/A BUNZL CLEANING & HYGIENE SUPPLIES,027747,Commissioning & Asset Management,Children's & Education Services,103,Supplies and Services,504,Equipment,5023,Revenue,CLEANING & JANITORIAL.CLEANING MATERIALS
02-SEP-2022,7014187,6.56,BUNZL UK LTD T/A BUNZL CLEANING & HYGIENE SUPPLIES,027747,Commissioning & Asset Management,Children's & Education Services,103,Supplies and Services,504,Equipment,5023,Revenue,CLEANING & JANITORIAL.CLEANING MATERIALS
02-SEP-2022,7014187,8.64,BUNZL UK LTD T/A BUNZL CLEANING & HYGIENE SUPPLIES,027747,Commissioning & Asset Management,Children's & Education Services,103,Supplies and Services,504,Equipment,5023,Revenue,CLEANING & JANITORIAL.CLEANING MATERIALS
02-SEP-2022,7014187,9.24,BUNZL UK LTD T/A BUNZL CLEANING & HYGIENE SUPPLIES,027747,Commissioning & Asset Management,Children's & Education Services,103,Supplies and Services,504,Equipment,5023,Revenue,CLEANING & JANITORIAL.CLEANING MATERIALS
02-SEP-2022,7014187,20.2,BUNZL UK LTD T/A BUNZL CLEANING & HYGIENE SUPPLIES,027747,Commissioning & Asset Management,Children's & Education Services,103,Supplies and Services,504,Equipment,5023,Revenue,CLEANING & JANITORIAL.CLEANING MATERIALS
02-SEP-2022,7014187,1.44,BUNZL UK LTD T/A BUNZL CLEANING & HYGIENE SUPPLIES,027747,Commissioning & Asset Management,Children's & Education Services,103,Supplies and Services,504,Equipment,5023,Revenue,CLEANING & JANITORIAL.CLEANING MATERIALS
02-SEP-2022,7014187,1.87,BUNZL UK LTD T/A BUNZL CLEANING & HYGIENE SUPPLIES,027747,Commissioning & Asset Management,Children's & Education Services,103,Supplies and Services,504,Equipment,5023,Revenue,CLEANING & JANITORIAL.CLEANING MATERIALS
02-SEP-2022,7014187,2.96,BUNZL UK LTD T/A BUNZL CLEANING & HYGIENE SUPPLIES,027747,Commissioning & Asset Management,Children's & Education Services,103,Supplies and Services,504,Equipment,5023,Revenue,CLEANING & JANITORIAL.CLEANING MATERIALS
02-SEP-2022,7014187,10.1,BUNZL UK LTD T/A BUNZL CLEANING & HYGIENE SUPPLIES,027747,Commissioning & Asset Management,Children's & Education Services,103,Supplies and Services,504,Equipment,5023,Revenue,CLEANING & JANITORIAL.CLEANING MATERIALS
02-SEP-2022,7014187,19.48,BUNZL UK LTD T/A BUNZL CLEANING & HYGIENE SUPPLIES,027747,Commissioning & Asset Management,Children's & Education Services,103,Supplies and Services,504,Equipment,5023,Revenue,CLEANING & JANITORIAL.CLEANING MATERIALS
02-SEP-2022,7014187,19.48,BUNZL UK LTD T/A BUNZL CLEANING & HYGIENE SUPPLIES,027747,Commissioning & Asset Management,Children's & Education Services,103,Supplies and Services,504,Equipment,5023,Revenue,CLEANING & JANITORIAL.CLEANING MATERIALS
02-SEP-2022,7014187,19.48,BUNZL UK LTD T/A BUNZL CLEANING & HYGIENE SUPPLIES,027747,Commissioning & Asset Management,Children's & Education Services,103,Supplies and Services,504,Equipment,5023,Revenue,CLEANING & JANITORIAL.CLEANING MATERIALS
02-SEP-2022,7014187,51.44,BUNZL UK LTD T/A BUNZL CLEANING & HYGIENE SUPPLIES,027747,Commissioning & Asset Management,Children's & Education Services,103,Supplies and Services,504,Equipment,5023,Revenue,CLEANING & JANITORIAL.CLEANING MATERIALS
02-SEP-2022,7014187,4.65,BUNZL UK LTD T/A BUNZL CLEANING & HYGIENE SUPPLIES,027747,Commissioning & Asset Management,Children's & Education Services,103,Supplies and Services,504,Equipment,5023,Revenue,CLEANING & JANITORIAL.CLEANING MATERIALS
02-SEP-2022,7014187,6.56,BUNZL UK LTD T/A BUNZL CLEANING & HYGIENE SUPPLIES,027747,Commissioning & Asset Management,Children's & Education Services,103,Supplies and Services,504,Equipment,5023,Revenue,CLEANING & JANITORIAL.CLEANING MATERIALS
02-SEP-2022,7014187,19.48,BUNZL UK LTD T/A BUNZL CLEANING & HYGIENE SUPPLIES,027747,Commissioning & Asset Management,Children's & Education Services,103,Supplies and Services,504,Equipment,5023,Revenue,CLEANING & JANITORIAL.CLEANING MATERIALS
02-SEP-2022,7014187,19.55,BUNZL UK LTD T/A BUNZL CLEANING & HYGIENE SUPPLIES,027747,Commissioning & Asset Management,Children's & Education Services,103,Supplies and Services,504,Equipment,5023,Revenue,CLEANING & JANITORIAL.CLEANING MATERIALS
02-SEP-2022,7014187,1.38,BUNZL UK LTD T/A BUNZL CLEANING & HYGIENE SUPPLIES,027747,Commissioning & Asset Management,Children's & Education Services,103,Supplies and Services,504,Equipment,5023,Revenue,CLEANING & JANITORIAL.CLEANING MATERIALS
02-SEP-2022,7014187,1.44,BUNZL UK LTD T/A BUNZL CLEANING & HYGIENE SUPPLIES,027747,Commissioning & Asset Management,Children's & Education Services,103,Supplies and Services,504,Equipment,5023,Revenue,CLEANING & JANITORIAL.CLEANING MATERIALS
02-SEP-2022,7014187,2.44,BUNZL UK LTD T/A BUNZL CLEANING & HYGIENE SUPPLIES,027747,Commissioning & Asset Management,Children's & Education Services,103,Supplies and Services,504,Equipment,5023,Revenue,CLEANING & JANITORIAL.CLEANING MATERIALS
02-SEP-2022,7014187,4.88,BUNZL UK LTD T/A BUNZL CLEANING & HYGIENE SUPPLIES,027747,Commissioning & Asset Management,Children's & Education Services,103,Supplies and Services,504,Equipment,5023,Revenue,CLEANING & JANITORIAL.CLEANING MATERIALS
02-SEP-2022,7014187,9.74,BUNZL UK LTD T/A BUNZL CLEANING & HYGIENE SUPPLIES,027747,Commissioning & Asset Management,Children's & Education Services,103,Supplies and Services,504,Equipment,5023,Revenue,CLEANING & JANITORIAL.CLEANING MATERIALS
02-SEP-2022,7014187,9.74,BUNZL UK LTD T/A BUNZL CLEANING & HYGIENE SUPPLIES,027747,Commissioning & Asset Management,Children's & Education Services,103,Supplies and Services,504,Equipment,5023,Revenue,CLEANING & JANITORIAL.CLEANING MATERIALS
02-SEP-2022,7014187,25.72,BUNZL UK LTD T/A BUNZL CLEANING & HYGIENE SUPPLIES,027747,Commissioning & Asset Management,Children's & Education Services,103,Supplies and Services,504,Equipment,5023,Revenue,CLEANING & JANITORIAL.CLEANING MATERIALS
02-SEP-2022,7014187,5.92,BUNZL UK LTD T/A BUNZL CLEANING & HYGIENE SUPPLIES,027747,Commissioning & Asset Management,Children's & Education Services,103,Supplies and Services,504,Equipment,5023,Revenue,CLEANING & JANITORIAL.CLEANING MATERIALS
02-SEP-2022,7014187,11.45,BUNZL UK LTD T/A BUNZL CLEANING & HYGIENE SUPPLIES,027747,Commissioning & Asset Management,Children's & Education Services,103,Supplies and Services,504,Equipment,5023,Revenue,CLEANING & JANITORIAL.CLEANING MATERIALS
02-SEP-2022,7014187,16.74,BUNZL UK LTD T/A BUNZL CLEANING & HYGIENE SUPPLIES,027747,Commissioning & Asset Management,Children's & Education Services,103,Supplies and Services,504,Equipment,5023,Revenue,CLEANING & JANITORIAL.CLEANING MATERIALS
02-SEP-2022,7014187,108.86,BUNZL UK LTD T/A BUNZL CLEANING & HYGIENE SUPPLIES,027747,Commissioning & Asset Management,Children's & Education Services,103,Supplies and Services,504,Equipment,5023,Revenue,CLEANING & JANITORIAL.CLEANING MATERIALS
02-SEP-2022,7014187,6.56,BUNZL UK LTD T/A BUNZL CLEANING & HYGIENE SUPPLIES,027747,Commissioning & Asset Management,Children's & Education Services,103,Supplies and Services,504,Equipment,5023,Revenue,CLEANING & JANITORIAL.CLEANING MATERIALS
02-SEP-2022,7014187,9.24,BUNZL UK LTD T/A BUNZL CLEANING & HYGIENE SUPPLIES,027747,Commissioning & Asset Management,Children's & Education Services,103,Supplies and Services,504,Equipment,5023,Revenue,CLEANING & JANITORIAL.CLEANING MATERIALS
02-SEP-2022,7014187,9.74,BUNZL UK LTD T/A BUNZL CLEANING & HYGIENE SUPPLIES,027747,Commissioning & Asset Management,Children's & Education Services,103,Supplies and Services,504,Equipment,5023,Revenue,CLEANING & JANITORIAL.CLEANING MATERIALS
02-SEP-2022,7014187,17.82,BUNZL UK LTD T/A BUNZL CLEANING & HYGIENE SUPPLIES,027747,Commissioning & Asset Management,Children's & Education Services,103,Supplies and Services,504,Equipment,5023,Revenue,CLEANING & JANITORIAL.CLEANING MATERIALS
02-SEP-2022,7014187,30.3,BUNZL UK LTD T/A BUNZL CLEANING & HYGIENE SUPPLIES,027747,Commissioning & Asset Management,Children's & Education Services,103,Supplies and Services,504,Equipment,5023,Revenue,CLEANING & JANITORIAL.CLEANING MATERIALS
02-SEP-2022,7014187,2.15,BUNZL UK LTD T/A BUNZL CLEANING & HYGIENE SUPPLIES,027747,Commissioning & Asset Management,Children's & Education Services,103,Supplies and Services,504,Equipment,5023,Revenue,CLEANING & JANITORIAL.CLEANING MATERIALS
02-SEP-2022,7014187,2.3,BUNZL UK LTD T/A BUNZL CLEANING & HYGIENE SUPPLIES,027747,Commissioning & Asset Management,Children's & Education Services,103,Supplies and Services,504,Equipment,5023,Revenue,CLEANING & JANITORIAL.CLEANING MATERIALS
02-SEP-2022,7014187,4.3,BUNZL UK LTD T/A BUNZL CLEANING & HYGIENE SUPPLIES,027747,Commissioning & Asset Management,Children's & Education Services,103,Supplies and Services,504,Equipment,5023,Revenue,CLEANING & JANITORIAL.CLEANING MATERIALS
02-SEP-2022,7014187,4.5,BUNZL UK LTD T/A BUNZL CLEANING & HYGIENE SUPPLIES,027747,Commissioning & Asset Management,Children's & Education Services,103,Supplies and Services,504,Equipment,5023,Revenue,CLEANING & JANITORIAL.CLEANING MATERIALS
02-SEP-2022,7014187,4.6,BUNZL UK LTD T/A BUNZL CLEANING & HYGIENE SUPPLIES,027747,Commissioning & Asset Management,Children's & Education Services,103,Supplies and Services,504,Equipment,5023,Revenue,CLEANING & JANITORIAL.CLEANING MATERIALS
02-SEP-2022,7014187,5.58,BUNZL UK LTD T/A BUNZL CLEANING & HYGIENE SUPPLIES,027747,Commissioning & Asset Management,Children's & Education Services,103,Supplies and Services,504,Equipment,5023,Revenue,CLEANING & JANITORIAL.CLEANING MATERIALS
02-SEP-2022,7014187,6.8,BUNZL UK LTD T/A BUNZL CLEANING & HYGIENE SUPPLIES,027747,Commissioning & Asset Management,Children's & Education Services,103,Supplies and Services,504,Equipment,5023,Revenue,CLEANING & JANITORIAL.CLEANING MATERIALS
02-SEP-2022,7014187,11.16,BUNZL UK LTD T/A BUNZL CLEANING & HYGIENE SUPPLIES,027747,Commissioning & Asset Management,Children's & Education Services,103,Supplies and Services,504,Equipment,5023,Revenue,CLEANING & JANITORIAL.CLEANING MATERIALS
02-SEP-2022,7014187,24.35,BUNZL UK LTD T/A BUNZL CLEANING & HYGIENE SUPPLIES,027747,Commissioning & Asset Management,Children's & Education Services,103,Supplies and Services,504,Equipment,5023,Revenue,CLEANING & JANITORIAL.CLEANING MATERIALS
02-SEP-2022,7014187,24.35,BUNZL UK LTD T/A BUNZL CLEANING & HYGIENE SUPPLIES,027747,Commissioning & Asset Management,Children's & Education Services,103,Supplies and Services,504,Equipment,5023,Revenue,CLEANING & JANITORIAL.CLEANING MATERIALS
02-SEP-2022,7014187,24.7,BUNZL UK LTD T/A BUNZL CLEANING & HYGIENE SUPPLIES,027747,Commissioning & Asset Management,Children's & Education Services,103,Supplies and Services,504,Equipment,5023,Revenue,CLEANING & JANITORIAL.CLEANING MATERIALS
02-SEP-2022,7014188,62.5,KENILWORTH HOTEL,396858,General Fund Housing,Housing Services,108,Third Party Payments,505,Private Contractors,5042,Revenue,HUMAN RESOURCES.ACCOMMODATION
02-SEP-2022,7014188,112.5,KENILWORTH HOTEL,396858,General Fund Housing,Housing Services,108,Third Party Payments,505,Private Contractors,5042,Revenue,HUMAN RESOURCES.ACCOMMODATION
02-SEP-2022,7014188,112.5,KENILWORTH HOTEL,396858,General Fund Housing,Housing Services,108,Third Party Payments,505,Private Contractors,5042,Revenue,HUMAN RESOURCES.ACCOMMODATION
02-SEP-2022,7014188,112.5,KENILWORTH HOTEL,396858,General Fund Housing,Housing Services,108,Third Party Payments,505,Private Contractors,5042,Revenue,HUMAN RESOURCES.ACCOMMODATION
02-SEP-2022,7014188,112.5,KENILWORTH HOTEL,396858,General Fund Housing,Housing Services,108,Third Party Payments,505,Private Contractors,5042,Revenue,HUMAN RESOURCES.ACCOMMODATION
02-SEP-2022,7014188,437.5,KENILWORTH HOTEL,396858,General Fund Housing,Housing Services,108,Third Party Payments,505,Private Contractors,5042,Revenue,HUMAN RESOURCES.ACCOMMODATION
02-SEP-2022,7014188,437.5,KENILWORTH HOTEL,396858,General Fund Housing,Housing Services,108,Third Party Payments,505,Private Contractors,5042,Revenue,HUMAN RESOURCES.ACCOMMODATION
02-SEP-2022,7014188,437.5,KENILWORTH HOTEL,396858,General Fund Housing,Housing Services,108,Third Party Payments,505,Private Contractors,5042,Revenue,HUMAN RESOURCES.ACCOMMODATION
02-SEP-2022,7014188,437.5,KENILWORTH HOTEL,396858,General Fund Housing,Housing Services,108,Third Party Payments,505,Private Contractors,5042,Revenue,HUMAN RESOURCES.ACCOMMODATION
02-SEP-2022,7014188,437.5,KENILWORTH HOTEL,396858,General Fund Housing,Housing Services,108,Third Party Payments,505,Private Contractors,5042,Revenue,HUMAN RESOURCES.ACCOMMODATION
02-SEP-2022,7014188,437.5,KENILWORTH HOTEL,396858,General Fund Housing,Housing Services,108,Third Party Payments,505,Private Contractors,5042,Revenue,HUMAN RESOURCES.ACCOMMODATION
02-SEP-2022,7014188,437.5,KENILWORTH HOTEL,396858,General Fund Housing,Housing Services,108,Third Party Payments,505,Private Contractors,5042,Revenue,HUMAN RESOURCES.ACCOMMODATION
02-SEP-2022,7014188,437.5,KENILWORTH HOTEL,396858,General Fund Housing,Housing Services,108,Third Party Payments,505,Private Contractors,5042,Revenue,HUMAN RESOURCES.ACCOMMODATION
02-SEP-2022,7014188,437.5,KENILWORTH HOTEL,396858,General Fund Housing,Housing Services,108,Third Party Payments,505,Private Contractors,5042,Revenue,HUMAN RESOURCES.ACCOMMODATION
02-SEP-2022,7014188,437.5,KENILWORTH HOTEL,396858,General Fund Housing,Housing Services,108,Third Party Payments,505,Private Contractors,5042,Revenue,HUMAN RESOURCES.ACCOMMODATION
02-SEP-2022,7014188,437.5,KENILWORTH HOTEL,396858,General Fund Housing,Housing Services,108,Third Party Payments,505,Private Contractors,5042,Revenue,HUMAN RESOURCES.ACCOMMODATION
02-SEP-2022,7014188,437.5,KENILWORTH HOTEL,396858,General Fund Housing,Housing Services,108,Third Party Payments,505,Private Contractors,5042,Revenue,HUMAN RESOURCES.ACCOMMODATION
02-SEP-2022,7014188,437.5,KENILWORTH HOTEL,396858,General Fund Housing,Housing Services,108,Third Party Payments,505,Private Contractors,5042,Revenue,HUMAN RESOURCES.ACCOMMODATION
02-SEP-2022,7014188,437.5,KENILWORTH HOTEL,396858,General Fund Housing,Housing Services,108,Third Party Payments,505,Private Contractors,5042,Revenue,HUMAN RESOURCES.ACCOMMODATION
02-SEP-2022,7014188,437.5,KENILWORTH HOTEL,396858,General Fund Housing,Housing Services,108,Third Party Payments,505,Private Contractors,5042,Revenue,HUMAN RESOURCES.ACCOMMODATION
02-SEP-2022,7014188,437.5,KENILWORTH HOTEL,396858,General Fund Housing,Housing Services,108,Third Party Payments,505,Private Contractors,5042,Revenue,HUMAN RESOURCES.ACCOMMODATION
02-SEP-2022,7014189,17.99,BOOHOO,396523,"Health, Education, Care and Safeguarding",Children's & Education Services,103,Supplies and Services,504,"Clothing, Uniforms and Laundry",5025,Revenue,CLOTHING.CHILDRENS & ADULTS
02-SEP-2022,7014190,0.01,ALCATRAZ GUEST HOUSE,387483,General Fund Housing,Housing Services,108,Third Party Payments,505,Private Contractors,5042,Revenue,SOCIAL CARE.CARE SERVICES
02-SEP-2022,7014190,0.01,ALCATRAZ GUEST HOUSE,387483,General Fund Housing,Housing Services,108,Third Party Payments,505,Private Contractors,5042,Revenue,SOCIAL CARE.CARE SERVICES
02-SEP-2022,7014190,0.01,ALCATRAZ GUEST HOUSE,387483,General Fund Housing,Housing Services,108,Third Party Payments,505,Private Contractors,5042,Revenue,SOCIAL CARE.CARE SERVICES
02-SEP-2022,7014190,0.01,ALCATRAZ GUEST HOUSE,387483,General Fund Housing,Housing Services,108,Third Party Payments,505,Private Contractors,5042,Revenue,SOCIAL CARE.CARE SERVICES
02-SEP-2022,7014190,0.01,ALCATRAZ GUEST HOUSE,387483,General Fund Housing,Housing Services,108,Third Party Payments,505,Private Contractors,5042,Revenue,SOCIAL CARE.CARE SERVICES
02-SEP-2022,7014190,0.01,ALCATRAZ GUEST HOUSE,387483,General Fund Housing,Housing Services,108,Third Party Payments,505,Private Contractors,5042,Revenue,SOCIAL CARE.CARE SERVICES
02-SEP-2022,7014190,0.01,ALCATRAZ GUEST HOUSE,387483,General Fund Housing,Housing Services,108,Third Party Payments,505,Private Contractors,5042,Revenue,SOCIAL CARE.CARE SERVICES
02-SEP-2022,7014190,0.01,ALCATRAZ GUEST HOUSE,387483,General Fund Housing,Housing Services,108,Third Party Payments,505,Private Contractors,5042,Revenue,SOCIAL CARE.CARE SERVICES
02-SEP-2022,7014190,66.67,ALCATRAZ GUEST HOUSE,387483,General Fund Housing,Housing Services,108,Third Party Payments,505,Private Contractors,5042,Revenue,SOCIAL CARE.CARE SERVICES
02-SEP-2022,7014190,66.67,ALCATRAZ GUEST HOUSE,387483,General Fund Housing,Housing Services,108,Third Party Payments,505,Private Contractors,5042,Revenue,SOCIAL CARE.CARE SERVICES
02-SEP-2022,7014190,66.67,ALCATRAZ GUEST HOUSE,387483,General Fund Housing,Housing Services,108,Third Party Payments,505,Private Contractors,5042,Revenue,SOCIAL CARE.CARE SERVICES
02-SEP-2022,7014190,100,ALCATRAZ GUEST HOUSE,387483,General Fund Housing,Housing Services,108,Third Party Payments,505,Private Contractors,5042,Revenue,SOCIAL CARE.CARE SERVICES
02-SEP-2022,7014190,133.33,ALCATRAZ GUEST HOUSE,387483,General Fund Housing,Housing Services,108,Third Party Payments,505,Private Contractors,5042,Revenue,SOCIAL CARE.CARE SERVICES
02-SEP-2022,7014190,133.33,ALCATRAZ GUEST HOUSE,387483,General Fund Housing,Housing Services,108,Third Party Payments,505,Private Contractors,5042,Revenue,SOCIAL CARE.CARE SERVICES
02-SEP-2022,7014190,133.33,ALCATRAZ GUEST HOUSE,387483,General Fund Housing,Housing Services,108,Third Party Payments,505,Private Contractors,5042,Revenue,SOCIAL CARE.CARE SERVICES
02-SEP-2022,7014190,133.33,ALCATRAZ GUEST HOUSE,387483,General Fund Housing,Housing Services,108,Third Party Payments,505,Private Contractors,5042,Revenue,SOCIAL CARE.CARE SERVICES
02-SEP-2022,7014190,133.33,ALCATRAZ GUEST HOUSE,387483,General Fund Housing,Housing Services,108,Third Party Payments,505,Private Contractors,5042,Revenue,SOCIAL CARE.CARE SERVICES
02-SEP-2022,7014190,133.33,ALCATRAZ GUEST HOUSE,387483,General Fund Housing,Housing Services,108,Third Party Payments,505,Private Contractors,5042,Revenue,SOCIAL CARE.CARE SERVICES
02-SEP-2022,7014190,133.33,ALCATRAZ GUEST HOUSE,387483,General Fund Housing,Housing Services,108,Third Party Payments,505,Private Contractors,5042,Revenue,SOCIAL CARE.CARE SERVICES
02-SEP-2022,7014190,200,ALCATRAZ GUEST HOUSE,387483,General Fund Housing,Housing Services,108,Third Party Payments,505,Private Contractors,5042,Revenue,SOCIAL CARE.CARE SERVICES
02-SEP-2022,7014190,200,ALCATRAZ GUEST HOUSE,387483,General Fund Housing,Housing Services,108,Third Party Payments,505,Private Contractors,5042,Revenue,SOCIAL CARE.CARE SERVICES
02-SEP-2022,7014190,200,ALCATRAZ GUEST HOUSE,387483,General Fund Housing,Housing Services,108,Third Party Payments,505,Private Contractors,5042,Revenue,SOCIAL CARE.CARE SERVICES
02-SEP-2022,7014190,200,ALCATRAZ GUEST HOUSE,387483,General Fund Housing,Housing Services,108,Third Party Payments,505,Private Contractors,5042,Revenue,SOCIAL CARE.CARE SERVICES
02-SEP-2022,7014190,233.33,ALCATRAZ GUEST HOUSE,387483,General Fund Housing,Housing Services,108,Third Party Payments,505,Private Contractors,5042,Revenue,SOCIAL CARE.CARE SERVICES
02-SEP-2022,7014190,266.67,ALCATRAZ GUEST HOUSE,387483,General Fund Housing,Housing Services,108,Third Party Payments,505,Private Contractors,5042,Revenue,SOCIAL CARE.CARE SERVICES
02-SEP-2022,7014190,266.67,ALCATRAZ GUEST HOUSE,387483,General Fund Housing,Housing Services,108,Third Party Payments,505,Private Contractors,5042,Revenue,SOCIAL CARE.CARE SERVICES
02-SEP-2022,7014191,83.33,CYPAD T/A PARENTPAY,391920,"Health, Education, Care and Safeguarding",Children's & Education Services,103,Supplies and Services,504,Equipment,5023,Revenue,FINANCIAL SERVICES.FINANCIAL SERVICES
02-SEP-2022,7014192,25,DUNELM LTD,391723,"Health, Education, Care and Safeguarding",Children's & Education Services,103,Supplies and Services,504,"Clothing, Uniforms and Laundry",5025,Revenue,FURNITURE.SOFT FURNISHINGS
02-SEP-2022,7014192,79.67,DUNELM LTD,391723,"Health, Education, Care and Safeguarding",Children's & Education Services,103,Supplies and Services,504,Equipment,5023,Revenue,FURNITURE.SOFT FURNISHINGS
02-SEP-2022,7014192,25,DUNELM LTD,391723,"Health, Education, Care and Safeguarding",Children's & Education Services,103,Supplies and Services,504,Equipment,5023,Revenue,FURNITURE.SOFT FURNISHINGS
02-SEP-2022,7014192,20.42,DUNELM LTD,391723,"Health, Education, Care and Safeguarding",Children's & Education Services,103,Supplies and Services,504,Equipment,5023,Revenue,FURNITURE.SOFT FURNISHINGS
02-SEP-2022,7014192,86.25,DUNELM LTD,391723,"Health, Education, Care and Safeguarding",Children's & Education Services,103,Supplies and Services,504,Equipment,5023,Revenue,FURNITURE.SOFT FURNISHINGS
02-SEP-2022,7014193,74.21,ALDI STORES LTD,391717,"Health, Education, Care and Safeguarding",Children's & Education Services,103,Supplies and Services,504,"Clothing, Uniforms and Laundry",5025,Revenue,CATERING.FOOD & BEVERAGES
02-SEP-2022,7014193,75.86,ALDI STORES LTD,391717,"Health, Education, Care and Safeguarding",Children's & Education Services,103,Supplies and Services,504,"Clothing, Uniforms and Laundry",5025,Revenue,CATERING.FOOD & BEVERAGES
02-SEP-2022,7014193,79.61,ALDI STORES LTD,391717,"Health, Education, Care and Safeguarding",Children's & Education Services,103,Supplies and Services,504,"Clothing, Uniforms and Laundry",5025,Revenue,CATERING.FOOD & BEVERAGES
02-SEP-2022,7014193,-0.01,ALDI STORES LTD,391717,"Health, Education, Care and Safeguarding",Children's & Education Services,103,Supplies and Services,504,Equipment,5023,Revenue,CATERING.FOOD & BEVERAGES
02-SEP-2022,7014193,51.53,ALDI STORES LTD,391717,"Health, Education, Care and Safeguarding",Children's & Education Services,103,Supplies and Services,504,Equipment,5023,Revenue,CATERING.FOOD & BEVERAGES
02-SEP-2022,7014193,57.03,ALDI STORES LTD,391717,"Health, Education, Care and Safeguarding",Children's & Education Services,103,Supplies and Services,504,Equipment,5023,Revenue,CATERING.FOOD & BEVERAGES
02-SEP-2022,7014193,100.38,ALDI STORES LTD,391717,"Health, Education, Care and Safeguarding",Children's & Education Services,103,Supplies and Services,504,Equipment,5023,Revenue,CATERING.FOOD & BEVERAGES
02-SEP-2022,7014193,14.95,ALDI STORES LTD,391717,"Health, Education, Care and Safeguarding",Children's & Education Services,103,Supplies and Services,504,Miscellaneous Expenses,5034,Revenue,CATERING.FOOD & BEVERAGES
02-SEP-2022,7014193,4.16,ALDI STORES LTD,391717,"Health, Education, Care and Safeguarding",Children's & Education Services,103,Supplies and Services,504,Equipment,5023,Revenue,CATERING.FOOD & BEVERAGES
02-SEP-2022,7014193,5.7,ALDI STORES LTD,391717,"Health, Education, Care and Safeguarding",Children's & Education Services,103,Third Party Payments,505,Other Establishments,5041,Revenue,CATERING.FOOD & BEVERAGES
02-SEP-2022,7014193,8.69,ALDI STORES LTD,391717,"Health, Education, Care and Safeguarding",Children's & Education Services,103,Third Party Payments,505,Other Establishments,5041,Revenue,CATERING.FOOD & BEVERAGES
02-SEP-2022,7014193,10,ALDI STORES LTD,391717,"Health, Education, Care and Safeguarding",Children's & Education Services,103,Third Party Payments,505,Other Establishments,5041,Revenue,CATERING.FOOD & BEVERAGES
02-SEP-2022,7014193,4.69,ALDI STORES LTD,391717,Corporate Strategy,Children's & Education Services,103,Supplies and Services,504,Catering,5024,Revenue,CATERING.FOOD & BEVERAGES
02-SEP-2022,7014193,20.83,ALDI STORES LTD,391717,Corporate Strategy,Children's & Education Services,103,Supplies and Services,504,Expenses,5030,Revenue,CATERING.FOOD & BEVERAGES
02-SEP-2022,7014193,5.19,ALDI STORES LTD,391717,"Health, Education, Care and Safeguarding",Children's & Education Services,103,Supplies and Services,504,"Printing, Stationery and General Office Expenses",5026,Revenue,CATERING.FOOD & BEVERAGES
02-SEP-2022,7014193,31.39,ALDI STORES LTD,391717,"Health, Education, Care and Safeguarding",Children's & Education Services,103,Supplies and Services,504,"Printing, Stationery and General Office Expenses",5026,Revenue,CATERING.FOOD & BEVERAGES
02-SEP-2022,7014193,118.46,ALDI STORES LTD,391717,"Sport, Leisure & Community",Cultural & Related Services,104,Supplies and Services,504,Miscellaneous Expenses,5034,Revenue,CATERING.FOOD & BEVERAGES
02-SEP-2022,7014193,-0.01,ALDI STORES LTD,391717,Regeneration & Economic Development,Cultural & Related Services,104,Supplies and Services,504,Miscellaneous Expenses,5034,Revenue,CATERING.FOOD & BEVERAGES
02-SEP-2022,7014193,0.01,ALDI STORES LTD,391717,Regeneration & Economic Development,Cultural & Related Services,104,Supplies and Services,504,Miscellaneous Expenses,5034,Revenue,CATERING.FOOD & BEVERAGES
02-SEP-2022,7014193,0.01,ALDI STORES LTD,391717,Regeneration & Economic Development,Cultural & Related Services,104,Supplies and Services,504,Miscellaneous Expenses,5034,Revenue,CATERING.FOOD & BEVERAGES
02-SEP-2022,7014193,2.08,ALDI STORES LTD,391717,Regeneration & Economic Development,Cultural & Related Services,104,Supplies and Services,504,Miscellaneous Expenses,5034,Revenue,CATERING.FOOD & BEVERAGES
02-SEP-2022,7014193,12.67,ALDI STORES LTD,391717,Regeneration & Economic Development,Cultural & Related Services,104,Supplies and Services,504,Miscellaneous Expenses,5034,Revenue,CATERING.FOOD & BEVERAGES
02-SEP-2022,7014193,19.52,ALDI STORES LTD,391717,Regeneration & Economic Development,Cultural & Related Services,104,Supplies and Services,504,Miscellaneous Expenses,5034,Revenue,CATERING.FOOD & BEVERAGES
02-SEP-2022,7014194,-10.5,ALNWICK GARDENS,391493,"Health, Education, Care and Safeguarding",Children's & Education Services,103,Supplies and Services,504,Miscellaneous Expenses,5034,Revenue,ADVERTISING & MARKETING.EVENTS & PROMOTIONS
02-SEP-2022,7014194,-0.01,ALNWICK GARDENS,391493,"Health, Education, Care and Safeguarding",Children's & Education Services,103,Supplies and Services,504,Miscellaneous Expenses,5034,Revenue,ADVERTISING & MARKETING.EVENTS & PROMOTIONS
02-SEP-2022,7014194,50.42,ALNWICK GARDENS,391493,"Health, Education, Care and Safeguarding",Children's & Education Services,103,Supplies and Services,504,Miscellaneous Expenses,5034,Revenue,ADVERTISING & MARKETING.EVENTS & PROMOTIONS
02-SEP-2022,7014195,4.91,SUBWAY,391486,"Health, Education, Care and Safeguarding",Children's & Education Services,103,Third Party Payments,505,Other Establishments,5041,Revenue,CATERING.FOOD & BEVERAGES
02-SEP-2022,7014196,76.5,H&M,391479,"Health, Education, Care and Safeguarding",Children's & Education Services,103,Supplies and Services,504,"Clothing, Uniforms and Laundry",5025,Revenue,NON INFLUENCIBLE.NON INFLUENCIBLE
02-SEP-2022,7014196,31.81,H&M,391479,"Health, Education, Care and Safeguarding",Children's & Education Services,103,Supplies and Services,504,"Clothing, Uniforms and Laundry",5025,Revenue,NON INFLUENCIBLE.NON INFLUENCIBLE
02-SEP-2022,7014197,272.85,GIFTSTONES LTD T/A BRITISH FOSSILS,302516,Regeneration & Economic Development,Cultural & Related Services,104,Supplies and Services,504,Equipment,5023,Revenue,EDUCATIONAL SUPPLIES.ARTS & CRAFTS
02-SEP-2022,7014197,343.9,GIFTSTONES LTD T/A BRITISH FOSSILS,302516,Regeneration & Economic Development,Cultural & Related Services,104,Supplies and Services,504,Equipment,5023,Revenue,EDUCATIONAL SUPPLIES.ARTS & CRAFTS
02-SEP-2022,7014198,-10.83,B&Q PLC,002053,Local Environmental Services,Cultural & Related Services,104,Supplies and Services,504,Equipment,5023,Revenue,BUILDING MATERIALS.GENERAL MATERIALS
02-SEP-2022,7014198,21.67,B&Q PLC,002053,Local Environmental Services,Cultural & Related Services,104,Supplies and Services,504,Equipment,5023,Revenue,BUILDING MATERIALS.GENERAL MATERIALS
02-SEP-2022,7014198,85.95,B&Q PLC,002053,Local Environmental Services,Cultural & Related Services,104,Supplies and Services,504,Equipment,5023,Revenue,BUILDING MATERIALS.GENERAL MATERIALS
02-SEP-2022,7014199,10.58,R MANNERS & SONS LTD,013498,Commissioning & Asset Management,Children's & Education Services,103,Supplies and Services,504,Equipment,5023,Revenue,CATERING.FOOD & BEVERAGES
02-SEP-2022,7014199,23.12,R MANNERS & SONS LTD,013498,Commissioning & Asset Management,Children's & Education Services,103,Supplies and Services,504,Equipment,5023,Revenue,CATERING.FOOD & BEVERAGES
02-SEP-2022,7014199,26.45,R MANNERS & SONS LTD,013498,Commissioning & Asset Management,Children's & Education Services,103,Supplies and Services,504,Equipment,5023,Revenue,CATERING.FOOD & BEVERAGES
02-SEP-2022,7014199,31.74,R MANNERS & SONS LTD,013498,Commissioning & Asset Management,Children's & Education Services,103,Supplies and Services,504,Equipment,5023,Revenue,CATERING.FOOD & BEVERAGES
02-SEP-2022,7014199,39.6,R MANNERS & SONS LTD,013498,Commissioning & Asset Management,Children's & Education Services,103,Supplies and Services,504,Equipment,5023,Revenue,CATERING.FOOD & BEVERAGES
02-SEP-2022,7014199,39.6,R MANNERS & SONS LTD,013498,Commissioning & Asset Management,Children's & Education Services,103,Supplies and Services,504,Equipment,5023,Revenue,CATERING.FOOD & BEVERAGES
02-SEP-2022,7014199,65.23,R MANNERS & SONS LTD,013498,Commissioning & Asset Management,Children's & Education Services,103,Supplies and Services,504,Equipment,5023,Revenue,CATERING.FOOD & BEVERAGES
02-SEP-2022,7014199,5.29,R MANNERS & SONS LTD,013498,Commissioning & Asset Management,Children's & Education Services,103,Supplies and Services,504,Equipment,5023,Revenue,CATERING.FOOD & BEVERAGES
02-SEP-2022,7014199,21.16,R MANNERS & SONS LTD,013498,Commissioning & Asset Management,Children's & Education Services,103,Supplies and Services,504,Equipment,5023,Revenue,CATERING.FOOD & BEVERAGES
02-SEP-2022,7014199,23.12,R MANNERS & SONS LTD,013498,Commissioning & Asset Management,Children's & Education Services,103,Supplies and Services,504,Equipment,5023,Revenue,CATERING.FOOD & BEVERAGES
02-SEP-2022,7014199,33,R MANNERS & SONS LTD,013498,Commissioning & Asset Management,Children's & Education Services,103,Supplies and Services,504,Equipment,5023,Revenue,CATERING.FOOD & BEVERAGES
02-SEP-2022,7014199,39.6,R MANNERS & SONS LTD,013498,Commissioning & Asset Management,Children's & Education Services,103,Supplies and Services,504,Equipment,5023,Revenue,CATERING.FOOD & BEVERAGES
02-SEP-2022,7014199,90.58,R MANNERS & SONS LTD,013498,Commissioning & Asset Management,Children's & Education Services,103,Supplies and Services,504,Equipment,5023,Revenue,CATERING.FOOD & BEVERAGES
02-SEP-2022,7014199,10.58,R MANNERS & SONS LTD,013498,Commissioning & Asset Management,Children's & Education Services,103,Supplies and Services,504,Equipment,5023,Revenue,CATERING.FOOD & BEVERAGES
02-SEP-2022,7014199,28.9,R MANNERS & SONS LTD,013498,Commissioning & Asset Management,Children's & Education Services,103,Supplies and Services,504,Equipment,5023,Revenue,CATERING.FOOD & BEVERAGES
02-SEP-2022,7014199,31.74,R MANNERS & SONS LTD,013498,Commissioning & Asset Management,Children's & Education Services,103,Supplies and Services,504,Equipment,5023,Revenue,CATERING.FOOD & BEVERAGES
02-SEP-2022,7014199,37.03,R MANNERS & SONS LTD,013498,Commissioning & Asset Management,Children's & Education Services,103,Supplies and Services,504,Equipment,5023,Revenue,CATERING.FOOD & BEVERAGES
02-SEP-2022,7014199,39.6,R MANNERS & SONS LTD,013498,Commissioning & Asset Management,Children's & Education Services,103,Supplies and Services,504,Equipment,5023,Revenue,CATERING.FOOD & BEVERAGES
02-SEP-2022,7014199,46.12,R MANNERS & SONS LTD,013498,Commissioning & Asset Management,Children's & Education Services,103,Supplies and Services,504,Equipment,5023,Revenue,CATERING.FOOD & BEVERAGES
02-SEP-2022,7014199,47.9,R MANNERS & SONS LTD,013498,Commissioning & Asset Management,Children's & Education Services,103,Supplies and Services,504,Equipment,5023,Revenue,CATERING.FOOD & BEVERAGES
02-SEP-2022,7014199,54.91,R MANNERS & SONS LTD,013498,Commissioning & Asset Management,Children's & Education Services,103,Supplies and Services,504,Equipment,5023,Revenue,CATERING.FOOD & BEVERAGES
02-SEP-2022,7014199,21.16,R MANNERS & SONS LTD,013498,Commissioning & Asset Management,Children's & Education Services,103,Supplies and Services,504,Equipment,5023,Revenue,CATERING.FOOD & BEVERAGES
02-SEP-2022,7014199,64.08,R MANNERS & SONS LTD,013498,Commissioning & Asset Management,Children's & Education Services,103,Supplies and Services,504,Equipment,5023,Revenue,CATERING.FOOD & BEVERAGES
02-SEP-2022,7014199,74.06,R MANNERS & SONS LTD,013498,Commissioning & Asset Management,Children's & Education Services,103,Supplies and Services,504,Equipment,5023,Revenue,CATERING.FOOD & BEVERAGES
02-SEP-2022,7014199,74.06,R MANNERS & SONS LTD,013498,Commissioning & Asset Management,Children's & Education Services,103,Supplies and Services,504,Equipment,5023,Revenue,CATERING.FOOD & BEVERAGES
02-SEP-2022,7014199,74.06,R MANNERS & SONS LTD,013498,Commissioning & Asset Management,Children's & Education Services,103,Supplies and Services,504,Equipment,5023,Revenue,CATERING.FOOD & BEVERAGES
02-SEP-2022,7014199,80.92,R MANNERS & SONS LTD,013498,Commissioning & Asset Management,Children's & Education Services,103,Supplies and Services,504,Equipment,5023,Revenue,CATERING.FOOD & BEVERAGES
02-SEP-2022,7014199,99,R MANNERS & SONS LTD,013498,Commissioning & Asset Management,Children's & Education Services,103,Supplies and Services,504,Equipment,5023,Revenue,CATERING.FOOD & BEVERAGES
02-SEP-2022,7014199,226.01,R MANNERS & SONS LTD,013498,Commissioning & Asset Management,Children's & Education Services,103,Supplies and Services,504,Equipment,5023,Revenue,CATERING.FOOD & BEVERAGES
02-SEP-2022,7014199,10.58,R MANNERS & SONS LTD,013498,Commissioning & Asset Management,Children's & Education Services,103,Supplies and Services,504,Equipment,5023,Revenue,CATERING.FOOD & BEVERAGES
02-SEP-2022,7014199,17.34,R MANNERS & SONS LTD,013498,Commissioning & Asset Management,Children's & Education Services,103,Supplies and Services,504,Equipment,5023,Revenue,CATERING.FOOD & BEVERAGES
02-SEP-2022,7014199,26.4,R MANNERS & SONS LTD,013498,Commissioning & Asset Management,Children's & Education Services,103,Supplies and Services,504,Equipment,5023,Revenue,CATERING.FOOD & BEVERAGES
02-SEP-2022,7014199,26.45,R MANNERS & SONS LTD,013498,Commissioning & Asset Management,Children's & Education Services,103,Supplies and Services,504,Equipment,5023,Revenue,CATERING.FOOD & BEVERAGES
02-SEP-2022,7014199,26.45,R MANNERS & SONS LTD,013498,Commissioning & Asset Management,Children's & Education Services,103,Supplies and Services,504,Equipment,5023,Revenue,CATERING.FOOD & BEVERAGES
02-SEP-2022,7014199,28.9,R MANNERS & SONS LTD,013498,Commissioning & Asset Management,Children's & Education Services,103,Supplies and Services,504,Equipment,5023,Revenue,CATERING.FOOD & BEVERAGES
02-SEP-2022,7014199,31.35,R MANNERS & SONS LTD,013498,Commissioning & Asset Management,Children's & Education Services,103,Supplies and Services,504,Equipment,5023,Revenue,CATERING.FOOD & BEVERAGES
02-SEP-2022,7014199,31.74,R MANNERS & SONS LTD,013498,Commissioning & Asset Management,Children's & Education Services,103,Supplies and Services,504,Equipment,5023,Revenue,CATERING.FOOD & BEVERAGES
02-SEP-2022,7014199,44.72,R MANNERS & SONS LTD,013498,Commissioning & Asset Management,Children's & Education Services,103,Supplies and Services,504,Equipment,5023,Revenue,CATERING.FOOD & BEVERAGES
02-SEP-2022,7014199,64.46,R MANNERS & SONS LTD,013498,Commissioning & Asset Management,Children's & Education Services,103,Supplies and Services,504,Equipment,5023,Revenue,CATERING.FOOD & BEVERAGES
02-SEP-2022,7014199,2.65,R MANNERS & SONS LTD,013498,Commissioning & Asset Management,Children's & Education Services,103,Supplies and Services,504,Equipment,5023,Revenue,CATERING.FOOD & BEVERAGES
02-SEP-2022,7014199,2.65,R MANNERS & SONS LTD,013498,Commissioning & Asset Management,Children's & Education Services,103,Supplies and Services,504,Equipment,5023,Revenue,CATERING.FOOD & BEVERAGES
02-SEP-2022,7014199,2.89,R MANNERS & SONS LTD,013498,Commissioning & Asset Management,Children's & Education Services,103,Supplies and Services,504,Equipment,5023,Revenue,CATERING.FOOD & BEVERAGES
02-SEP-2022,7014199,21.16,R MANNERS & SONS LTD,013498,Commissioning & Asset Management,Children's & Education Services,103,Supplies and Services,504,Equipment,5023,Revenue,CATERING.FOOD & BEVERAGES
02-SEP-2022,7014199,21.16,R MANNERS & SONS LTD,013498,Commissioning & Asset Management,Children's & Education Services,103,Supplies and Services,504,Equipment,5023,Revenue,CATERING.FOOD & BEVERAGES
02-SEP-2022,7014199,31.74,R MANNERS & SONS LTD,013498,Commissioning & Asset Management,Children's & Education Services,103,Supplies and Services,504,Equipment,5023,Revenue,CATERING.FOOD & BEVERAGES
02-SEP-2022,7014199,40.46,R MANNERS & SONS LTD,013498,Commissioning & Asset Management,Children's & Education Services,103,Supplies and Services,504,Equipment,5023,Revenue,CATERING.FOOD & BEVERAGES
02-SEP-2022,7014199,49.5,R MANNERS & SONS LTD,013498,Commissioning & Asset Management,Children's & Education Services,103,Supplies and Services,504,Equipment,5023,Revenue,CATERING.FOOD & BEVERAGES
02-SEP-2022,7014199,133.9,R MANNERS & SONS LTD,013498,Commissioning & Asset Management,Children's & Education Services,103,Supplies and Services,504,Equipment,5023,Revenue,CATERING.FOOD & BEVERAGES
02-SEP-2022,7014199,139.89,R MANNERS & SONS LTD,013498,Commissioning & Asset Management,Children's & Education Services,103,Supplies and Services,504,Equipment,5023,Revenue,CATERING.FOOD & BEVERAGES
02-SEP-2022,7014199,15.87,R MANNERS & SONS LTD,013498,Commissioning & Asset Management,Children's & Education Services,103,Supplies and Services,504,Equipment,5023,Revenue,CATERING.FOOD & BEVERAGES
02-SEP-2022,7014199,28.9,R MANNERS & SONS LTD,013498,Commissioning & Asset Management,Children's & Education Services,103,Supplies and Services,504,Equipment,5023,Revenue,CATERING.FOOD & BEVERAGES
02-SEP-2022,7014199,31.74,R MANNERS & SONS LTD,013498,Commissioning & Asset Management,Children's & Education Services,103,Supplies and Services,504,Equipment,5023,Revenue,CATERING.FOOD & BEVERAGES
02-SEP-2022,7014199,31.74,R MANNERS & SONS LTD,013498,Commissioning & Asset Management,Children's & Education Services,103,Supplies and Services,504,Equipment,5023,Revenue,CATERING.FOOD & BEVERAGES
02-SEP-2022,7014199,62.7,R MANNERS & SONS LTD,013498,Commissioning & Asset Management,Children's & Education Services,103,Supplies and Services,504,Equipment,5023,Revenue,CATERING.FOOD & BEVERAGES
02-SEP-2022,7014199,62.7,R MANNERS & SONS LTD,013498,Commissioning & Asset Management,Children's & Education Services,103,Supplies and Services,504,Equipment,5023,Revenue,CATERING.FOOD & BEVERAGES
02-SEP-2022,7014199,64.35,R MANNERS & SONS LTD,013498,Commissioning & Asset Management,Children's & Education Services,103,Supplies and Services,504,Equipment,5023,Revenue,CATERING.FOOD & BEVERAGES
02-SEP-2022,7014199,64.35,R MANNERS & SONS LTD,013498,Commissioning & Asset Management,Children's & Education Services,103,Supplies and Services,504,Equipment,5023,Revenue,CATERING.FOOD & BEVERAGES
02-SEP-2022,7014199,174.28,R MANNERS & SONS LTD,013498,Commissioning & Asset Management,Children's & Education Services,103,Supplies and Services,504,Equipment,5023,Revenue,CATERING.FOOD & BEVERAGES
02-SEP-2022,7014199,20.62,R MANNERS & SONS LTD,013498,Commissioning & Asset Management,Children's & Education Services,103,Supplies and Services,504,Equipment,5023,Revenue,CATERING.FOOD & BEVERAGES
02-SEP-2022,7014199,32.36,R MANNERS & SONS LTD,013498,Commissioning & Asset Management,Children's & Education Services,103,Supplies and Services,504,Equipment,5023,Revenue,CATERING.FOOD & BEVERAGES
02-SEP-2022,7014199,47.61,R MANNERS & SONS LTD,013498,Commissioning & Asset Management,Children's & Education Services,103,Supplies and Services,504,Equipment,5023,Revenue,CATERING.FOOD & BEVERAGES
02-SEP-2022,7014199,47.61,R MANNERS & SONS LTD,013498,Commissioning & Asset Management,Children's & Education Services,103,Supplies and Services,504,Equipment,5023,Revenue,CATERING.FOOD & BEVERAGES
02-SEP-2022,7014199,57.8,R MANNERS & SONS LTD,013498,Commissioning & Asset Management,Children's & Education Services,103,Supplies and Services,504,Equipment,5023,Revenue,CATERING.FOOD & BEVERAGES
02-SEP-2022,7014199,63.48,R MANNERS & SONS LTD,013498,Commissioning & Asset Management,Children's & Education Services,103,Supplies and Services,504,Equipment,5023,Revenue,CATERING.FOOD & BEVERAGES
02-SEP-2022,7014199,72.6,R MANNERS & SONS LTD,013498,Commissioning & Asset Management,Children's & Education Services,103,Supplies and Services,504,Equipment,5023,Revenue,CATERING.FOOD & BEVERAGES
02-SEP-2022,7014199,72.6,R MANNERS & SONS LTD,013498,Commissioning & Asset Management,Children's & Education Services,103,Supplies and Services,504,Equipment,5023,Revenue,CATERING.FOOD & BEVERAGES
02-SEP-2022,7014199,170.59,R MANNERS & SONS LTD,013498,Commissioning & Asset Management,Children's & Education Services,103,Supplies and Services,504,Equipment,5023,Revenue,CATERING.FOOD & BEVERAGES
02-SEP-2022,7014199,5.29,R MANNERS & SONS LTD,013498,Commissioning & Asset Management,Children's & Education Services,103,Supplies and Services,504,Equipment,5023,Revenue,CATERING.FOOD & BEVERAGES
02-SEP-2022,7014199,26.45,R MANNERS & SONS LTD,013498,Commissioning & Asset Management,Children's & Education Services,103,Supplies and Services,504,Equipment,5023,Revenue,CATERING.FOOD & BEVERAGES
02-SEP-2022,7014199,26.45,R MANNERS & SONS LTD,013498,Commissioning & Asset Management,Children's & Education Services,103,Supplies and Services,504,Equipment,5023,Revenue,CATERING.FOOD & BEVERAGES
02-SEP-2022,7014199,28.9,R MANNERS & SONS LTD,013498,Commissioning & Asset Management,Children's & Education Services,103,Supplies and Services,504,Equipment,5023,Revenue,CATERING.FOOD & BEVERAGES
02-SEP-2022,7014199,31.35,R MANNERS & SONS LTD,013498,Commissioning & Asset Management,Children's & Education Services,103,Supplies and Services,504,Equipment,5023,Revenue,CATERING.FOOD & BEVERAGES
02-SEP-2022,7014199,31.35,R MANNERS & SONS LTD,013498,Commissioning & Asset Management,Children's & Education Services,103,Supplies and Services,504,Equipment,5023,Revenue,CATERING.FOOD & BEVERAGES
02-SEP-2022,7014199,91.98,R MANNERS & SONS LTD,013498,Commissioning & Asset Management,Children's & Education Services,103,Supplies and Services,504,Equipment,5023,Revenue,CATERING.FOOD & BEVERAGES
02-SEP-2022,7014199,142.31,R MANNERS & SONS LTD,013498,Commissioning & Asset Management,Children's & Education Services,103,Supplies and Services,504,Equipment,5023,Revenue,CATERING.FOOD & BEVERAGES
02-SEP-2022,7014199,2.65,R MANNERS & SONS LTD,013498,Commissioning & Asset Management,Children's & Education Services,103,Supplies and Services,504,Equipment,5023,Revenue,CATERING.FOOD & BEVERAGES
02-SEP-2022,7014199,2.65,R MANNERS & SONS LTD,013498,Commissioning & Asset Management,Children's & Education Services,103,Supplies and Services,504,Equipment,5023,Revenue,CATERING.FOOD & BEVERAGES
02-SEP-2022,7014199,2.89,R MANNERS & SONS LTD,013498,Commissioning & Asset Management,Children's & Education Services,103,Supplies and Services,504,Equipment,5023,Revenue,CATERING.FOOD & BEVERAGES
02-SEP-2022,7014199,7.12,R MANNERS & SONS LTD,013498,Commissioning & Asset Management,Children's & Education Services,103,Supplies and Services,504,Equipment,5023,Revenue,CATERING.FOOD & BEVERAGES
02-SEP-2022,7014199,15.87,R MANNERS & SONS LTD,013498,Commissioning & Asset Management,Children's & Education Services,103,Supplies and Services,504,Equipment,5023,Revenue,CATERING.FOOD & BEVERAGES
02-SEP-2022,7014199,15.87,R MANNERS & SONS LTD,013498,Commissioning & Asset Management,Children's & Education Services,103,Supplies and Services,504,Equipment,5023,Revenue,CATERING.FOOD & BEVERAGES
02-SEP-2022,7014199,17.34,R MANNERS & SONS LTD,013498,Commissioning & Asset Management,Children's & Education Services,103,Supplies and Services,504,Equipment,5023,Revenue,CATERING.FOOD & BEVERAGES
02-SEP-2022,7014199,24.75,R MANNERS & SONS LTD,013498,Commissioning & Asset Management,Children's & Education Services,103,Supplies and Services,504,Equipment,5023,Revenue,CATERING.FOOD & BEVERAGES
02-SEP-2022,7014199,24.75,R MANNERS & SONS LTD,013498,Commissioning & Asset Management,Children's & Education Services,103,Supplies and Services,504,Equipment,5023,Revenue,CATERING.FOOD & BEVERAGES
02-SEP-2022,7014199,24.75,R MANNERS & SONS LTD,013498,Commissioning & Asset Management,Children's & Education Services,103,Supplies and Services,504,Equipment,5023,Revenue,CATERING.FOOD & BEVERAGES
02-SEP-2022,7014199,36.38,R MANNERS & SONS LTD,013498,Commissioning & Asset Management,Children's & Education Services,103,Supplies and Services,504,Equipment,5023,Revenue,CATERING.FOOD & BEVERAGES
02-SEP-2022,7014199,52.36,R MANNERS & SONS LTD,013498,Commissioning & Asset Management,Children's & Education Services,103,Supplies and Services,504,Equipment,5023,Revenue,CATERING.FOOD & BEVERAGES
02-SEP-2022,7014199,2.65,R MANNERS & SONS LTD,013498,Commissioning & Asset Management,Children's & Education Services,103,Supplies and Services,504,Equipment,5023,Revenue,CATERING.FOOD & BEVERAGES
02-SEP-2022,7014199,10.58,R MANNERS & SONS LTD,013498,Commissioning & Asset Management,Children's & Education Services,103,Supplies and Services,504,Equipment,5023,Revenue,CATERING.FOOD & BEVERAGES
02-SEP-2022,7014199,31.74,R MANNERS & SONS LTD,013498,Commissioning & Asset Management,Children's & Education Services,103,Supplies and Services,504,Equipment,5023,Revenue,CATERING.FOOD & BEVERAGES
02-SEP-2022,7014199,34.68,R MANNERS & SONS LTD,013498,Commissioning & Asset Management,Children's & Education Services,103,Supplies and Services,504,Equipment,5023,Revenue,CATERING.FOOD & BEVERAGES
02-SEP-2022,7014199,37.03,R MANNERS & SONS LTD,013498,Commissioning & Asset Management,Children's & Education Services,103,Supplies and Services,504,Equipment,5023,Revenue,CATERING.FOOD & BEVERAGES
02-SEP-2022,7014199,39.6,R MANNERS & SONS LTD,013498,Commissioning & Asset Management,Children's & Education Services,103,Supplies and Services,504,Equipment,5023,Revenue,CATERING.FOOD & BEVERAGES
02-SEP-2022,7014199,39.6,R MANNERS & SONS LTD,013498,Commissioning & Asset Management,Children's & Education Services,103,Supplies and Services,504,Equipment,5023,Revenue,CATERING.FOOD & BEVERAGES
02-SEP-2022,7014199,92.62,R MANNERS & SONS LTD,013498,Commissioning & Asset Management,Children's & Education Services,103,Supplies and Services,504,Equipment,5023,Revenue,CATERING.FOOD & BEVERAGES
02-SEP-2022,7014199,15.87,R MANNERS & SONS LTD,013498,Commissioning & Asset Management,Children's & Education Services,103,Supplies and Services,504,Equipment,5023,Revenue,CATERING.FOOD & BEVERAGES
02-SEP-2022,7014199,17.34,R MANNERS & SONS LTD,013498,Commissioning & Asset Management,Children's & Education Services,103,Supplies and Services,504,Equipment,5023,Revenue,CATERING.FOOD & BEVERAGES
02-SEP-2022,7014199,21.16,R MANNERS & SONS LTD,013498,Commissioning & Asset Management,Children's & Education Services,103,Supplies and Services,504,Equipment,5023,Revenue,CATERING.FOOD & BEVERAGES
02-SEP-2022,7014199,21.16,R MANNERS & SONS LTD,013498,Commissioning & Asset Management,Children's & Education Services,103,Supplies and Services,504,Equipment,5023,Revenue,CATERING.FOOD & BEVERAGES
02-SEP-2022,7014199,31.74,R MANNERS & SONS LTD,013498,Commissioning & Asset Management,Children's & Education Services,103,Supplies and Services,504,Equipment,5023,Revenue,CATERING.FOOD & BEVERAGES
02-SEP-2022,7014199,31.74,R MANNERS & SONS LTD,013498,Commissioning & Asset Management,Children's & Education Services,103,Supplies and Services,504,Equipment,5023,Revenue,CATERING.FOOD & BEVERAGES
02-SEP-2022,7014199,46.24,R MANNERS & SONS LTD,013498,Commissioning & Asset Management,Children's & Education Services,103,Supplies and Services,504,Equipment,5023,Revenue,CATERING.FOOD & BEVERAGES
02-SEP-2022,7014199,56.1,R MANNERS & SONS LTD,013498,Commissioning & Asset Management,Children's & Education Services,103,Supplies and Services,504,Equipment,5023,Revenue,CATERING.FOOD & BEVERAGES
02-SEP-2022,7014199,56.1,R MANNERS & SONS LTD,013498,Commissioning & Asset Management,Children's & Education Services,103,Supplies and Services,504,Equipment,5023,Revenue,CATERING.FOOD & BEVERAGES
02-SEP-2022,7014199,135.68,R MANNERS & SONS LTD,013498,Commissioning & Asset Management,Children's & Education Services,103,Supplies and Services,504,Equipment,5023,Revenue,CATERING.FOOD & BEVERAGES
02-SEP-2022,7014199,137.21,R MANNERS & SONS LTD,013498,Commissioning & Asset Management,Children's & Education Services,103,Supplies and Services,504,Equipment,5023,Revenue,CATERING.FOOD & BEVERAGES
02-SEP-2022,7014199,37.03,R MANNERS & SONS LTD,013498,Commissioning & Asset Management,Children's & Education Services,103,Supplies and Services,504,Equipment,5023,Revenue,CATERING.FOOD & BEVERAGES
02-SEP-2022,7014199,42.32,R MANNERS & SONS LTD,013498,Commissioning & Asset Management,Children's & Education Services,103,Supplies and Services,504,Equipment,5023,Revenue,CATERING.FOOD & BEVERAGES
02-SEP-2022,7014199,42.32,R MANNERS & SONS LTD,013498,Commissioning & Asset Management,Children's & Education Services,103,Supplies and Services,504,Equipment,5023,Revenue,CATERING.FOOD & BEVERAGES
02-SEP-2022,7014199,47.61,R MANNERS & SONS LTD,013498,Commissioning & Asset Management,Children's & Education Services,103,Supplies and Services,504,Equipment,5023,Revenue,CATERING.FOOD & BEVERAGES
02-SEP-2022,7014199,57.8,R MANNERS & SONS LTD,013498,Commissioning & Asset Management,Children's & Education Services,103,Supplies and Services,504,Equipment,5023,Revenue,CATERING.FOOD & BEVERAGES
02-SEP-2022,7014199,57.8,R MANNERS & SONS LTD,013498,Commissioning & Asset Management,Children's & Education Services,103,Supplies and Services,504,Equipment,5023,Revenue,CATERING.FOOD & BEVERAGES
02-SEP-2022,7014199,69.36,R MANNERS & SONS LTD,013498,Commissioning & Asset Management,Children's & Education Services,103,Supplies and Services,504,Equipment,5023,Revenue,CATERING.FOOD & BEVERAGES
02-SEP-2022,7014199,75.9,R MANNERS & SONS LTD,013498,Commissioning & Asset Management,Children's & Education Services,103,Supplies and Services,504,Equipment,5023,Revenue,CATERING.FOOD & BEVERAGES
02-SEP-2022,7014199,75.9,R MANNERS & SONS LTD,013498,Commissioning & Asset Management,Children's & Education Services,103,Supplies and Services,504,Equipment,5023,Revenue,CATERING.FOOD & BEVERAGES
02-SEP-2022,7014199,104.04,R MANNERS & SONS LTD,013498,Commissioning & Asset Management,Children's & Education Services,103,Supplies and Services,504,Equipment,5023,Revenue,CATERING.FOOD & BEVERAGES
02-SEP-2022,7014199,152.5,R MANNERS & SONS LTD,013498,Commissioning & Asset Management,Children's & Education Services,103,Supplies and Services,504,Equipment,5023,Revenue,CATERING.FOOD & BEVERAGES
02-SEP-2022,7014199,168.04,R MANNERS & SONS LTD,013498,Commissioning & Asset Management,Children's & Education Services,103,Supplies and Services,504,Equipment,5023,Revenue,CATERING.FOOD & BEVERAGES
02-SEP-2022,7014199,15.87,R MANNERS & SONS LTD,013498,Commissioning & Asset Management,Children's & Education Services,103,Supplies and Services,504,Equipment,5023,Revenue,CATERING.FOOD & BEVERAGES
02-SEP-2022,7014199,23.12,R MANNERS & SONS LTD,013498,Commissioning & Asset Management,Children's & Education Services,103,Supplies and Services,504,Equipment,5023,Revenue,CATERING.FOOD & BEVERAGES
02-SEP-2022,7014199,37.03,R MANNERS & SONS LTD,013498,Commissioning & Asset Management,Children's & Education Services,103,Supplies and Services,504,Equipment,5023,Revenue,CATERING.FOOD & BEVERAGES
02-SEP-2022,7014199,52.9,R MANNERS & SONS LTD,013498,Commissioning & Asset Management,Children's & Education Services,103,Supplies and Services,504,Equipment,5023,Revenue,CATERING.FOOD & BEVERAGES
02-SEP-2022,7014199,57.8,R MANNERS & SONS LTD,013498,Commissioning & Asset Management,Children's & Education Services,103,Supplies and Services,504,Equipment,5023,Revenue,CATERING.FOOD & BEVERAGES
02-SEP-2022,7014199,62.7,R MANNERS & SONS LTD,013498,Commissioning & Asset Management,Children's & Education Services,103,Supplies and Services,504,Equipment,5023,Revenue,CATERING.FOOD & BEVERAGES
02-SEP-2022,7014199,62.7,R MANNERS & SONS LTD,013498,Commissioning & Asset Management,Children's & Education Services,103,Supplies and Services,504,Equipment,5023,Revenue,CATERING.FOOD & BEVERAGES
02-SEP-2022,7014199,153.26,R MANNERS & SONS LTD,013498,Commissioning & Asset Management,Children's & Education Services,103,Supplies and Services,504,Equipment,5023,Revenue,CATERING.FOOD & BEVERAGES
02-SEP-2022,7014199,29.7,R MANNERS & SONS LTD,013498,Commissioning & Asset Management,Children's & Education Services,103,Supplies and Services,504,Equipment,5023,Revenue,CATERING.FOOD & BEVERAGES
02-SEP-2022,7014199,52.9,R MANNERS & SONS LTD,013498,Commissioning & Asset Management,Children's & Education Services,103,Supplies and Services,504,Equipment,5023,Revenue,CATERING.FOOD & BEVERAGES
02-SEP-2022,7014199,74.25,R MANNERS & SONS LTD,013498,Commissioning & Asset Management,Children's & Education Services,103,Supplies and Services,504,Equipment,5023,Revenue,CATERING.FOOD & BEVERAGES
02-SEP-2022,7014199,79.35,R MANNERS & SONS LTD,013498,Commissioning & Asset Management,Children's & Education Services,103,Supplies and Services,504,Equipment,5023,Revenue,CATERING.FOOD & BEVERAGES
02-SEP-2022,7014199,79.35,R MANNERS & SONS LTD,013498,Commissioning & Asset Management,Children's & Education Services,103,Supplies and Services,504,Equipment,5023,Revenue,CATERING.FOOD & BEVERAGES
02-SEP-2022,7014199,82.5,R MANNERS & SONS LTD,013498,Commissioning & Asset Management,Children's & Education Services,103,Supplies and Services,504,Equipment,5023,Revenue,CATERING.FOOD & BEVERAGES
02-SEP-2022,7014199,132.25,R MANNERS & SONS LTD,013498,Commissioning & Asset Management,Children's & Education Services,103,Supplies and Services,504,Equipment,5023,Revenue,CATERING.FOOD & BEVERAGES
02-SEP-2022,7014199,132.25,R MANNERS & SONS LTD,013498,Commissioning & Asset Management,Children's & Education Services,103,Supplies and Services,504,Equipment,5023,Revenue,CATERING.FOOD & BEVERAGES
02-SEP-2022,7014199,144.5,R MANNERS & SONS LTD,013498,Commissioning & Asset Management,Children's & Education Services,103,Supplies and Services,504,Equipment,5023,Revenue,CATERING.FOOD & BEVERAGES
02-SEP-2022,7014199,149.44,R MANNERS & SONS LTD,013498,Commissioning & Asset Management,Children's & Education Services,103,Supplies and Services,504,Equipment,5023,Revenue,CATERING.FOOD & BEVERAGES
02-SEP-2022,7014199,280.79,R MANNERS & SONS LTD,013498,Commissioning & Asset Management,Children's & Education Services,103,Supplies and Services,504,Equipment,5023,Revenue,CATERING.FOOD & BEVERAGES
02-SEP-2022,7014199,10.58,R MANNERS & SONS LTD,013498,Commissioning & Asset Management,Children's & Education Services,103,Supplies and Services,504,Equipment,5023,Revenue,CATERING.FOOD & BEVERAGES
02-SEP-2022,7014199,21.16,R MANNERS & SONS LTD,013498,Commissioning & Asset Management,Children's & Education Services,103,Supplies and Services,504,Equipment,5023,Revenue,CATERING.FOOD & BEVERAGES
02-SEP-2022,7014199,31.74,R MANNERS & SONS LTD,013498,Commissioning & Asset Management,Children's & Education Services,103,Supplies and Services,504,Equipment,5023,Revenue,CATERING.FOOD & BEVERAGES
02-SEP-2022,7014199,31.74,R MANNERS & SONS LTD,013498,Commissioning & Asset Management,Children's & Education Services,103,Supplies and Services,504,Equipment,5023,Revenue,CATERING.FOOD & BEVERAGES
02-SEP-2022,7014199,46.24,R MANNERS & SONS LTD,013498,Commissioning & Asset Management,Children's & Education Services,103,Supplies and Services,504,Equipment,5023,Revenue,CATERING.FOOD & BEVERAGES
02-SEP-2022,7014199,52.8,R MANNERS & SONS LTD,013498,Commissioning & Asset Management,Children's & Education Services,103,Supplies and Services,504,Equipment,5023,Revenue,CATERING.FOOD & BEVERAGES
02-SEP-2022,7014199,52.8,R MANNERS & SONS LTD,013498,Commissioning & Asset Management,Children's & Education Services,103,Supplies and Services,504,Equipment,5023,Revenue,CATERING.FOOD & BEVERAGES
02-SEP-2022,7014199,92.87,R MANNERS & SONS LTD,013498,Commissioning & Asset Management,Children's & Education Services,103,Supplies and Services,504,Equipment,5023,Revenue,CATERING.FOOD & BEVERAGES
02-SEP-2022,7014199,10.58,R MANNERS & SONS LTD,013498,Commissioning & Asset Management,Children's & Education Services,103,Supplies and Services,504,Equipment,5023,Revenue,CATERING.FOOD & BEVERAGES
02-SEP-2022,7014199,21.16,R MANNERS & SONS LTD,013498,Commissioning & Asset Management,Children's & Education Services,103,Supplies and Services,504,Equipment,5023,Revenue,CATERING.FOOD & BEVERAGES
02-SEP-2022,7014199,21.16,R MANNERS & SONS LTD,013498,Commissioning & Asset Management,Children's & Education Services,103,Supplies and Services,504,Equipment,5023,Revenue,CATERING.FOOD & BEVERAGES
02-SEP-2022,7014199,31.35,R MANNERS & SONS LTD,013498,Commissioning & Asset Management,Children's & Education Services,103,Supplies and Services,504,Equipment,5023,Revenue,CATERING.FOOD & BEVERAGES
02-SEP-2022,7014199,34.68,R MANNERS & SONS LTD,013498,Commissioning & Asset Management,Children's & Education Services,103,Supplies and Services,504,Equipment,5023,Revenue,CATERING.FOOD & BEVERAGES
02-SEP-2022,7014199,36.3,R MANNERS & SONS LTD,013498,Commissioning & Asset Management,Children's & Education Services,103,Supplies and Services,504,Equipment,5023,Revenue,CATERING.FOOD & BEVERAGES
02-SEP-2022,7014199,65.99,R MANNERS & SONS LTD,013498,Commissioning & Asset Management,Children's & Education Services,103,Supplies and Services,504,Equipment,5023,Revenue,CATERING.FOOD & BEVERAGES
02-SEP-2022,7014199,15.87,R MANNERS & SONS LTD,013498,Commissioning & Asset Management,Children's & Education Services,103,Supplies and Services,504,Equipment,5023,Revenue,CATERING.FOOD & BEVERAGES
02-SEP-2022,7014199,15.87,R MANNERS & SONS LTD,013498,Commissioning & Asset Management,Children's & Education Services,103,Supplies and Services,504,Equipment,5023,Revenue,CATERING.FOOD & BEVERAGES
02-SEP-2022,7014199,16.5,R MANNERS & SONS LTD,013498,Commissioning & Asset Management,Children's & Education Services,103,Supplies and Services,504,Equipment,5023,Revenue,CATERING.FOOD & BEVERAGES
02-SEP-2022,7014199,28.9,R MANNERS & SONS LTD,013498,Commissioning & Asset Management,Children's & Education Services,103,Supplies and Services,504,Equipment,5023,Revenue,CATERING.FOOD & BEVERAGES
02-SEP-2022,7014199,63.95,R MANNERS & SONS LTD,013498,Commissioning & Asset Management,Children's & Education Services,103,Supplies and Services,504,Equipment,5023,Revenue,CATERING.FOOD & BEVERAGES
02-SEP-2022,7014199,70.32,R MANNERS & SONS LTD,013498,Commissioning & Asset Management,Children's & Education Services,103,Supplies and Services,504,Equipment,5023,Revenue,CATERING.FOOD & BEVERAGES
02-SEP-2022,7014199,21.16,R MANNERS & SONS LTD,013498,Commissioning & Asset Management,Children's & Education Services,103,Supplies and Services,504,Equipment,5023,Revenue,CATERING.FOOD & BEVERAGES
02-SEP-2022,7014199,23.12,R MANNERS & SONS LTD,013498,Commissioning & Asset Management,Children's & Education Services,103,Supplies and Services,504,Equipment,5023,Revenue,CATERING.FOOD & BEVERAGES
02-SEP-2022,7014199,26.4,R MANNERS & SONS LTD,013498,Commissioning & Asset Management,Children's & Education Services,103,Supplies and Services,504,Equipment,5023,Revenue,CATERING.FOOD & BEVERAGES
02-SEP-2022,7014199,26.4,R MANNERS & SONS LTD,013498,Commissioning & Asset Management,Children's & Education Services,103,Supplies and Services,504,Equipment,5023,Revenue,CATERING.FOOD & BEVERAGES
02-SEP-2022,7014199,58.35,R MANNERS & SONS LTD,013498,Commissioning & Asset Management,Children's & Education Services,103,Supplies and Services,504,Equipment,5023,Revenue,CATERING.FOOD & BEVERAGES
02-SEP-2022,7014199,26.4,R MANNERS & SONS LTD,013498,Commissioning & Asset Management,Children's & Education Services,103,Supplies and Services,504,Equipment,5023,Revenue,CATERING.FOOD & BEVERAGES
02-SEP-2022,7014199,52.9,R MANNERS & SONS LTD,013498,Commissioning & Asset Management,Children's & Education Services,103,Supplies and Services,504,Equipment,5023,Revenue,CATERING.FOOD & BEVERAGES
02-SEP-2022,7014199,52.9,R MANNERS & SONS LTD,013498,Commissioning & Asset Management,Children's & Education Services,103,Supplies and Services,504,Equipment,5023,Revenue,CATERING.FOOD & BEVERAGES
02-SEP-2022,7014199,52.9,R MANNERS & SONS LTD,013498,Commissioning & Asset Management,Children's & Education Services,103,Supplies and Services,504,Equipment,5023,Revenue,CATERING.FOOD & BEVERAGES
02-SEP-2022,7014199,52.9,R MANNERS & SONS LTD,013498,Commissioning & Asset Management,Children's & Education Services,103,Supplies and Services,504,Equipment,5023,Revenue,CATERING.FOOD & BEVERAGES
02-SEP-2022,7014199,53.4,R MANNERS & SONS LTD,013498,Commissioning & Asset Management,Children's & Education Services,103,Supplies and Services,504,Equipment,5023,Revenue,CATERING.FOOD & BEVERAGES
02-SEP-2022,7014199,56.96,R MANNERS & SONS LTD,013498,Commissioning & Asset Management,Children's & Education Services,103,Supplies and Services,504,Equipment,5023,Revenue,CATERING.FOOD & BEVERAGES
02-SEP-2022,7014199,56.96,R MANNERS & SONS LTD,013498,Commissioning & Asset Management,Children's & Education Services,103,Supplies and Services,504,Equipment,5023,Revenue,CATERING.FOOD & BEVERAGES
02-SEP-2022,7014199,57.8,R MANNERS & SONS LTD,013498,Commissioning & Asset Management,Children's & Education Services,103,Supplies and Services,504,Equipment,5023,Revenue,CATERING.FOOD & BEVERAGES
02-SEP-2022,7014199,57.8,R MANNERS & SONS LTD,013498,Commissioning & Asset Management,Children's & Education Services,103,Supplies and Services,504,Equipment,5023,Revenue,CATERING.FOOD & BEVERAGES
02-SEP-2022,7014199,2.65,R MANNERS & SONS LTD,013498,Commissioning & Asset Management,Children's & Education Services,103,Supplies and Services,504,Equipment,5023,Revenue,CATERING.FOOD & BEVERAGES
02-SEP-2022,7014199,5.29,R MANNERS & SONS LTD,013498,Commissioning & Asset Management,Children's & Education Services,103,Supplies and Services,504,Equipment,5023,Revenue,CATERING.FOOD & BEVERAGES
02-SEP-2022,7014199,46.24,R MANNERS & SONS LTD,013498,Commissioning & Asset Management,Children's & Education Services,103,Supplies and Services,504,Equipment,5023,Revenue,CATERING.FOOD & BEVERAGES
02-SEP-2022,7014199,49.5,R MANNERS & SONS LTD,013498,Commissioning & Asset Management,Children's & Education Services,103,Supplies and Services,504,Equipment,5023,Revenue,CATERING.FOOD & BEVERAGES
02-SEP-2022,7014199,52.9,R MANNERS & SONS LTD,013498,Commissioning & Asset Management,Children's & Education Services,103,Supplies and Services,504,Equipment,5023,Revenue,CATERING.FOOD & BEVERAGES
02-SEP-2022,7014199,58.19,R MANNERS & SONS LTD,013498,Commissioning & Asset Management,Children's & Education Services,103,Supplies and Services,504,Equipment,5023,Revenue,CATERING.FOOD & BEVERAGES
02-SEP-2022,7014199,59.4,R MANNERS & SONS LTD,013498,Commissioning & Asset Management,Children's & Education Services,103,Supplies and Services,504,Equipment,5023,Revenue,CATERING.FOOD & BEVERAGES
02-SEP-2022,7014199,74.27,R MANNERS & SONS LTD,013498,Commissioning & Asset Management,Children's & Education Services,103,Supplies and Services,504,Equipment,5023,Revenue,CATERING.FOOD & BEVERAGES
02-SEP-2022,7014199,148.29,R MANNERS & SONS LTD,013498,Commissioning & Asset Management,Children's & Education Services,103,Supplies and Services,504,Equipment,5023,Revenue,CATERING.FOOD & BEVERAGES
02-SEP-2022,7014199,2.65,R MANNERS & SONS LTD,013498,Commissioning & Asset Management,Children's & Education Services,103,Supplies and Services,504,Equipment,5023,Revenue,CATERING.FOOD & BEVERAGES
02-SEP-2022,7014199,15.87,R MANNERS & SONS LTD,013498,Commissioning & Asset Management,Children's & Education Services,103,Supplies and Services,504,Equipment,5023,Revenue,CATERING.FOOD & BEVERAGES
02-SEP-2022,7014199,15.87,R MANNERS & SONS LTD,013498,Commissioning & Asset Management,Children's & Education Services,103,Supplies and Services,504,Equipment,5023,Revenue,CATERING.FOOD & BEVERAGES
02-SEP-2022,7014199,15.87,R MANNERS & SONS LTD,013498,Commissioning & Asset Management,Children's & Education Services,103,Supplies and Services,504,Equipment,5023,Revenue,CATERING.FOOD & BEVERAGES
02-SEP-2022,7014199,17.34,R MANNERS & SONS LTD,013498,Commissioning & Asset Management,Children's & Education Services,103,Supplies and Services,504,Equipment,5023,Revenue,CATERING.FOOD & BEVERAGES
02-SEP-2022,7014199,19.14,R MANNERS & SONS LTD,013498,Commissioning & Asset Management,Children's & Education Services,103,Supplies and Services,504,Equipment,5023,Revenue,CATERING.FOOD & BEVERAGES
02-SEP-2022,7014199,19.14,R MANNERS & SONS LTD,013498,Commissioning & Asset Management,Children's & Education Services,103,Supplies and Services,504,Equipment,5023,Revenue,CATERING.FOOD & BEVERAGES
02-SEP-2022,7014199,19.8,R MANNERS & SONS LTD,013498,Commissioning & Asset Management,Children's & Education Services,103,Supplies and Services,504,Equipment,5023,Revenue,CATERING.FOOD & BEVERAGES
02-SEP-2022,7014199,47.01,R MANNERS & SONS LTD,013498,Commissioning & Asset Management,Children's & Education Services,103,Supplies and Services,504,Equipment,5023,Revenue,CATERING.FOOD & BEVERAGES
02-SEP-2022,7014199,5.29,R MANNERS & SONS LTD,013498,Commissioning & Asset Management,Children's & Education Services,103,Supplies and Services,504,Equipment,5023,Revenue,CATERING.FOOD & BEVERAGES
02-SEP-2022,7014199,31.74,R MANNERS & SONS LTD,013498,Commissioning & Asset Management,Children's & Education Services,103,Supplies and Services,504,Equipment,5023,Revenue,CATERING.FOOD & BEVERAGES
02-SEP-2022,7014199,34.68,R MANNERS & SONS LTD,013498,Commissioning & Asset Management,Children's & Education Services,103,Supplies and Services,504,Equipment,5023,Revenue,CATERING.FOOD & BEVERAGES
02-SEP-2022,7014199,42.32,R MANNERS & SONS LTD,013498,Commissioning & Asset Management,Children's & Education Services,103,Supplies and Services,504,Equipment,5023,Revenue,CATERING.FOOD & BEVERAGES
02-SEP-2022,7014199,42.32,R MANNERS & SONS LTD,013498,Commissioning & Asset Management,Children's & Education Services,103,Supplies and Services,504,Equipment,5023,Revenue,CATERING.FOOD & BEVERAGES
02-SEP-2022,7014199,42.32,R MANNERS & SONS LTD,013498,Commissioning & Asset Management,Children's & Education Services,103,Supplies and Services,504,Equipment,5023,Revenue,CATERING.FOOD & BEVERAGES
02-SEP-2022,7014199,49.5,R MANNERS & SONS LTD,013498,Commissioning & Asset Management,Children's & Education Services,103,Supplies and Services,504,Equipment,5023,Revenue,CATERING.FOOD & BEVERAGES
02-SEP-2022,7014199,52.8,R MANNERS & SONS LTD,013498,Commissioning & Asset Management,Children's & Education Services,103,Supplies and Services,504,Equipment,5023,Revenue,CATERING.FOOD & BEVERAGES
02-SEP-2022,7014199,10.58,R MANNERS & SONS LTD,013498,Commissioning & Asset Management,Children's & Education Services,103,Supplies and Services,504,Equipment,5023,Revenue,CATERING.FOOD & BEVERAGES
02-SEP-2022,7014199,74.06,R MANNERS & SONS LTD,013498,Commissioning & Asset Management,Children's & Education Services,103,Supplies and Services,504,Equipment,5023,Revenue,CATERING.FOOD & BEVERAGES
02-SEP-2022,7014199,74.06,R MANNERS & SONS LTD,013498,Commissioning & Asset Management,Children's & Education Services,103,Supplies and Services,504,Equipment,5023,Revenue,CATERING.FOOD & BEVERAGES
02-SEP-2022,7014199,74.06,R MANNERS & SONS LTD,013498,Commissioning & Asset Management,Children's & Education Services,103,Supplies and Services,504,Equipment,5023,Revenue,CATERING.FOOD & BEVERAGES
02-SEP-2022,7014199,74.06,R MANNERS & SONS LTD,013498,Commissioning & Asset Management,Children's & Education Services,103,Supplies and Services,504,Equipment,5023,Revenue,CATERING.FOOD & BEVERAGES
02-SEP-2022,7014199,79.2,R MANNERS & SONS LTD,013498,Commissioning & Asset Management,Children's & Education Services,103,Supplies and Services,504,Equipment,5023,Revenue,CATERING.FOOD & BEVERAGES
02-SEP-2022,7014199,79.2,R MANNERS & SONS LTD,013498,Commissioning & Asset Management,Children's & Education Services,103,Supplies and Services,504,Equipment,5023,Revenue,CATERING.FOOD & BEVERAGES
02-SEP-2022,7014199,80.92,R MANNERS & SONS LTD,013498,Commissioning & Asset Management,Children's & Education Services,103,Supplies and Services,504,Equipment,5023,Revenue,CATERING.FOOD & BEVERAGES
02-SEP-2022,7014199,194.29,R MANNERS & SONS LTD,013498,Commissioning & Asset Management,Children's & Education Services,103,Supplies and Services,504,Equipment,5023,Revenue,CATERING.FOOD & BEVERAGES
02-SEP-2022,7014199,15.87,R MANNERS & SONS LTD,013498,Commissioning & Asset Management,Children's & Education Services,103,Supplies and Services,504,Equipment,5023,Revenue,CATERING.FOOD & BEVERAGES
02-SEP-2022,7014199,15.87,R MANNERS & SONS LTD,013498,Commissioning & Asset Management,Children's & Education Services,103,Supplies and Services,504,Equipment,5023,Revenue,CATERING.FOOD & BEVERAGES
02-SEP-2022,7014199,15.87,R MANNERS & SONS LTD,013498,Commissioning & Asset Management,Children's & Education Services,103,Supplies and Services,504,Equipment,5023,Revenue,CATERING.FOOD & BEVERAGES
02-SEP-2022,7014199,15.87,R MANNERS & SONS LTD,013498,Commissioning & Asset Management,Children's & Education Services,103,Supplies and Services,504,Equipment,5023,Revenue,CATERING.FOOD & BEVERAGES
02-SEP-2022,7014199,17.34,R MANNERS & SONS LTD,013498,Commissioning & Asset Management,Children's & Education Services,103,Supplies and Services,504,Equipment,5023,Revenue,CATERING.FOOD & BEVERAGES
02-SEP-2022,7014199,24.75,R MANNERS & SONS LTD,013498,Commissioning & Asset Management,Children's & Education Services,103,Supplies and Services,504,Equipment,5023,Revenue,CATERING.FOOD & BEVERAGES
02-SEP-2022,7014199,56.57,R MANNERS & SONS LTD,013498,Commissioning & Asset Management,Children's & Education Services,103,Supplies and Services,504,Equipment,5023,Revenue,CATERING.FOOD & BEVERAGES
02-SEP-2022,7014199,5.29,R MANNERS & SONS LTD,013498,Commissioning & Asset Management,Children's & Education Services,103,Supplies and Services,504,Equipment,5023,Revenue,CATERING.FOOD & BEVERAGES
02-SEP-2022,7014199,15.87,R MANNERS & SONS LTD,013498,Commissioning & Asset Management,Children's & Education Services,103,Supplies and Services,504,Equipment,5023,Revenue,CATERING.FOOD & BEVERAGES
02-SEP-2022,7014199,21.16,R MANNERS & SONS LTD,013498,Commissioning & Asset Management,Children's & Education Services,103,Supplies and Services,504,Equipment,5023,Revenue,CATERING.FOOD & BEVERAGES
02-SEP-2022,7014199,21.16,R MANNERS & SONS LTD,013498,Commissioning & Asset Management,Children's & Education Services,103,Supplies and Services,504,Equipment,5023,Revenue,CATERING.FOOD & BEVERAGES
02-SEP-2022,7014199,23.12,R MANNERS & SONS LTD,013498,Commissioning & Asset Management,Children's & Education Services,103,Supplies and Services,504,Equipment,5023,Revenue,CATERING.FOOD & BEVERAGES
02-SEP-2022,7014199,33,R MANNERS & SONS LTD,013498,Commissioning & Asset Management,Children's & Education Services,103,Supplies and Services,504,Equipment,5023,Revenue,CATERING.FOOD & BEVERAGES
02-SEP-2022,7014199,77.97,R MANNERS & SONS LTD,013498,Commissioning & Asset Management,Children's & Education Services,103,Supplies and Services,504,Equipment,5023,Revenue,CATERING.FOOD & BEVERAGES
02-SEP-2022,7014199,79.12,R MANNERS & SONS LTD,013498,Commissioning & Asset Management,Children's & Education Services,103,Supplies and Services,504,Equipment,5023,Revenue,CATERING.FOOD & BEVERAGES
02-SEP-2022,7014199,10.58,R MANNERS & SONS LTD,013498,Commissioning & Asset Management,Children's & Education Services,103,Supplies and Services,504,Equipment,5023,Revenue,CATERING.FOOD & BEVERAGES
02-SEP-2022,7014199,21.16,R MANNERS & SONS LTD,013498,Commissioning & Asset Management,Children's & Education Services,103,Supplies and Services,504,Equipment,5023,Revenue,CATERING.FOOD & BEVERAGES
02-SEP-2022,7014199,23.12,R MANNERS & SONS LTD,013498,Commissioning & Asset Management,Children's & Education Services,103,Supplies and Services,504,Equipment,5023,Revenue,CATERING.FOOD & BEVERAGES
02-SEP-2022,7014199,24.75,R MANNERS & SONS LTD,013498,Commissioning & Asset Management,Children's & Education Services,103,Supplies and Services,504,Equipment,5023,Revenue,CATERING.FOOD & BEVERAGES
02-SEP-2022,7014199,26.45,R MANNERS & SONS LTD,013498,Commissioning & Asset Management,Children's & Education Services,103,Supplies and Services,504,Equipment,5023,Revenue,CATERING.FOOD & BEVERAGES
02-SEP-2022,7014199,46.25,R MANNERS & SONS LTD,013498,Commissioning & Asset Management,Children's & Education Services,103,Supplies and Services,504,Equipment,5023,Revenue,CATERING.FOOD & BEVERAGES
02-SEP-2022,7014199,2.65,R MANNERS & SONS LTD,013498,Commissioning & Asset Management,Children's & Education Services,103,Supplies and Services,504,Equipment,5023,Revenue,CATERING.FOOD & BEVERAGES
02-SEP-2022,7014199,2.89,R MANNERS & SONS LTD,013498,Commissioning & Asset Management,Children's & Education Services,103,Supplies and Services,504,Equipment,5023,Revenue,CATERING.FOOD & BEVERAGES
02-SEP-2022,7014199,5.29,R MANNERS & SONS LTD,013498,Commissioning & Asset Management,Children's & Education Services,103,Supplies and Services,504,Equipment,5023,Revenue,CATERING.FOOD & BEVERAGES
02-SEP-2022,7014199,5.29,R MANNERS & SONS LTD,013498,Commissioning & Asset Management,Children's & Education Services,103,Supplies and Services,504,Equipment,5023,Revenue,CATERING.FOOD & BEVERAGES
02-SEP-2022,7014199,19.8,R MANNERS & SONS LTD,013498,Commissioning & Asset Management,Children's & Education Services,103,Supplies and Services,504,Equipment,5023,Revenue,CATERING.FOOD & BEVERAGES
02-SEP-2022,7014199,21.16,R MANNERS & SONS LTD,013498,Commissioning & Asset Management,Children's & Education Services,103,Supplies and Services,504,Equipment,5023,Revenue,CATERING.FOOD & BEVERAGES
02-SEP-2022,7014199,23.12,R MANNERS & SONS LTD,013498,Commissioning & Asset Management,Children's & Education Services,103,Supplies and Services,504,Equipment,5023,Revenue,CATERING.FOOD & BEVERAGES
02-SEP-2022,7014199,30.96,R MANNERS & SONS LTD,013498,Commissioning & Asset Management,Children's & Education Services,103,Supplies and Services,504,Equipment,5023,Revenue,CATERING.FOOD & BEVERAGES
02-SEP-2022,7014199,32.04,R MANNERS & SONS LTD,013498,Commissioning & Asset Management,Children's & Education Services,103,Supplies and Services,504,Equipment,5023,Revenue,CATERING.FOOD & BEVERAGES
02-SEP-2022,7014199,35.6,R MANNERS & SONS LTD,013498,Commissioning & Asset Management,Children's & Education Services,103,Supplies and Services,504,Equipment,5023,Revenue,CATERING.FOOD & BEVERAGES
02-SEP-2022,7014199,56.18,R MANNERS & SONS LTD,013498,Commissioning & Asset Management,Children's & Education Services,103,Supplies and Services,504,Equipment,5023,Revenue,CATERING.FOOD & BEVERAGES
02-SEP-2022,7014199,17.34,R MANNERS & SONS LTD,013498,Commissioning & Asset Management,Children's & Education Services,103,Supplies and Services,504,Equipment,5023,Revenue,CATERING.FOOD & BEVERAGES
02-SEP-2022,7014199,21.16,R MANNERS & SONS LTD,013498,Commissioning & Asset Management,Children's & Education Services,103,Supplies and Services,504,Equipment,5023,Revenue,CATERING.FOOD & BEVERAGES
02-SEP-2022,7014199,21.16,R MANNERS & SONS LTD,013498,Commissioning & Asset Management,Children's & Education Services,103,Supplies and Services,504,Equipment,5023,Revenue,CATERING.FOOD & BEVERAGES
02-SEP-2022,7014199,24.75,R MANNERS & SONS LTD,013498,Commissioning & Asset Management,Children's & Education Services,103,Supplies and Services,504,Equipment,5023,Revenue,CATERING.FOOD & BEVERAGES
02-SEP-2022,7014199,31.74,R MANNERS & SONS LTD,013498,Commissioning & Asset Management,Children's & Education Services,103,Supplies and Services,504,Equipment,5023,Revenue,CATERING.FOOD & BEVERAGES
02-SEP-2022,7014199,53.38,R MANNERS & SONS LTD,013498,Commissioning & Asset Management,Children's & Education Services,103,Supplies and Services,504,Equipment,5023,Revenue,CATERING.FOOD & BEVERAGES
02-SEP-2022,7014199,55.55,R MANNERS & SONS LTD,013498,Commissioning & Asset Management,Children's & Education Services,103,Supplies and Services,504,Equipment,5023,Revenue,CATERING.FOOD & BEVERAGES
02-SEP-2022,7014199,15.87,R MANNERS & SONS LTD,013498,Commissioning & Asset Management,Children's & Education Services,103,Supplies and Services,504,Equipment,5023,Revenue,CATERING.FOOD & BEVERAGES
02-SEP-2022,7014199,26.45,R MANNERS & SONS LTD,013498,Commissioning & Asset Management,Children's & Education Services,103,Supplies and Services,504,Equipment,5023,Revenue,CATERING.FOOD & BEVERAGES
02-SEP-2022,7014199,26.45,R MANNERS & SONS LTD,013498,Commissioning & Asset Management,Children's & Education Services,103,Supplies and Services,504,Equipment,5023,Revenue,CATERING.FOOD & BEVERAGES
02-SEP-2022,7014199,26.45,R MANNERS & SONS LTD,013498,Commissioning & Asset Management,Children's & Education Services,103,Supplies and Services,504,Equipment,5023,Revenue,CATERING.FOOD & BEVERAGES
02-SEP-2022,7014199,28.9,R MANNERS & SONS LTD,013498,Commissioning & Asset Management,Children's & Education Services,103,Supplies and Services,504,Equipment,5023,Revenue,CATERING.FOOD & BEVERAGES
02-SEP-2022,7014199,42.9,R MANNERS & SONS LTD,013498,Commissioning & Asset Management,Children's & Education Services,103,Supplies and Services,504,Equipment,5023,Revenue,CATERING.FOOD & BEVERAGES
02-SEP-2022,7014199,42.9,R MANNERS & SONS LTD,013498,Commissioning & Asset Management,Children's & Education Services,103,Supplies and Services,504,Equipment,5023,Revenue,CATERING.FOOD & BEVERAGES
02-SEP-2022,7014199,139.12,R MANNERS & SONS LTD,013498,Commissioning & Asset Management,Children's & Education Services,103,Supplies and Services,504,Equipment,5023,Revenue,CATERING.FOOD & BEVERAGES
02-SEP-2022,7014199,5.29,R MANNERS & SONS LTD,013498,Commissioning & Asset Management,Children's & Education Services,103,Supplies and Services,504,Equipment,5023,Revenue,CATERING.FOOD & BEVERAGES
02-SEP-2022,7014199,5.29,R MANNERS & SONS LTD,013498,Commissioning & Asset Management,Children's & Education Services,103,Supplies and Services,504,Equipment,5023,Revenue,CATERING.FOOD & BEVERAGES
02-SEP-2022,7014199,16.5,R MANNERS & SONS LTD,013498,Commissioning & Asset Management,Children's & Education Services,103,Supplies and Services,504,Equipment,5023,Revenue,CATERING.FOOD & BEVERAGES
02-SEP-2022,7014199,21.16,R MANNERS & SONS LTD,013498,Commissioning & Asset Management,Children's & Education Services,103,Supplies and Services,504,Equipment,5023,Revenue,CATERING.FOOD & BEVERAGES
02-SEP-2022,7014199,23.7,R MANNERS & SONS LTD,013498,Commissioning & Asset Management,Children's & Education Services,103,Supplies and Services,504,Equipment,5023,Revenue,CATERING.FOOD & BEVERAGES
02-SEP-2022,7014199,26.45,R MANNERS & SONS LTD,013498,Commissioning & Asset Management,Children's & Education Services,103,Supplies and Services,504,Equipment,5023,Revenue,CATERING.FOOD & BEVERAGES
02-SEP-2022,7014199,26.45,R MANNERS & SONS LTD,013498,Commissioning & Asset Management,Children's & Education Services,103,Supplies and Services,504,Equipment,5023,Revenue,CATERING.FOOD & BEVERAGES
02-SEP-2022,7014199,38.73,R MANNERS & SONS LTD,013498,Commissioning & Asset Management,Children's & Education Services,103,Supplies and Services,504,Equipment,5023,Revenue,CATERING.FOOD & BEVERAGES
02-SEP-2022,7014199,31.74,R MANNERS & SONS LTD,013498,Commissioning & Asset Management,Children's & Education Services,103,Supplies and Services,504,Equipment,5023,Revenue,CATERING.FOOD & BEVERAGES
02-SEP-2022,7014199,31.74,R MANNERS & SONS LTD,013498,Commissioning & Asset Management,Children's & Education Services,103,Supplies and Services,504,Equipment,5023,Revenue,CATERING.FOOD & BEVERAGES
02-SEP-2022,7014199,32.06,R MANNERS & SONS LTD,013498,Commissioning & Asset Management,Children's & Education Services,103,Supplies and Services,504,Equipment,5023,Revenue,CATERING.FOOD & BEVERAGES
02-SEP-2022,7014199,34.68,R MANNERS & SONS LTD,013498,Commissioning & Asset Management,Children's & Education Services,103,Supplies and Services,504,Equipment,5023,Revenue,CATERING.FOOD & BEVERAGES
02-SEP-2022,7014199,34.68,R MANNERS & SONS LTD,013498,Commissioning & Asset Management,Children's & Education Services,103,Supplies and Services,504,Equipment,5023,Revenue,CATERING.FOOD & BEVERAGES
02-SEP-2022,7014199,46.25,R MANNERS & SONS LTD,013498,Commissioning & Asset Management,Children's & Education Services,103,Supplies and Services,504,Equipment,5023,Revenue,CATERING.FOOD & BEVERAGES
02-SEP-2022,7014199,69.94,R MANNERS & SONS LTD,013498,Commissioning & Asset Management,Children's & Education Services,103,Supplies and Services,504,Equipment,5023,Revenue,CATERING.FOOD & BEVERAGES
02-SEP-2022,7014199,70.83,R MANNERS & SONS LTD,013498,Commissioning & Asset Management,Children's & Education Services,103,Supplies and Services,504,Equipment,5023,Revenue,CATERING.FOOD & BEVERAGES
02-SEP-2022,7014199,5.78,R MANNERS & SONS LTD,013498,Commissioning & Asset Management,Children's & Education Services,103,Supplies and Services,504,Equipment,5023,Revenue,CATERING.FOOD & BEVERAGES
02-SEP-2022,7014199,10.58,R MANNERS & SONS LTD,013498,Commissioning & Asset Management,Children's & Education Services,103,Supplies and Services,504,Equipment,5023,Revenue,CATERING.FOOD & BEVERAGES
02-SEP-2022,7014199,21.16,R MANNERS & SONS LTD,013498,Commissioning & Asset Management,Children's & Education Services,103,Supplies and Services,504,Equipment,5023,Revenue,CATERING.FOOD & BEVERAGES
02-SEP-2022,7014199,23.12,R MANNERS & SONS LTD,013498,Commissioning & Asset Management,Children's & Education Services,103,Supplies and Services,504,Equipment,5023,Revenue,CATERING.FOOD & BEVERAGES
02-SEP-2022,7014199,26.45,R MANNERS & SONS LTD,013498,Commissioning & Asset Management,Children's & Education Services,103,Supplies and Services,504,Equipment,5023,Revenue,CATERING.FOOD & BEVERAGES
02-SEP-2022,7014199,26.45,R MANNERS & SONS LTD,013498,Commissioning & Asset Management,Children's & Education Services,103,Supplies and Services,504,Equipment,5023,Revenue,CATERING.FOOD & BEVERAGES
02-SEP-2022,7014199,26.45,R MANNERS & SONS LTD,013498,Commissioning & Asset Management,Children's & Education Services,103,Supplies and Services,504,Equipment,5023,Revenue,CATERING.FOOD & BEVERAGES
02-SEP-2022,7014199,29.7,R MANNERS & SONS LTD,013498,Commissioning & Asset Management,Children's & Education Services,103,Supplies and Services,504,Equipment,5023,Revenue,CATERING.FOOD & BEVERAGES
02-SEP-2022,7014199,33,R MANNERS & SONS LTD,013498,Commissioning & Asset Management,Children's & Education Services,103,Supplies and Services,504,Equipment,5023,Revenue,CATERING.FOOD & BEVERAGES
02-SEP-2022,7014199,91.73,R MANNERS & SONS LTD,013498,Commissioning & Asset Management,Children's & Education Services,103,Supplies and Services,504,Equipment,5023,Revenue,CATERING.FOOD & BEVERAGES
02-SEP-2022,7014199,21.16,R MANNERS & SONS LTD,013498,Commissioning & Asset Management,Children's & Education Services,103,Supplies and Services,504,Equipment,5023,Revenue,CATERING.FOOD & BEVERAGES
02-SEP-2022,7014199,21.16,R MANNERS & SONS LTD,013498,Commissioning & Asset Management,Children's & Education Services,103,Supplies and Services,504,Equipment,5023,Revenue,CATERING.FOOD & BEVERAGES
02-SEP-2022,7014199,21.16,R MANNERS & SONS LTD,013498,Commissioning & Asset Management,Children's & Education Services,103,Supplies and Services,504,Equipment,5023,Revenue,CATERING.FOOD & BEVERAGES
02-SEP-2022,7014199,24.64,R MANNERS & SONS LTD,013498,Commissioning & Asset Management,Children's & Education Services,103,Supplies and Services,504,Equipment,5023,Revenue,CATERING.FOOD & BEVERAGES
02-SEP-2022,7014199,42.32,R MANNERS & SONS LTD,013498,Commissioning & Asset Management,Children's & Education Services,103,Supplies and Services,504,Equipment,5023,Revenue,CATERING.FOOD & BEVERAGES
02-SEP-2022,7014199,42.32,R MANNERS & SONS LTD,013498,Commissioning & Asset Management,Children's & Education Services,103,Supplies and Services,504,Equipment,5023,Revenue,CATERING.FOOD & BEVERAGES
02-SEP-2022,7014199,46.24,R MANNERS & SONS LTD,013498,Commissioning & Asset Management,Children's & Education Services,103,Supplies and Services,504,Equipment,5023,Revenue,CATERING.FOOD & BEVERAGES
02-SEP-2022,7014199,52.8,R MANNERS & SONS LTD,013498,Commissioning & Asset Management,Children's & Education Services,103,Supplies and Services,504,Equipment,5023,Revenue,CATERING.FOOD & BEVERAGES
02-SEP-2022,7014199,62.52,R MANNERS & SONS LTD,013498,Commissioning & Asset Management,Children's & Education Services,103,Supplies and Services,504,Equipment,5023,Revenue,CATERING.FOOD & BEVERAGES
02-SEP-2022,7014199,69.36,R MANNERS & SONS LTD,013498,Commissioning & Asset Management,Children's & Education Services,103,Supplies and Services,504,Equipment,5023,Revenue,CATERING.FOOD & BEVERAGES
02-SEP-2022,7014199,161.84,R MANNERS & SONS LTD,013498,Commissioning & Asset Management,Children's & Education Services,103,Supplies and Services,504,Equipment,5023,Revenue,CATERING.FOOD & BEVERAGES
02-SEP-2022,7014199,11.56,R MANNERS & SONS LTD,013498,Commissioning & Asset Management,Children's & Education Services,103,Supplies and Services,504,Equipment,5023,Revenue,CATERING.FOOD & BEVERAGES
02-SEP-2022,7014199,17.34,R MANNERS & SONS LTD,013498,Commissioning & Asset Management,Children's & Education Services,103,Supplies and Services,504,Equipment,5023,Revenue,CATERING.FOOD & BEVERAGES
02-SEP-2022,7014199,17.34,R MANNERS & SONS LTD,013498,Commissioning & Asset Management,Children's & Education Services,103,Supplies and Services,504,Equipment,5023,Revenue,CATERING.FOOD & BEVERAGES
02-SEP-2022,7014199,21.16,R MANNERS & SONS LTD,013498,Commissioning & Asset Management,Children's & Education Services,103,Supplies and Services,504,Equipment,5023,Revenue,CATERING.FOOD & BEVERAGES
02-SEP-2022,7014199,21.16,R MANNERS & SONS LTD,013498,Commissioning & Asset Management,Children's & Education Services,103,Supplies and Services,504,Equipment,5023,Revenue,CATERING.FOOD & BEVERAGES
02-SEP-2022,7014199,23.12,R MANNERS & SONS LTD,013498,Commissioning & Asset Management,Children's & Education Services,103,Supplies and Services,504,Equipment,5023,Revenue,CATERING.FOOD & BEVERAGES
02-SEP-2022,7014199,26.45,R MANNERS & SONS LTD,013498,Commissioning & Asset Management,Children's & Education Services,103,Supplies and Services,504,Equipment,5023,Revenue,CATERING.FOOD & BEVERAGES
02-SEP-2022,7014199,29.7,R MANNERS & SONS LTD,013498,Commissioning & Asset Management,Children's & Education Services,103,Supplies and Services,504,Equipment,5023,Revenue,CATERING.FOOD & BEVERAGES
02-SEP-2022,7014199,29.7,R MANNERS & SONS LTD,013498,Commissioning & Asset Management,Children's & Education Services,103,Supplies and Services,504,Equipment,5023,Revenue,CATERING.FOOD & BEVERAGES
02-SEP-2022,7014199,46.24,R MANNERS & SONS LTD,013498,Commissioning & Asset Management,Children's & Education Services,103,Supplies and Services,504,Equipment,5023,Revenue,CATERING.FOOD & BEVERAGES
02-SEP-2022,7014199,46.24,R MANNERS & SONS LTD,013498,Commissioning & Asset Management,Children's & Education Services,103,Supplies and Services,504,Equipment,5023,Revenue,CATERING.FOOD & BEVERAGES
02-SEP-2022,7014199,82.81,R MANNERS & SONS LTD,013498,Commissioning & Asset Management,Children's & Education Services,103,Supplies and Services,504,Equipment,5023,Revenue,CATERING.FOOD & BEVERAGES
02-SEP-2022,7014199,2.65,R MANNERS & SONS LTD,013498,Commissioning & Asset Management,Children's & Education Services,103,Supplies and Services,504,Equipment,5023,Revenue,CATERING.FOOD & BEVERAGES
02-SEP-2022,7014199,2.65,R MANNERS & SONS LTD,013498,Commissioning & Asset Management,Children's & Education Services,103,Supplies and Services,504,Equipment,5023,Revenue,CATERING.FOOD & BEVERAGES
02-SEP-2022,7014199,21.16,R MANNERS & SONS LTD,013498,Commissioning & Asset Management,Children's & Education Services,103,Supplies and Services,504,Equipment,5023,Revenue,CATERING.FOOD & BEVERAGES
02-SEP-2022,7014199,21.16,R MANNERS & SONS LTD,013498,Commissioning & Asset Management,Children's & Education Services,103,Supplies and Services,504,Equipment,5023,Revenue,CATERING.FOOD & BEVERAGES
02-SEP-2022,7014199,34.68,R MANNERS & SONS LTD,013498,Commissioning & Asset Management,Children's & Education Services,103,Supplies and Services,504,Equipment,5023,Revenue,CATERING.FOOD & BEVERAGES
02-SEP-2022,7014199,37.03,R MANNERS & SONS LTD,013498,Commissioning & Asset Management,Children's & Education Services,103,Supplies and Services,504,Equipment,5023,Revenue,CATERING.FOOD & BEVERAGES
02-SEP-2022,7014199,49.5,R MANNERS & SONS LTD,013498,Commissioning & Asset Management,Children's & Education Services,103,Supplies and Services,504,Equipment,5023,Revenue,CATERING.FOOD & BEVERAGES
02-SEP-2022,7014199,49.5,R MANNERS & SONS LTD,013498,Commissioning & Asset Management,Children's & Education Services,103,Supplies and Services,504,Equipment,5023,Revenue,CATERING.FOOD & BEVERAGES
02-SEP-2022,7014199,124.47,R MANNERS & SONS LTD,013498,Commissioning & Asset Management,Children's & Education Services,103,Supplies and Services,504,Equipment,5023,Revenue,CATERING.FOOD & BEVERAGES
02-SEP-2022,7014199,2.65,R MANNERS & SONS LTD,013498,Commissioning & Asset Management,Children's & Education Services,103,Supplies and Services,504,Equipment,5023,Revenue,CATERING.FOOD & BEVERAGES
02-SEP-2022,7014199,2.65,R MANNERS & SONS LTD,013498,Commissioning & Asset Management,Children's & Education Services,103,Supplies and Services,504,Equipment,5023,Revenue,CATERING.FOOD & BEVERAGES
02-SEP-2022,7014199,2.89,R MANNERS & SONS LTD,013498,Commissioning & Asset Management,Children's & Education Services,103,Supplies and Services,504,Equipment,5023,Revenue,CATERING.FOOD & BEVERAGES
02-SEP-2022,7014199,5.29,R MANNERS & SONS LTD,013498,Commissioning & Asset Management,Children's & Education Services,103,Supplies and Services,504,Equipment,5023,Revenue,CATERING.FOOD & BEVERAGES
02-SEP-2022,7014199,5.29,R MANNERS & SONS LTD,013498,Commissioning & Asset Management,Children's & Education Services,103,Supplies and Services,504,Equipment,5023,Revenue,CATERING.FOOD & BEVERAGES
02-SEP-2022,7014199,5.29,R MANNERS & SONS LTD,013498,Commissioning & Asset Management,Children's & Education Services,103,Supplies and Services,504,Equipment,5023,Revenue,CATERING.FOOD & BEVERAGES
02-SEP-2022,7014199,5.78,R MANNERS & SONS LTD,013498,Commissioning & Asset Management,Children's & Education Services,103,Supplies and Services,504,Equipment,5023,Revenue,CATERING.FOOD & BEVERAGES
02-SEP-2022,7014199,5.78,R MANNERS & SONS LTD,013498,Commissioning & Asset Management,Children's & Education Services,103,Supplies and Services,504,Equipment,5023,Revenue,CATERING.FOOD & BEVERAGES
02-SEP-2022,7014199,7.04,R MANNERS & SONS LTD,013498,Commissioning & Asset Management,Children's & Education Services,103,Supplies and Services,504,Equipment,5023,Revenue,CATERING.FOOD & BEVERAGES
02-SEP-2022,7014199,7.04,R MANNERS & SONS LTD,013498,Commissioning & Asset Management,Children's & Education Services,103,Supplies and Services,504,Equipment,5023,Revenue,CATERING.FOOD & BEVERAGES
02-SEP-2022,7014199,8.2,R MANNERS & SONS LTD,013498,Commissioning & Asset Management,Children's & Education Services,103,Supplies and Services,504,Equipment,5023,Revenue,CATERING.FOOD & BEVERAGES
02-SEP-2022,7014199,8.8,R MANNERS & SONS LTD,013498,Commissioning & Asset Management,Children's & Education Services,103,Supplies and Services,504,Equipment,5023,Revenue,CATERING.FOOD & BEVERAGES
02-SEP-2022,7014199,10.41,R MANNERS & SONS LTD,013498,Commissioning & Asset Management,Children's & Education Services,103,Supplies and Services,504,Equipment,5023,Revenue,CATERING.FOOD & BEVERAGES
02-SEP-2022,7014199,10.41,R MANNERS & SONS LTD,013498,Commissioning & Asset Management,Children's & Education Services,103,Supplies and Services,504,Equipment,5023,Revenue,CATERING.FOOD & BEVERAGES
02-SEP-2022,7014199,10.58,R MANNERS & SONS LTD,013498,Commissioning & Asset Management,Children's & Education Services,103,Supplies and Services,504,Equipment,5023,Revenue,CATERING.FOOD & BEVERAGES
02-SEP-2022,7014199,12.18,R MANNERS & SONS LTD,013498,Commissioning & Asset Management,Children's & Education Services,103,Supplies and Services,504,Equipment,5023,Revenue,CATERING.FOOD & BEVERAGES
02-SEP-2022,7014199,15.87,R MANNERS & SONS LTD,013498,Commissioning & Asset Management,Children's & Education Services,103,Supplies and Services,504,Equipment,5023,Revenue,CATERING.FOOD & BEVERAGES
02-SEP-2022,7014199,15.87,R MANNERS & SONS LTD,013498,Commissioning & Asset Management,Children's & Education Services,103,Supplies and Services,504,Equipment,5023,Revenue,CATERING.FOOD & BEVERAGES
02-SEP-2022,7014199,16.32,R MANNERS & SONS LTD,013498,Commissioning & Asset Management,Children's & Education Services,103,Supplies and Services,504,Equipment,5023,Revenue,CATERING.FOOD & BEVERAGES
02-SEP-2022,7014199,17.34,R MANNERS & SONS LTD,013498,Commissioning & Asset Management,Children's & Education Services,103,Supplies and Services,504,Equipment,5023,Revenue,CATERING.FOOD & BEVERAGES
02-SEP-2022,7014199,18.39,R MANNERS & SONS LTD,013498,Commissioning & Asset Management,Children's & Education Services,103,Supplies and Services,504,Equipment,5023,Revenue,CATERING.FOOD & BEVERAGES
02-SEP-2022,7014199,20.82,R MANNERS & SONS LTD,013498,Commissioning & Asset Management,Children's & Education Services,103,Supplies and Services,504,Equipment,5023,Revenue,CATERING.FOOD & BEVERAGES
02-SEP-2022,7014199,20.82,R MANNERS & SONS LTD,013498,Commissioning & Asset Management,Children's & Education Services,103,Supplies and Services,504,Equipment,5023,Revenue,CATERING.FOOD & BEVERAGES
02-SEP-2022,7014199,21.16,R MANNERS & SONS LTD,013498,Commissioning & Asset Management,Children's & Education Services,103,Supplies and Services,504,Equipment,5023,Revenue,CATERING.FOOD & BEVERAGES
02-SEP-2022,7014199,24.35,R MANNERS & SONS LTD,013498,Commissioning & Asset Management,Children's & Education Services,103,Supplies and Services,504,Equipment,5023,Revenue,CATERING.FOOD & BEVERAGES
02-SEP-2022,7014199,24.35,R MANNERS & SONS LTD,013498,Commissioning & Asset Management,Children's & Education Services,103,Supplies and Services,504,Equipment,5023,Revenue,CATERING.FOOD & BEVERAGES
02-SEP-2022,7014199,24.6,R MANNERS & SONS LTD,013498,Commissioning & Asset Management,Children's & Education Services,103,Supplies and Services,504,Equipment,5023,Revenue,CATERING.FOOD & BEVERAGES
02-SEP-2022,7014199,25.67,R MANNERS & SONS LTD,013498,Commissioning & Asset Management,Children's & Education Services,103,Supplies and Services,504,Equipment,5023,Revenue,CATERING.FOOD & BEVERAGES
02-SEP-2022,7014199,26.52,R MANNERS & SONS LTD,013498,Commissioning & Asset Management,Children's & Education Services,103,Supplies and Services,504,Equipment,5023,Revenue,CATERING.FOOD & BEVERAGES
02-SEP-2022,7014199,28.7,R MANNERS & SONS LTD,013498,Commissioning & Asset Management,Children's & Education Services,103,Supplies and Services,504,Equipment,5023,Revenue,CATERING.FOOD & BEVERAGES
02-SEP-2022,7014199,32.72,R MANNERS & SONS LTD,013498,Commissioning & Asset Management,Children's & Education Services,103,Supplies and Services,504,Equipment,5023,Revenue,CATERING.FOOD & BEVERAGES
02-SEP-2022,7014199,40.04,R MANNERS & SONS LTD,013498,Commissioning & Asset Management,Children's & Education Services,103,Supplies and Services,504,Equipment,5023,Revenue,CATERING.FOOD & BEVERAGES
02-SEP-2022,7014199,41.64,R MANNERS & SONS LTD,013498,Commissioning & Asset Management,Children's & Education Services,103,Supplies and Services,504,Equipment,5023,Revenue,CATERING.FOOD & BEVERAGES
02-SEP-2022,7014199,41.64,R MANNERS & SONS LTD,013498,Commissioning & Asset Management,Children's & Education Services,103,Supplies and Services,504,Equipment,5023,Revenue,CATERING.FOOD & BEVERAGES
02-SEP-2022,7014199,41.64,R MANNERS & SONS LTD,013498,Commissioning & Asset Management,Children's & Education Services,103,Supplies and Services,504,Equipment,5023,Revenue,CATERING.FOOD & BEVERAGES
02-SEP-2022,7014199,41.64,R MANNERS & SONS LTD,013498,Commissioning & Asset Management,Children's & Education Services,103,Supplies and Services,504,Equipment,5023,Revenue,CATERING.FOOD & BEVERAGES
02-SEP-2022,7014199,41.64,R MANNERS & SONS LTD,013498,Commissioning & Asset Management,Children's & Education Services,103,Supplies and Services,504,Equipment,5023,Revenue,CATERING.FOOD & BEVERAGES
02-SEP-2022,7014199,41.64,R MANNERS & SONS LTD,013498,Commissioning & Asset Management,Children's & Education Services,103,Supplies and Services,504,Equipment,5023,Revenue,CATERING.FOOD & BEVERAGES
02-SEP-2022,7014199,41.64,R MANNERS & SONS LTD,013498,Commissioning & Asset Management,Children's & Education Services,103,Supplies and Services,504,Equipment,5023,Revenue,CATERING.FOOD & BEVERAGES
02-SEP-2022,7014199,41.64,R MANNERS & SONS LTD,013498,Commissioning & Asset Management,Children's & Education Services,103,Supplies and Services,504,Equipment,5023,Revenue,CATERING.FOOD & BEVERAGES
02-SEP-2022,7014199,41.64,R MANNERS & SONS LTD,013498,Commissioning & Asset Management,Children's & Education Services,103,Supplies and Services,504,Equipment,5023,Revenue,CATERING.FOOD & BEVERAGES
02-SEP-2022,7014199,49.45,R MANNERS & SONS LTD,013498,Commissioning & Asset Management,Children's & Education Services,103,Supplies and Services,504,Equipment,5023,Revenue,CATERING.FOOD & BEVERAGES
02-SEP-2022,7014199,50.99,R MANNERS & SONS LTD,013498,Commissioning & Asset Management,Children's & Education Services,103,Supplies and Services,504,Equipment,5023,Revenue,CATERING.FOOD & BEVERAGES
02-SEP-2022,7014199,59.53,R MANNERS & SONS LTD,013498,Commissioning & Asset Management,Children's & Education Services,103,Supplies and Services,504,Equipment,5023,Revenue,CATERING.FOOD & BEVERAGES
02-SEP-2022,7014199,99.5,R MANNERS & SONS LTD,013498,Commissioning & Asset Management,Children's & Education Services,103,Supplies and Services,504,Equipment,5023,Revenue,CATERING.FOOD & BEVERAGES
02-SEP-2022,7014199,7.04,R MANNERS & SONS LTD,013498,Commissioning & Asset Management,Children's & Education Services,103,Supplies and Services,504,Equipment,5023,Revenue,CATERING.FOOD & BEVERAGES
02-SEP-2022,7014199,20.82,R MANNERS & SONS LTD,013498,Commissioning & Asset Management,Children's & Education Services,103,Supplies and Services,504,Equipment,5023,Revenue,CATERING.FOOD & BEVERAGES
02-SEP-2022,7014199,20.82,R MANNERS & SONS LTD,013498,Commissioning & Asset Management,Children's & Education Services,103,Supplies and Services,504,Equipment,5023,Revenue,CATERING.FOOD & BEVERAGES
02-SEP-2022,7014199,21.12,R MANNERS & SONS LTD,013498,Commissioning & Asset Management,Children's & Education Services,103,Supplies and Services,504,Equipment,5023,Revenue,CATERING.FOOD & BEVERAGES
02-SEP-2022,7014199,23,R MANNERS & SONS LTD,013498,Commissioning & Asset Management,Children's & Education Services,103,Supplies and Services,504,Equipment,5023,Revenue,CATERING.FOOD & BEVERAGES
02-SEP-2022,7014199,31.74,R MANNERS & SONS LTD,013498,Commissioning & Asset Management,Children's & Education Services,103,Supplies and Services,504,Equipment,5023,Revenue,CATERING.FOOD & BEVERAGES
02-SEP-2022,7014199,35.74,R MANNERS & SONS LTD,013498,Commissioning & Asset Management,Children's & Education Services,103,Supplies and Services,504,Equipment,5023,Revenue,CATERING.FOOD & BEVERAGES
02-SEP-2022,7014199,38.36,R MANNERS & SONS LTD,013498,Commissioning & Asset Management,Children's & Education Services,103,Supplies and Services,504,Equipment,5023,Revenue,CATERING.FOOD & BEVERAGES
02-SEP-2022,7014199,38.59,R MANNERS & SONS LTD,013498,Commissioning & Asset Management,Children's & Education Services,103,Supplies and Services,504,Equipment,5023,Revenue,CATERING.FOOD & BEVERAGES
02-SEP-2022,7014199,40.04,R MANNERS & SONS LTD,013498,Commissioning & Asset Management,Children's & Education Services,103,Supplies and Services,504,Equipment,5023,Revenue,CATERING.FOOD & BEVERAGES
02-SEP-2022,7014199,41.64,R MANNERS & SONS LTD,013498,Commissioning & Asset Management,Children's & Education Services,103,Supplies and Services,504,Equipment,5023,Revenue,CATERING.FOOD & BEVERAGES
02-SEP-2022,7014199,41.64,R MANNERS & SONS LTD,013498,Commissioning & Asset Management,Children's & Education Services,103,Supplies and Services,504,Equipment,5023,Revenue,CATERING.FOOD & BEVERAGES
02-SEP-2022,7014199,41.64,R MANNERS & SONS LTD,013498,Commissioning & Asset Management,Children's & Education Services,103,Supplies and Services,504,Equipment,5023,Revenue,CATERING.FOOD & BEVERAGES
02-SEP-2022,7014199,42.32,R MANNERS & SONS LTD,013498,Commissioning & Asset Management,Children's & Education Services,103,Supplies and Services,504,Equipment,5023,Revenue,CATERING.FOOD & BEVERAGES
02-SEP-2022,7014199,42.32,R MANNERS & SONS LTD,013498,Commissioning & Asset Management,Children's & Education Services,103,Supplies and Services,504,Equipment,5023,Revenue,CATERING.FOOD & BEVERAGES
02-SEP-2022,7014199,42.32,R MANNERS & SONS LTD,013498,Commissioning & Asset Management,Children's & Education Services,103,Supplies and Services,504,Equipment,5023,Revenue,CATERING.FOOD & BEVERAGES
02-SEP-2022,7014199,52.9,R MANNERS & SONS LTD,013498,Commissioning & Asset Management,Children's & Education Services,103,Supplies and Services,504,Equipment,5023,Revenue,CATERING.FOOD & BEVERAGES
02-SEP-2022,7014199,63.74,R MANNERS & SONS LTD,013498,Commissioning & Asset Management,Children's & Education Services,103,Supplies and Services,504,Equipment,5023,Revenue,CATERING.FOOD & BEVERAGES
02-SEP-2022,7014199,67.52,R MANNERS & SONS LTD,013498,Commissioning & Asset Management,Children's & Education Services,103,Supplies and Services,504,Equipment,5023,Revenue,CATERING.FOOD & BEVERAGES
02-SEP-2022,7014199,70.4,R MANNERS & SONS LTD,013498,Commissioning & Asset Management,Children's & Education Services,103,Supplies and Services,504,Equipment,5023,Revenue,CATERING.FOOD & BEVERAGES
02-SEP-2022,7014199,-15.87,R MANNERS & SONS LTD,013498,Commissioning & Asset Management,Children's & Education Services,103,Supplies and Services,504,Equipment,5023,Revenue,CATERING.FOOD & BEVERAGES
02-SEP-2022,7014199,7.04,R MANNERS & SONS LTD,013498,Commissioning & Asset Management,Children's & Education Services,103,Supplies and Services,504,Equipment,5023,Revenue,CATERING.FOOD & BEVERAGES
02-SEP-2022,7014199,7.04,R MANNERS & SONS LTD,013498,Commissioning & Asset Management,Children's & Education Services,103,Supplies and Services,504,Equipment,5023,Revenue,CATERING.FOOD & BEVERAGES
02-SEP-2022,7014199,10.41,R MANNERS & SONS LTD,013498,Commissioning & Asset Management,Children's & Education Services,103,Supplies and Services,504,Equipment,5023,Revenue,CATERING.FOOD & BEVERAGES
02-SEP-2022,7014199,10.41,R MANNERS & SONS LTD,013498,Commissioning & Asset Management,Children's & Education Services,103,Supplies and Services,504,Equipment,5023,Revenue,CATERING.FOOD & BEVERAGES
02-SEP-2022,7014199,10.41,R MANNERS & SONS LTD,013498,Commissioning & Asset Management,Children's & Education Services,103,Supplies and Services,504,Equipment,5023,Revenue,CATERING.FOOD & BEVERAGES
02-SEP-2022,7014199,10.68,R MANNERS & SONS LTD,013498,Commissioning & Asset Management,Children's & Education Services,103,Supplies and Services,504,Equipment,5023,Revenue,CATERING.FOOD & BEVERAGES
02-SEP-2022,7014199,12.38,R MANNERS & SONS LTD,013498,Commissioning & Asset Management,Children's & Education Services,103,Supplies and Services,504,Equipment,5023,Revenue,CATERING.FOOD & BEVERAGES
02-SEP-2022,7014199,12.5,R MANNERS & SONS LTD,013498,Commissioning & Asset Management,Children's & Education Services,103,Supplies and Services,504,Equipment,5023,Revenue,CATERING.FOOD & BEVERAGES
02-SEP-2022,7014199,12.75,R MANNERS & SONS LTD,013498,Commissioning & Asset Management,Children's & Education Services,103,Supplies and Services,504,Equipment,5023,Revenue,CATERING.FOOD & BEVERAGES
02-SEP-2022,7014199,15.87,R MANNERS & SONS LTD,013498,Commissioning & Asset Management,Children's & Education Services,103,Supplies and Services,504,Equipment,5023,Revenue,CATERING.FOOD & BEVERAGES
02-SEP-2022,7014199,15.87,R MANNERS & SONS LTD,013498,Commissioning & Asset Management,Children's & Education Services,103,Supplies and Services,504,Equipment,5023,Revenue,CATERING.FOOD & BEVERAGES
02-SEP-2022,7014199,15.87,R MANNERS & SONS LTD,013498,Commissioning & Asset Management,Children's & Education Services,103,Supplies and Services,504,Equipment,5023,Revenue,CATERING.FOOD & BEVERAGES
02-SEP-2022,7014199,15.87,R MANNERS & SONS LTD,013498,Commissioning & Asset Management,Children's & Education Services,103,Supplies and Services,504,Equipment,5023,Revenue,CATERING.FOOD & BEVERAGES
02-SEP-2022,7014199,19.55,R MANNERS & SONS LTD,013498,Commissioning & Asset Management,Children's & Education Services,103,Supplies and Services,504,Equipment,5023,Revenue,CATERING.FOOD & BEVERAGES
02-SEP-2022,7014199,20.15,R MANNERS & SONS LTD,013498,Commissioning & Asset Management,Children's & Education Services,103,Supplies and Services,504,Equipment,5023,Revenue,CATERING.FOOD & BEVERAGES
02-SEP-2022,7014199,21.16,R MANNERS & SONS LTD,013498,Commissioning & Asset Management,Children's & Education Services,103,Supplies and Services,504,Equipment,5023,Revenue,CATERING.FOOD & BEVERAGES
02-SEP-2022,7014199,24.91,R MANNERS & SONS LTD,013498,Commissioning & Asset Management,Children's & Education Services,103,Supplies and Services,504,Equipment,5023,Revenue,CATERING.FOOD & BEVERAGES
02-SEP-2022,7014199,32.98,R MANNERS & SONS LTD,013498,Commissioning & Asset Management,Children's & Education Services,103,Supplies and Services,504,Equipment,5023,Revenue,CATERING.FOOD & BEVERAGES
02-SEP-2022,7014199,36.46,R MANNERS & SONS LTD,013498,Commissioning & Asset Management,Children's & Education Services,103,Supplies and Services,504,Equipment,5023,Revenue,CATERING.FOOD & BEVERAGES
02-SEP-2022,7014199,44.46,R MANNERS & SONS LTD,013498,Commissioning & Asset Management,Children's & Education Services,103,Supplies and Services,504,Equipment,5023,Revenue,CATERING.FOOD & BEVERAGES
02-SEP-2022,7014199,54.27,R MANNERS & SONS LTD,013498,Commissioning & Asset Management,Children's & Education Services,103,Supplies and Services,504,Equipment,5023,Revenue,CATERING.FOOD & BEVERAGES
02-SEP-2022,7014199,5.29,R MANNERS & SONS LTD,013498,Commissioning & Asset Management,Children's & Education Services,103,Supplies and Services,504,Equipment,5023,Revenue,CATERING.FOOD & BEVERAGES
02-SEP-2022,7014199,6.6,R MANNERS & SONS LTD,013498,Commissioning & Asset Management,Children's & Education Services,103,Supplies and Services,504,Equipment,5023,Revenue,CATERING.FOOD & BEVERAGES
02-SEP-2022,7014199,7.04,R MANNERS & SONS LTD,013498,Commissioning & Asset Management,Children's & Education Services,103,Supplies and Services,504,Equipment,5023,Revenue,CATERING.FOOD & BEVERAGES
02-SEP-2022,7014199,10.58,R MANNERS & SONS LTD,013498,Commissioning & Asset Management,Children's & Education Services,103,Supplies and Services,504,Equipment,5023,Revenue,CATERING.FOOD & BEVERAGES
02-SEP-2022,7014199,10.58,R MANNERS & SONS LTD,013498,Commissioning & Asset Management,Children's & Education Services,103,Supplies and Services,504,Equipment,5023,Revenue,CATERING.FOOD & BEVERAGES
02-SEP-2022,7014199,11.56,R MANNERS & SONS LTD,013498,Commissioning & Asset Management,Children's & Education Services,103,Supplies and Services,504,Equipment,5023,Revenue,CATERING.FOOD & BEVERAGES
02-SEP-2022,7014199,11.56,R MANNERS & SONS LTD,013498,Commissioning & Asset Management,Children's & Education Services,103,Supplies and Services,504,Equipment,5023,Revenue,CATERING.FOOD & BEVERAGES
02-SEP-2022,7014199,11.94,R MANNERS & SONS LTD,013498,Commissioning & Asset Management,Children's & Education Services,103,Supplies and Services,504,Equipment,5023,Revenue,CATERING.FOOD & BEVERAGES
02-SEP-2022,7014199,20.82,R MANNERS & SONS LTD,013498,Commissioning & Asset Management,Children's & Education Services,103,Supplies and Services,504,Equipment,5023,Revenue,CATERING.FOOD & BEVERAGES
02-SEP-2022,7014199,31.23,R MANNERS & SONS LTD,013498,Commissioning & Asset Management,Children's & Education Services,103,Supplies and Services,504,Equipment,5023,Revenue,CATERING.FOOD & BEVERAGES
02-SEP-2022,7014199,33.76,R MANNERS & SONS LTD,013498,Commissioning & Asset Management,Children's & Education Services,103,Supplies and Services,504,Equipment,5023,Revenue,CATERING.FOOD & BEVERAGES
02-SEP-2022,7014199,34.44,R MANNERS & SONS LTD,013498,Commissioning & Asset Management,Children's & Education Services,103,Supplies and Services,504,Equipment,5023,Revenue,CATERING.FOOD & BEVERAGES
02-SEP-2022,7014199,41.64,R MANNERS & SONS LTD,013498,Commissioning & Asset Management,Children's & Education Services,103,Supplies and Services,504,Equipment,5023,Revenue,CATERING.FOOD & BEVERAGES
02-SEP-2022,7014199,41.64,R MANNERS & SONS LTD,013498,Commissioning & Asset Management,Children's & Education Services,103,Supplies and Services,504,Equipment,5023,Revenue,CATERING.FOOD & BEVERAGES
02-SEP-2022,7014199,3.52,R MANNERS & SONS LTD,013498,Commissioning & Asset Management,Children's & Education Services,103,Supplies and Services,504,Equipment,5023,Revenue,CATERING.FOOD & BEVERAGES
02-SEP-2022,7014199,3.52,R MANNERS & SONS LTD,013498,Commissioning & Asset Management,Children's & Education Services,103,Supplies and Services,504,Equipment,5023,Revenue,CATERING.FOOD & BEVERAGES
02-SEP-2022,7014199,6.07,R MANNERS & SONS LTD,013498,Commissioning & Asset Management,Children's & Education Services,103,Supplies and Services,504,Equipment,5023,Revenue,CATERING.FOOD & BEVERAGES
02-SEP-2022,7014199,10.41,R MANNERS & SONS LTD,013498,Commissioning & Asset Management,Children's & Education Services,103,Supplies and Services,504,Equipment,5023,Revenue,CATERING.FOOD & BEVERAGES
02-SEP-2022,7014199,11.56,R MANNERS & SONS LTD,013498,Commissioning & Asset Management,Children's & Education Services,103,Supplies and Services,504,Equipment,5023,Revenue,CATERING.FOOD & BEVERAGES
02-SEP-2022,7014199,11.56,R MANNERS & SONS LTD,013498,Commissioning & Asset Management,Children's & Education Services,103,Supplies and Services,504,Equipment,5023,Revenue,CATERING.FOOD & BEVERAGES
02-SEP-2022,7014199,12.38,R MANNERS & SONS LTD,013498,Commissioning & Asset Management,Children's & Education Services,103,Supplies and Services,504,Equipment,5023,Revenue,CATERING.FOOD & BEVERAGES
02-SEP-2022,7014199,15.87,R MANNERS & SONS LTD,013498,Commissioning & Asset Management,Children's & Education Services,103,Supplies and Services,504,Equipment,5023,Revenue,CATERING.FOOD & BEVERAGES
02-SEP-2022,7014199,17.34,R MANNERS & SONS LTD,013498,Commissioning & Asset Management,Children's & Education Services,103,Supplies and Services,504,Equipment,5023,Revenue,CATERING.FOOD & BEVERAGES
02-SEP-2022,7014199,21.16,R MANNERS & SONS LTD,013498,Commissioning & Asset Management,Children's & Education Services,103,Supplies and Services,504,Equipment,5023,Revenue,CATERING.FOOD & BEVERAGES
02-SEP-2022,7014199,21.16,R MANNERS & SONS LTD,013498,Commissioning & Asset Management,Children's & Education Services,103,Supplies and Services,504,Equipment,5023,Revenue,CATERING.FOOD & BEVERAGES
02-SEP-2022,7014199,26.45,R MANNERS & SONS LTD,013498,Commissioning & Asset Management,Children's & Education Services,103,Supplies and Services,504,Equipment,5023,Revenue,CATERING.FOOD & BEVERAGES
02-SEP-2022,7014199,26.71,R MANNERS & SONS LTD,013498,Commissioning & Asset Management,Children's & Education Services,103,Supplies and Services,504,Equipment,5023,Revenue,CATERING.FOOD & BEVERAGES
02-SEP-2022,7014199,34.85,R MANNERS & SONS LTD,013498,Commissioning & Asset Management,Children's & Education Services,103,Supplies and Services,504,Equipment,5023,Revenue,CATERING.FOOD & BEVERAGES
02-SEP-2022,7014199,41.31,R MANNERS & SONS LTD,013498,Commissioning & Asset Management,Children's & Education Services,103,Supplies and Services,504,Equipment,5023,Revenue,CATERING.FOOD & BEVERAGES
02-SEP-2022,7014199,41.64,R MANNERS & SONS LTD,013498,Commissioning & Asset Management,Children's & Education Services,103,Supplies and Services,504,Equipment,5023,Revenue,CATERING.FOOD & BEVERAGES
02-SEP-2022,7014199,41.64,R MANNERS & SONS LTD,013498,Commissioning & Asset Management,Children's & Education Services,103,Supplies and Services,504,Equipment,5023,Revenue,CATERING.FOOD & BEVERAGES
02-SEP-2022,7014199,41.64,R MANNERS & SONS LTD,013498,Commissioning & Asset Management,Children's & Education Services,103,Supplies and Services,504,Equipment,5023,Revenue,CATERING.FOOD & BEVERAGES
02-SEP-2022,7014199,41.64,R MANNERS & SONS LTD,013498,Commissioning & Asset Management,Children's & Education Services,103,Supplies and Services,504,Equipment,5023,Revenue,CATERING.FOOD & BEVERAGES
02-SEP-2022,7014199,46.92,R MANNERS & SONS LTD,013498,Commissioning & Asset Management,Children's & Education Services,103,Supplies and Services,504,Equipment,5023,Revenue,CATERING.FOOD & BEVERAGES
02-SEP-2022,7014199,69.82,R MANNERS & SONS LTD,013498,Commissioning & Asset Management,Children's & Education Services,103,Supplies and Services,504,Equipment,5023,Revenue,CATERING.FOOD & BEVERAGES
02-SEP-2022,7014199,5.29,R MANNERS & SONS LTD,013498,Commissioning & Asset Management,Children's & Education Services,103,Supplies and Services,504,Equipment,5023,Revenue,CATERING.FOOD & BEVERAGES
02-SEP-2022,7014199,5.29,R MANNERS & SONS LTD,013498,Commissioning & Asset Management,Children's & Education Services,103,Supplies and Services,504,Equipment,5023,Revenue,CATERING.FOOD & BEVERAGES
02-SEP-2022,7014199,5.29,R MANNERS & SONS LTD,013498,Commissioning & Asset Management,Children's & Education Services,103,Supplies and Services,504,Equipment,5023,Revenue,CATERING.FOOD & BEVERAGES
02-SEP-2022,7014199,5.78,R MANNERS & SONS LTD,013498,Commissioning & Asset Management,Children's & Education Services,103,Supplies and Services,504,Equipment,5023,Revenue,CATERING.FOOD & BEVERAGES
02-SEP-2022,7014199,5.78,R MANNERS & SONS LTD,013498,Commissioning & Asset Management,Children's & Education Services,103,Supplies and Services,504,Equipment,5023,Revenue,CATERING.FOOD & BEVERAGES
02-SEP-2022,7014199,5.78,R MANNERS & SONS LTD,013498,Commissioning & Asset Management,Children's & Education Services,103,Supplies and Services,504,Equipment,5023,Revenue,CATERING.FOOD & BEVERAGES
02-SEP-2022,7014199,7.04,R MANNERS & SONS LTD,013498,Commissioning & Asset Management,Children's & Education Services,103,Supplies and Services,504,Equipment,5023,Revenue,CATERING.FOOD & BEVERAGES
02-SEP-2022,7014199,7.04,R MANNERS & SONS LTD,013498,Commissioning & Asset Management,Children's & Education Services,103,Supplies and Services,504,Equipment,5023,Revenue,CATERING.FOOD & BEVERAGES
02-SEP-2022,7014199,10.58,R MANNERS & SONS LTD,013498,Commissioning & Asset Management,Children's & Education Services,103,Supplies and Services,504,Equipment,5023,Revenue,CATERING.FOOD & BEVERAGES
02-SEP-2022,7014199,11.56,R MANNERS & SONS LTD,013498,Commissioning & Asset Management,Children's & Education Services,103,Supplies and Services,504,Equipment,5023,Revenue,CATERING.FOOD & BEVERAGES
02-SEP-2022,7014199,12.3,R MANNERS & SONS LTD,013498,Commissioning & Asset Management,Children's & Education Services,103,Supplies and Services,504,Equipment,5023,Revenue,CATERING.FOOD & BEVERAGES
02-SEP-2022,7014199,12.82,R MANNERS & SONS LTD,013498,Commissioning & Asset Management,Children's & Education Services,103,Supplies and Services,504,Equipment,5023,Revenue,CATERING.FOOD & BEVERAGES
02-SEP-2022,7014199,12.97,R MANNERS & SONS LTD,013498,Commissioning & Asset Management,Children's & Education Services,103,Supplies and Services,504,Equipment,5023,Revenue,CATERING.FOOD & BEVERAGES
02-SEP-2022,7014199,20.5,R MANNERS & SONS LTD,013498,Commissioning & Asset Management,Children's & Education Services,103,Supplies and Services,504,Equipment,5023,Revenue,CATERING.FOOD & BEVERAGES
02-SEP-2022,7014199,20.57,R MANNERS & SONS LTD,013498,Commissioning & Asset Management,Children's & Education Services,103,Supplies and Services,504,Equipment,5023,Revenue,CATERING.FOOD & BEVERAGES
02-SEP-2022,7014199,20.82,R MANNERS & SONS LTD,013498,Commissioning & Asset Management,Children's & Education Services,103,Supplies and Services,504,Equipment,5023,Revenue,CATERING.FOOD & BEVERAGES
02-SEP-2022,7014199,31.23,R MANNERS & SONS LTD,013498,Commissioning & Asset Management,Children's & Education Services,103,Supplies and Services,504,Equipment,5023,Revenue,CATERING.FOOD & BEVERAGES
02-SEP-2022,7014199,32.88,R MANNERS & SONS LTD,013498,Commissioning & Asset Management,Children's & Education Services,103,Supplies and Services,504,Equipment,5023,Revenue,CATERING.FOOD & BEVERAGES
02-SEP-2022,7014199,2.79,R MANNERS & SONS LTD,013498,Commissioning & Asset Management,Children's & Education Services,103,Supplies and Services,504,Equipment,5023,Revenue,CATERING.FOOD & BEVERAGES
02-SEP-2022,7014199,3.71,R MANNERS & SONS LTD,013498,Commissioning & Asset Management,Children's & Education Services,103,Supplies and Services,504,Equipment,5023,Revenue,CATERING.FOOD & BEVERAGES
02-SEP-2022,7014199,3.71,R MANNERS & SONS LTD,013498,Commissioning & Asset Management,Children's & Education Services,103,Supplies and Services,504,Equipment,5023,Revenue,CATERING.FOOD & BEVERAGES
02-SEP-2022,7014199,5.57,R MANNERS & SONS LTD,013498,Commissioning & Asset Management,Children's & Education Services,103,Supplies and Services,504,Equipment,5023,Revenue,CATERING.FOOD & BEVERAGES
02-SEP-2022,7014199,12.18,R MANNERS & SONS LTD,013498,Commissioning & Asset Management,Children's & Education Services,103,Supplies and Services,504,Equipment,5023,Revenue,CATERING.FOOD & BEVERAGES
02-SEP-2022,7014199,15.2,R MANNERS & SONS LTD,013498,Commissioning & Asset Management,Children's & Education Services,103,Supplies and Services,504,Equipment,5023,Revenue,CATERING.FOOD & BEVERAGES
02-SEP-2022,7014199,18.75,R MANNERS & SONS LTD,013498,Commissioning & Asset Management,Children's & Education Services,103,Supplies and Services,504,Equipment,5023,Revenue,CATERING.FOOD & BEVERAGES
02-SEP-2022,7014199,18.77,R MANNERS & SONS LTD,013498,Commissioning & Asset Management,Children's & Education Services,103,Supplies and Services,504,Equipment,5023,Revenue,CATERING.FOOD & BEVERAGES
02-SEP-2022,7014199,18.94,R MANNERS & SONS LTD,013498,Commissioning & Asset Management,Children's & Education Services,103,Supplies and Services,504,Equipment,5023,Revenue,CATERING.FOOD & BEVERAGES
02-SEP-2022,7014199,21.9,R MANNERS & SONS LTD,013498,Commissioning & Asset Management,Children's & Education Services,103,Supplies and Services,504,Equipment,5023,Revenue,CATERING.FOOD & BEVERAGES
02-SEP-2022,7014199,22.28,R MANNERS & SONS LTD,013498,Commissioning & Asset Management,Children's & Education Services,103,Supplies and Services,504,Equipment,5023,Revenue,CATERING.FOOD & BEVERAGES
02-SEP-2022,7014199,24.36,R MANNERS & SONS LTD,013498,Commissioning & Asset Management,Children's & Education Services,103,Supplies and Services,504,Equipment,5023,Revenue,CATERING.FOOD & BEVERAGES
02-SEP-2022,7014199,27.85,R MANNERS & SONS LTD,013498,Commissioning & Asset Management,Children's & Education Services,103,Supplies and Services,504,Equipment,5023,Revenue,CATERING.FOOD & BEVERAGES
02-SEP-2022,7014199,30,R MANNERS & SONS LTD,013498,Commissioning & Asset Management,Children's & Education Services,103,Supplies and Services,504,Equipment,5023,Revenue,CATERING.FOOD & BEVERAGES
02-SEP-2022,7014199,30,R MANNERS & SONS LTD,013498,Commissioning & Asset Management,Children's & Education Services,103,Supplies and Services,504,Equipment,5023,Revenue,CATERING.FOOD & BEVERAGES
02-SEP-2022,7014199,35.2,R MANNERS & SONS LTD,013498,Commissioning & Asset Management,Children's & Education Services,103,Supplies and Services,504,Equipment,5023,Revenue,CATERING.FOOD & BEVERAGES
02-SEP-2022,7014199,53.81,R MANNERS & SONS LTD,013498,Commissioning & Asset Management,Children's & Education Services,103,Supplies and Services,504,Equipment,5023,Revenue,CATERING.FOOD & BEVERAGES
02-SEP-2022,7014199,5.78,R MANNERS & SONS LTD,013498,Commissioning & Asset Management,Children's & Education Services,103,Supplies and Services,504,Equipment,5023,Revenue,CATERING.FOOD & BEVERAGES
02-SEP-2022,7014199,5.78,R MANNERS & SONS LTD,013498,Commissioning & Asset Management,Children's & Education Services,103,Supplies and Services,504,Equipment,5023,Revenue,CATERING.FOOD & BEVERAGES
02-SEP-2022,7014199,8.8,R MANNERS & SONS LTD,013498,Commissioning & Asset Management,Children's & Education Services,103,Supplies and Services,504,Equipment,5023,Revenue,CATERING.FOOD & BEVERAGES
02-SEP-2022,7014199,10.58,R MANNERS & SONS LTD,013498,Commissioning & Asset Management,Children's & Education Services,103,Supplies and Services,504,Equipment,5023,Revenue,CATERING.FOOD & BEVERAGES
02-SEP-2022,7014199,11.72,R MANNERS & SONS LTD,013498,Commissioning & Asset Management,Children's & Education Services,103,Supplies and Services,504,Equipment,5023,Revenue,CATERING.FOOD & BEVERAGES
02-SEP-2022,7014199,15.87,R MANNERS & SONS LTD,013498,Commissioning & Asset Management,Children's & Education Services,103,Supplies and Services,504,Equipment,5023,Revenue,CATERING.FOOD & BEVERAGES
02-SEP-2022,7014199,15.87,R MANNERS & SONS LTD,013498,Commissioning & Asset Management,Children's & Education Services,103,Supplies and Services,504,Equipment,5023,Revenue,CATERING.FOOD & BEVERAGES
02-SEP-2022,7014199,17.34,R MANNERS & SONS LTD,013498,Commissioning & Asset Management,Children's & Education Services,103,Supplies and Services,504,Equipment,5023,Revenue,CATERING.FOOD & BEVERAGES
02-SEP-2022,7014199,18.39,R MANNERS & SONS LTD,013498,Commissioning & Asset Management,Children's & Education Services,103,Supplies and Services,504,Equipment,5023,Revenue,CATERING.FOOD & BEVERAGES
02-SEP-2022,7014199,21.16,R MANNERS & SONS LTD,013498,Commissioning & Asset Management,Children's & Education Services,103,Supplies and Services,504,Equipment,5023,Revenue,CATERING.FOOD & BEVERAGES
02-SEP-2022,7014199,27.03,R MANNERS & SONS LTD,013498,Commissioning & Asset Management,Children's & Education Services,103,Supplies and Services,504,Equipment,5023,Revenue,CATERING.FOOD & BEVERAGES
02-SEP-2022,7014199,27.8,R MANNERS & SONS LTD,013498,Commissioning & Asset Management,Children's & Education Services,103,Supplies and Services,504,Equipment,5023,Revenue,CATERING.FOOD & BEVERAGES
02-SEP-2022,7014199,28.7,R MANNERS & SONS LTD,013498,Commissioning & Asset Management,Children's & Education Services,103,Supplies and Services,504,Equipment,5023,Revenue,CATERING.FOOD & BEVERAGES
02-SEP-2022,7014199,32.8,R MANNERS & SONS LTD,013498,Commissioning & Asset Management,Children's & Education Services,103,Supplies and Services,504,Equipment,5023,Revenue,CATERING.FOOD & BEVERAGES
02-SEP-2022,7014199,32.8,R MANNERS & SONS LTD,013498,Commissioning & Asset Management,Children's & Education Services,103,Supplies and Services,504,Equipment,5023,Revenue,CATERING.FOOD & BEVERAGES
02-SEP-2022,7014199,34.68,R MANNERS & SONS LTD,013498,Commissioning & Asset Management,Children's & Education Services,103,Supplies and Services,504,Equipment,5023,Revenue,CATERING.FOOD & BEVERAGES
02-SEP-2022,7014199,41.64,R MANNERS & SONS LTD,013498,Commissioning & Asset Management,Children's & Education Services,103,Supplies and Services,504,Equipment,5023,Revenue,CATERING.FOOD & BEVERAGES
02-SEP-2022,7014199,41.64,R MANNERS & SONS LTD,013498,Commissioning & Asset Management,Children's & Education Services,103,Supplies and Services,504,Equipment,5023,Revenue,CATERING.FOOD & BEVERAGES
02-SEP-2022,7014199,71.67,R MANNERS & SONS LTD,013498,Commissioning & Asset Management,Children's & Education Services,103,Supplies and Services,504,Equipment,5023,Revenue,CATERING.FOOD & BEVERAGES
02-SEP-2022,7014199,11.56,R MANNERS & SONS LTD,013498,Commissioning & Asset Management,Children's & Education Services,103,Supplies and Services,504,Equipment,5023,Revenue,CATERING.FOOD & BEVERAGES
02-SEP-2022,7014199,15.87,R MANNERS & SONS LTD,013498,Commissioning & Asset Management,Children's & Education Services,103,Supplies and Services,504,Equipment,5023,Revenue,CATERING.FOOD & BEVERAGES
02-SEP-2022,7014199,21.48,R MANNERS & SONS LTD,013498,Commissioning & Asset Management,Children's & Education Services,103,Supplies and Services,504,Equipment,5023,Revenue,CATERING.FOOD & BEVERAGES
02-SEP-2022,7014199,23.1,R MANNERS & SONS LTD,013498,Commissioning & Asset Management,Children's & Education Services,103,Supplies and Services,504,Equipment,5023,Revenue,CATERING.FOOD & BEVERAGES
02-SEP-2022,7014199,23.1,R MANNERS & SONS LTD,013498,Commissioning & Asset Management,Children's & Education Services,103,Supplies and Services,504,Equipment,5023,Revenue,CATERING.FOOD & BEVERAGES
02-SEP-2022,7014199,23.12,R MANNERS & SONS LTD,013498,Commissioning & Asset Management,Children's & Education Services,103,Supplies and Services,504,Equipment,5023,Revenue,CATERING.FOOD & BEVERAGES
02-SEP-2022,7014199,23.12,R MANNERS & SONS LTD,013498,Commissioning & Asset Management,Children's & Education Services,103,Supplies and Services,504,Equipment,5023,Revenue,CATERING.FOOD & BEVERAGES
02-SEP-2022,7014199,42.3,R MANNERS & SONS LTD,013498,Commissioning & Asset Management,Children's & Education Services,103,Supplies and Services,504,Equipment,5023,Revenue,CATERING.FOOD & BEVERAGES
02-SEP-2022,7014199,42.32,R MANNERS & SONS LTD,013498,Commissioning & Asset Management,Children's & Education Services,103,Supplies and Services,504,Equipment,5023,Revenue,CATERING.FOOD & BEVERAGES
02-SEP-2022,7014199,42.55,R MANNERS & SONS LTD,013498,Commissioning & Asset Management,Children's & Education Services,103,Supplies and Services,504,Equipment,5023,Revenue,CATERING.FOOD & BEVERAGES
02-SEP-2022,7014199,42.68,R MANNERS & SONS LTD,013498,Commissioning & Asset Management,Children's & Education Services,103,Supplies and Services,504,Equipment,5023,Revenue,CATERING.FOOD & BEVERAGES
02-SEP-2022,7014199,2.65,R MANNERS & SONS LTD,013498,Commissioning & Asset Management,Children's & Education Services,103,Supplies and Services,504,Equipment,5023,Revenue,CATERING.FOOD & BEVERAGES
02-SEP-2022,7014199,2.89,R MANNERS & SONS LTD,013498,Commissioning & Asset Management,Children's & Education Services,103,Supplies and Services,504,Equipment,5023,Revenue,CATERING.FOOD & BEVERAGES
02-SEP-2022,7014199,8.25,R MANNERS & SONS LTD,013498,Commissioning & Asset Management,Children's & Education Services,103,Supplies and Services,504,Equipment,5023,Revenue,CATERING.FOOD & BEVERAGES
02-SEP-2022,7014199,8.25,R MANNERS & SONS LTD,013498,Commissioning & Asset Management,Children's & Education Services,103,Supplies and Services,504,Equipment,5023,Revenue,CATERING.FOOD & BEVERAGES
02-SEP-2022,7014199,8.25,R MANNERS & SONS LTD,013498,Commissioning & Asset Management,Children's & Education Services,103,Supplies and Services,504,Equipment,5023,Revenue,CATERING.FOOD & BEVERAGES
02-SEP-2022,7014199,9.17,R MANNERS & SONS LTD,013498,Commissioning & Asset Management,Children's & Education Services,103,Supplies and Services,504,Equipment,5023,Revenue,CATERING.FOOD & BEVERAGES
02-SEP-2022,7014199,10.58,R MANNERS & SONS LTD,013498,Commissioning & Asset Management,Children's & Education Services,103,Supplies and Services,504,Equipment,5023,Revenue,CATERING.FOOD & BEVERAGES
02-SEP-2022,7014199,10.58,R MANNERS & SONS LTD,013498,Commissioning & Asset Management,Children's & Education Services,103,Supplies and Services,504,Equipment,5023,Revenue,CATERING.FOOD & BEVERAGES
02-SEP-2022,7014199,14.24,R MANNERS & SONS LTD,013498,Commissioning & Asset Management,Children's & Education Services,103,Supplies and Services,504,Equipment,5023,Revenue,CATERING.FOOD & BEVERAGES
02-SEP-2022,7014199,17.34,R MANNERS & SONS LTD,013498,Commissioning & Asset Management,Children's & Education Services,103,Supplies and Services,504,Equipment,5023,Revenue,CATERING.FOOD & BEVERAGES
02-SEP-2022,7014199,17.34,R MANNERS & SONS LTD,013498,Commissioning & Asset Management,Children's & Education Services,103,Supplies and Services,504,Equipment,5023,Revenue,CATERING.FOOD & BEVERAGES
02-SEP-2022,7014199,17.8,R MANNERS & SONS LTD,013498,Commissioning & Asset Management,Children's & Education Services,103,Supplies and Services,504,Equipment,5023,Revenue,CATERING.FOOD & BEVERAGES
02-SEP-2022,7014199,34.78,R MANNERS & SONS LTD,013498,Commissioning & Asset Management,Children's & Education Services,103,Supplies and Services,504,Equipment,5023,Revenue,CATERING.FOOD & BEVERAGES
02-SEP-2022,7014199,10.68,R MANNERS & SONS LTD,013498,Commissioning & Asset Management,Children's & Education Services,103,Supplies and Services,504,Equipment,5023,Revenue,CATERING.FOOD & BEVERAGES
02-SEP-2022,7014199,13.2,R MANNERS & SONS LTD,013498,Commissioning & Asset Management,Children's & Education Services,103,Supplies and Services,504,Equipment,5023,Revenue,CATERING.FOOD & BEVERAGES
02-SEP-2022,7014199,14.24,R MANNERS & SONS LTD,013498,Commissioning & Asset Management,Children's & Education Services,103,Supplies and Services,504,Equipment,5023,Revenue,CATERING.FOOD & BEVERAGES
02-SEP-2022,7014199,21.16,R MANNERS & SONS LTD,013498,Commissioning & Asset Management,Children's & Education Services,103,Supplies and Services,504,Equipment,5023,Revenue,CATERING.FOOD & BEVERAGES
02-SEP-2022,7014199,21.16,R MANNERS & SONS LTD,013498,Commissioning & Asset Management,Children's & Education Services,103,Supplies and Services,504,Equipment,5023,Revenue,CATERING.FOOD & BEVERAGES
02-SEP-2022,7014199,22.8,R MANNERS & SONS LTD,013498,Commissioning & Asset Management,Children's & Education Services,103,Supplies and Services,504,Equipment,5023,Revenue,CATERING.FOOD & BEVERAGES
02-SEP-2022,7014199,29.68,R MANNERS & SONS LTD,013498,Commissioning & Asset Management,Children's & Education Services,103,Supplies and Services,504,Equipment,5023,Revenue,CATERING.FOOD & BEVERAGES
02-SEP-2022,7014199,22.28,R MANNERS & SONS LTD,013498,Commissioning & Asset Management,Children's & Education Services,103,Supplies and Services,504,Equipment,5023,Revenue,CATERING.FOOD & BEVERAGES
02-SEP-2022,7014199,22.28,R MANNERS & SONS LTD,013498,Commissioning & Asset Management,Children's & Education Services,103,Supplies and Services,504,Equipment,5023,Revenue,CATERING.FOOD & BEVERAGES
02-SEP-2022,7014199,27.2,R MANNERS & SONS LTD,013498,Commissioning & Asset Management,Children's & Education Services,103,Supplies and Services,504,Equipment,5023,Revenue,CATERING.FOOD & BEVERAGES
02-SEP-2022,7014199,27.2,R MANNERS & SONS LTD,013498,Commissioning & Asset Management,Children's & Education Services,103,Supplies and Services,504,Equipment,5023,Revenue,CATERING.FOOD & BEVERAGES
02-SEP-2022,7014199,27.85,R MANNERS & SONS LTD,013498,Commissioning & Asset Management,Children's & Education Services,103,Supplies and Services,504,Equipment,5023,Revenue,CATERING.FOOD & BEVERAGES
02-SEP-2022,7014199,27.85,R MANNERS & SONS LTD,013498,Commissioning & Asset Management,Children's & Education Services,103,Supplies and Services,504,Equipment,5023,Revenue,CATERING.FOOD & BEVERAGES
02-SEP-2022,7014199,36.54,R MANNERS & SONS LTD,013498,Commissioning & Asset Management,Children's & Education Services,103,Supplies and Services,504,Equipment,5023,Revenue,CATERING.FOOD & BEVERAGES
02-SEP-2022,7014199,67.64,R MANNERS & SONS LTD,013498,Commissioning & Asset Management,Children's & Education Services,103,Supplies and Services,504,Equipment,5023,Revenue,CATERING.FOOD & BEVERAGES
02-SEP-2022,7014199,68.31,R MANNERS & SONS LTD,013498,Commissioning & Asset Management,Children's & Education Services,103,Supplies and Services,504,Equipment,5023,Revenue,CATERING.FOOD & BEVERAGES
02-SEP-2022,7014199,34,R MANNERS & SONS LTD,013498,Commissioning & Asset Management,Children's & Education Services,103,Supplies and Services,504,Equipment,5023,Revenue,CATERING.FOOD & BEVERAGES
02-SEP-2022,7014199,37.4,R MANNERS & SONS LTD,013498,Commissioning & Asset Management,Children's & Education Services,103,Supplies and Services,504,Equipment,5023,Revenue,CATERING.FOOD & BEVERAGES
02-SEP-2022,7014199,37.4,R MANNERS & SONS LTD,013498,Commissioning & Asset Management,Children's & Education Services,103,Supplies and Services,504,Equipment,5023,Revenue,CATERING.FOOD & BEVERAGES
02-SEP-2022,7014199,38.99,R MANNERS & SONS LTD,013498,Commissioning & Asset Management,Children's & Education Services,103,Supplies and Services,504,Equipment,5023,Revenue,CATERING.FOOD & BEVERAGES
02-SEP-2022,7014199,38.99,R MANNERS & SONS LTD,013498,Commissioning & Asset Management,Children's & Education Services,103,Supplies and Services,504,Equipment,5023,Revenue,CATERING.FOOD & BEVERAGES
02-SEP-2022,7014199,38.99,R MANNERS & SONS LTD,013498,Commissioning & Asset Management,Children's & Education Services,103,Supplies and Services,504,Equipment,5023,Revenue,CATERING.FOOD & BEVERAGES
02-SEP-2022,7014199,38.99,R MANNERS & SONS LTD,013498,Commissioning & Asset Management,Children's & Education Services,103,Supplies and Services,504,Equipment,5023,Revenue,CATERING.FOOD & BEVERAGES
02-SEP-2022,7014199,86.69,R MANNERS & SONS LTD,013498,Commissioning & Asset Management,Children's & Education Services,103,Supplies and Services,504,Equipment,5023,Revenue,CATERING.FOOD & BEVERAGES
02-SEP-2022,7014199,100.78,R MANNERS & SONS LTD,013498,Commissioning & Asset Management,Children's & Education Services,103,Supplies and Services,504,Equipment,5023,Revenue,CATERING.FOOD & BEVERAGES
